Workbook

Sheet Map
M2: Powered by
S4: Popular Polls
W34: Barack Obama (D)
W36: Mitt Romney (R)
B40: The data displayed in this app is provided for general information purposes only. Any percentages or predictions are drawn from Predictwise.com and do not represent the viewpoint of Microsoft.

Sheet President
A1: State | B1: Alabama | C1: Alaska | D1: Arizona | E1: Arkansas | F1: California | G1: Colorado | H1: Connecticut | I1: DC | J1: Delaware | K1: Florida | L1: Georgia | M1: Hawaii | N1: Idaho | O1: Illinois | P1: Indiana | Q1: Iowa | R1: Kansas | S1: Kentucky | T1: Louisiana | U1: Maine | V1: Maryland | W1: Massachusetts | X1: Michigan | Y1: Minnesota | Z1: Mississippi | AA1: Missouri | AB1: Montana | AC1: Nebraska | AD1: Nevada | AE1: New Hampshire | AF1: New Jersey | AG1: New Mexico | AH1: New York | AI1: North Carolina | AJ1: North Dakota | AK1: Ohio | AL1: Oklahoma | AM1: Oregon | AN1: Pennsylvania | AO1: Rhode Island | AP1: South Carolina | AQ1: South Dakota | AR1: Tennessee | AS1: Texas | AT1: Utah | AU1: Vermont | AV1: Virginia | AW1: Washington | AX1: West Virginia | AY1: Wisconsin | AZ1: Wyoming
A2: 2012-08-01T12:00:00 | B2: 0 | C2: 0 | D2: 4.5 | E2: 0 | F2: 100 | G2: 66.3 | H2: 100 | I2: 100 | J2: 100 | K2: 31.6 | L2: 0 | M2: 100 | N2: 1.1 | O2: 100 | P2: 2.1 | Q2: 57.8 | R2: 0.3 | S2: 1.4 | T2: 0 | U2: 99.7 | V2: 100 | W2: 99.9 | X2: 92.1 | Y2: 89.7 | Z2: 0 | AA2: 3.7 | AB2: 8.5 | AC2: 0 | AD2: 75.9 | AE2: 67.3 | AF2: 99.2 | AG2: 98.8 | AH2: 99.7 | AI2: 9 | AJ2: 8.5 | AK2: 56 | AL2: 0 | AM2: 95.6 | AN2: 88.4 | AO2: 100 | AP2: 1.6 | AQ2: 0 | AR2: 27.6 | AS2: 0.2 | AT2: 0 | AU2: 100 | AV2: 52.8 | AW2: 98.6 | AX2: 2.7 | AY2: 78.9 | AZ2: 0
A3: 2012-08-02T12:00:00 | B3: 0 | C3: 0 | D3: 4.5 | E3: 0 | F3: 100 | G3: 66.3 | H3: 100 | I3: 100 | J3: 100 | K3: 31.6 | L3: 0 | M3: 100 | N3: 1.1 | O3: 100 | P3: 2.1 | Q3: 70.7 | R3: 0.3 | S3: 1.4 | T3: 0 | U3: 99.7 | V3: 100 | W3: 99.9 | X3: 92.2 | Y3: 89.7 | Z3: 0 | AA3: 3.7 | AB3: 8.5 | AC3: 0 | AD3: 75.9 | AE3: 59.5 | AF3: 99.2 | AG3: 98.8 | AH3: 99.7 | AI3: 9 | AJ3: 8.5 | AK3: 56 | AL3: 0 | AM3: 95.6 | AN3: 88.4 | AO3: 100 | AP3: 1.6 | AQ3: 0 | AR3: 27.6 | AS3: 0.2 | AT3: 0 | AU3: 100 | AV3: 52.8 | AW3: 98.6 | AX3: 2.7 | AY3: 78.2 | AZ3: 0
A4: 2012-08-03T12:00:00 | B4: 0 | C4: 0 | D4: 3.7 | E4: 0 | F4: 100 | G4: 66.3 | H4: 100 | I4: 100 | J4: 100 | K4: 31.7 | L4: 0 | M4: 100 | N4: 1.1 | O4: 100 | P4: 2.1 | Q4: 70.7 | R4: 0.3 | S4: 1.4 | T4: 0 | U4: 99.7 | V4: 100 | W4: 99.9 | X4: 92.2 | Y4: 89.7 | Z4: 0 | AA4: 3.7 | AB4: 8.5 | AC4: 0 | AD4: 75.7 | AE4: 59.5 | AF4: 99.2 | AG4: 98.8 | AH4: 99.7 | AI4: 11.2 | AJ4: 10.6 | AK4: 58.4 | AL4: 0 | AM4: 95.6 | AN4: 88.5 | AO4: 100 | AP4: 1.6 | AQ4: 0 | AR4: 27.6 | AS4: 0.2 | AT4: 0 | AU4: 100 | AV4: 52.8 | AW4: 98.6 | AX4: 2.7 | AY4: 78.4 | AZ4: 0
A5: 2012-08-04T12:00:00 | B5: 0 | C5: 0 | D5: 4.9 | E5: 0 | F5: 100 | G5: 62.7 | H5: 100 | I5: 100 | J5: 100 | K5: 31.2 | L5: 0 | M5: 100 | N5: 1.1 | O5: 100 | P5: 2.1 | Q5: 70.4 | R5: 0.3 | S5: 1.4 | T5: 0 | U5: 99.7 | V5: 100 | W5: 99.9 | X5: 92.2 | Y5: 89.7 | Z5: 0 | AA5: 3.7 | AB5: 8.5 | AC5: 0 | AD5: 75.7 | AE5: 57.9 | AF5: 99.2 | AG5: 98.8 | AH5: 99.7 | AI5: 11.2 | AJ5: 10.6 | AK5: 58.4 | AL5: 0 | AM5: 95.6 | AN5: 90.5 | AO5: 100 | AP5: 1.6 | AQ5: 0 | AR5: 27.6 | AS5: 0.2 | AT5: 0 | AU5: 100 | AV5: 52.7 | AW5: 98.6 | AX5: 2.7 | AY5: 78.4 | AZ5: 0
A6: 2012-08-05T12:00:00 | B6: 0 | C6: 0 | D6: 3.7 | E6: 0 | F6: 100 | G6: 60.4 | H6: 100 | I6: 100 | J6: 100 | K6: 31.2 | L6: 0 | M6: 100 | N6: 1.1 | O6: 100 | P6: 2.1 | Q6: 70.4 | R6: 0.3 | S6: 1.4 | T6: 0 | U6: 99.7 | V6: 100 | W6: 99.9 | X6: 92.2 | Y6: 89.9 | Z6: 0 | AA6: 3.7 | AB6: 8.5 | AC6: 0 | AD6: 75.7 | AE6: 57.9 | AF6: 99.2 | AG6: 98.8 | AH6: 99.7 | AI6: 9.4 | AJ6: 8.9 | AK6: 58.4 | AL6: 0 | AM6: 95.6 | AN6: 90.5 | AO6: 100 | AP6: 1.6 | AQ6: 0 | AR6: 27.6 | AS6: 0.2 | AT6: 0 | AU6: 100 | AV6: 52.7 | AW6: 98.6 | AX6: 2.7 | AY6: 78.4 | AZ6: 0
A7: 2012-08-06T12:00:00 | B7: 0 | C7: 0 | D7: 3.7 | E7: 0 | F7: 100 | G7: 60.4 | H7: 100 | I7: 100 | J7: 100 | K7: 31.2 | L7: 0 | M7: 100 | N7: 1.1 | O7: 100 | P7: 2.1 | Q7: 60.5 | R7: 0.3 | S7: 1.4 | T7: 0 | U7: 99.7 | V7: 100 | W7: 99.9 | X7: 92.2 | Y7: 89.9 | Z7: 0 | AA7: 3.7 | AB7: 8.5 | AC7: 0 | AD7: 75.7 | AE7: 57.9 | AF7: 99.2 | AG7: 98.8 | AH7: 99.7 | AI7: 8.9 | AJ7: 8.5 | AK7: 56.6 | AL7: 0 | AM7: 95.6 | AN7: 90.5 | AO7: 100 | AP7: 1.6 | AQ7: 0 | AR7: 27.6 | AS7: 0.2 | AT7: 0 | AU7: 100 | AV7: 53.3 | AW7: 98.6 | AX7: 2.7 | AY7: 78.4 | AZ7: 0
A8: 2012-08-07T12:00:00 | B8: 0 | C8: 0 | D8: 3.7 | E8: 0 | F8: 100 | G8: 64.9 | H8: 100 | I8: 100 | J8: 100 | K8: 31.2 | L8: 0 | M8: 100 | N8: 1.1 | O8: 100 | P8: 5.5 | Q8: 60.5 | R8: 0.3 | S8: 1.4 | T8: 0 | U8: 99.7 | V8: 100 | W8: 99.9 | X8: 92.2 | Y8: 89.9 | Z8: 0 | AA8: 3.7 | AB8: 4.7 | AC8: 0 | AD8: 75.7 | AE8: 59.5 | AF8: 99.2 | AG8: 98.8 | AH8: 99.7 | AI8: 9.2 | AJ8: 8.7 | AK8: 62.8 | AL8: 0 | AM8: 95.6 | AN8: 95.5 | AO8: 100 | AP8: 1.6 | AQ8: 0 | AR8: 27.6 | AS8: 0.2 | AT8: 0 | AU8: 100 | AV8: 52.2 | AW8: 98.6 | AX8: 2.7 | AY8: 78.4 | AZ8: 0
A9: 2012-08-08T12:00:00 | B9: 0 | C9: 0 | D9: 3.7 | E9: 0 | F9: 100 | G9: 64.9 | H9: 100 | I9: 100 | J9: 100 | K9: 31.9 | L9: 0 | M9: 100 | N9: 1.1 | O9: 100 | P9: 5.5 | Q9: 60.5 | R9: 0.3 | S9: 1.4 | T9: 0 | U9: 99.7 | V9: 100 | W9: 99.9 | X9: 92.2 | Y9: 89.7 | Z9: 0 | AA9: 3.7 | AB9: 4.7 | AC9: 0 | AD9: 75.7 | AE9: 62.2 | AF9: 99.2 | AG9: 98 | AH9: 99.7 | AI9: 13.1 | AJ9: 12.5 | AK9: 62.6 | AL9: 0 | AM9: 95.6 | AN9: 91.6 | AO9: 100 | AP9: 1.6 | AQ9: 0 | AR9: 1.2 | AS9: 0.2 | AT9: 0 | AU9: 100 | AV9: 52.2 | AW9: 98.6 | AX9: 2.7 | AY9: 79.4 | AZ9: 0
A10: 2012-08-09T12:00:00 | B10: 0 | C10: 0 | D10: 3.7 | E10: 0 | F10: 100 | G10: 60.4 | H10: 100 | I10: 100 | J10: 100 | K10: 31.2 | L10: 0 | M10: 100 | N10: 1.1 | O10: 100 | P10: 5.5 | Q10: 60.5 | R10: 0.3 | S10: 1.4 | T10: 0 | U10: 99.7 | V10: 100 | W10: 99.9 | X10: 92.2 | Y10: 90.4 | Z10: 0 | AA10: 3.7 | AB10: 3.5 | AC10: 0 | AD10: 75.9 | AE10: 65.3 | AF10: 99.2 | AG10: 98 | AH10: 99.7 | AI10: 13.2 | AJ10: 12.6 | AK10: 62.6 | AL10: 0 | AM10: 95.6 | AN10: 89.4 | AO10: 100 | AP10: 1.6 | AQ10: 0 | AR10: 1.2 | AS10: 0.2 | AT10: 0 | AU10: 100 | AV10: 54 | AW10: 98.6 | AX10: 2.7 | AY10: 81.3 | AZ10: 0
A11: 2012-08-10T12:00:00 | B11: 0 | C11: 0 | D11: 3.8 | E11: 0 | F11: 100 | G11: 61.8 | H11: 100 | I11: 100 | J11: 100 | K11: 30.8 | L11: 0 | M11: 100 | N11: 0.9 | O11: 100 | P11: 5.6 | Q11: 60.3 | R11: 0.3 | S11: 1.3 | T11: 0 | U11: 99.6 | V11: 100 | W11: 99.8 | X11: 92.1 | Y11: 95.1 | Z11: 0 | AA11: 4 | AB11: 3.7 | AC11: 0 | AD11: 73.4 | AE11: 64 | AF11: 99.1 | AG11: 97.8 | AH11: 99.7 | AI11: 13.1 | AJ11: 1.7 | AK11: 60.9 | AL11: 0 | AM11: 95.4 | AN11: 88.6 | AO11: 100 | AP11: 1.6 | AQ11: 0 | AR11: 1.1 | AS11: 0.2 | AT11: 0 | AU11: 100 | AV11: 53.7 | AW11: 98.5 | AX11: 2.7 | AY11: 81 | AZ11: 0
A12: 2012-08-11T12:00:00 | B12: 0 | C12: 0 | D12: 4 | E12: 0 | F12: 100 | G12: 61.8 | H12: 100 | I12: 100 | J12: 100 | K12: 46.8 | L12: 0 | M12: 100 | N12: 0.9 | O12: 100 | P12: 5.6 | Q12: 59.7 | R12: 0.3 | S12: 1.3 | T12: 0 | U12: 99.6 | V12: 100 | W12: 99.8 | X12: 92.1 | Y12: 95.1 | Z12: 0 | AA12: 4 | AB12: 3.7 | AC12: 0 | AD12: 73.4 | AE12: 64 | AF12: 99.1 | AG12: 97.8 | AH12: 99.7 | AI12: 15.6 | AJ12: 1.7 | AK12: 60.7 | AL12: 0 | AM12: 95.4 | AN12: 86.9 | AO12: 100 | AP12: 1.6 | AQ12: 0 | AR12: 1.1 | AS12: 0.2 | AT12: 0 | AU12: 100 | AV12: 50.2 | AW12: 98.5 | AX12: 2.7 | AY12: 71.5 | AZ12: 0
A13: 2012-08-12T12:00:00 | B13: 0 | C13: 0 | D13: 4.9 | E13: 0 | F13: 100 | G13: 62.1 | H13: 100 | I13: 100 | J13: 100 | K13: 44.9 | L13: 0 | M13: 100 | N13: 0.9 | O13: 100 | P13: 5.6 | Q13: 59 | R13: 0.3 | S13: 1.3 | T13: 0 | U13: 99.7 | V13: 100 | W13: 90.1 | X13: 92.1 | Y13: 95.1 | Z13: 0 | AA13: 4 | AB13: 4.2 | AC13: 0 | AD13: 73.1 | AE13: 64 | AF13: 99.4 | AG13: 97.8 | AH13: 99.7 | AI13: 15.5 | AJ13: 1.7 | AK13: 58.7 | AL13: 0 | AM13: 95.4 | AN13: 86.9 | AO13: 100 | AP13: 0 | AQ13: 0 | AR13: 1.8 | AS13: 0.2 | AT13: 0 | AU13: 100 | AV13: 53.6 | AW13: 95.4 | AX13: 2.7 | AY13: 72.9 | AZ13: 0
A14: 2012-08-13T12:00:00 | B14: 0 | C14: 0 | D14: 4.9 | E14: 0 | F14: 100 | G14: 62.1 | H14: 100 | I14: 100 | J14: 100 | K14: 44.9 | L14: 0 | M14: 100 | N14: 0.9 | O14: 100 | P14: 5.6 | Q14: 59 | R14: 0.3 | S14: 1.3 | T14: 0 | U14: 99.7 | V14: 100 | W14: 90.1 | X14: 92.1 | Y14: 95.1 | Z14: 0 | AA14: 4 | AB14: 4.2 | AC14: 0 | AD14: 73.1 | AE14: 63.4 | AF14: 99.4 | AG14: 97.8 | AH14: 99.7 | AI14: 15.5 | AJ14: 1.7 | AK14: 58.7 | AL14: 0 | AM14: 96.8 | AN14: 85.6 | AO14: 100 | AP14: 0 | AQ14: 0 | AR14: 1.8 | AS14: 0.2 | AT14: 0 | AU14: 100 | AV14: 53.6 | AW14: 95.4 | AX14: 2.7 | AY14: 71.6 | AZ14: 0
A15: 2012-08-14T12:00:00 | B15: 0 | C15: 0 | D15: 5 | E15: 0 | F15: 100 | G15: 61.8 | H15: 100 | I15: 100 | J15: 100 | K15: 39.4 | L15: 0 | M15: 100 | N15: 0.9 | O15: 100 | P15: 3.6 | Q15: 55.3 | R15: 0.3 | S15: 1.3 | T15: 0 | U15: 99.7 | V15: 100 | W15: 90.1 | X15: 92.1 | Y15: 95.1 | Z15: 0 | AA15: 5.9 | AB15: 4.2 | AC15: 0 | AD15: 72 | AE15: 57.4 | AF15: 99.4 | AG15: 97.8 | AH15: 99.7 | AI15: 15.5 | AJ15: 1.7 | AK15: 55.9 | AL15: 0 | AM15: 96.8 | AN15: 85.6 | AO15: 100 | AP15: 0 | AQ15: 0 | AR15: 1.8 | AS15: 0.2 | AT15: 0 | AU15: 100 | AV15: 48.6 | AW15: 95.4 | AX15: 2.7 | AY15: 71.9 | AZ15: 0
A16: 2012-08-15T12:00:00 | B16: 0 | C16: 0 | D16: 5 | E16: 0 | F16: 100 | G16: 61.8 | H16: 100 | I16: 100 | J16: 100 | K16: 39.4 | L16: 0 | M16: 100 | N16: 0.9 | O16: 100 | P16: 3.6 | Q16: 55.3 | R16: 0.3 | S16: 1.3 | T16: 0 | U16: 99.7 | V16: 100 | W16: 90.1 | X16: 92.1 | Y16: 95.1 | Z16: 0 | AA16: 5.9 | AB16: 4.2 | AC16: 0 | AD16: 72 | AE16: 57.4 | AF16: 99.4 | AG16: 97.8 | AH16: 99.7 | AI16: 15.5 | AJ16: 1.7 | AK16: 55.9 | AL16: 0 | AM16: 96.8 | AN16: 85.6 | AO16: 100 | AP16: 0 | AQ16: 0 | AR16: 1.8 | AS16: 0.2 | AT16: 0 | AU16: 100 | AV16: 48.6 | AW16: 95.4 | AX16: 2.7 | AY16: 71.9 | AZ16: 0
A17: 2012-08-16T12:00:00 | B17: 0 | C17: 0 | D17: 5 | E17: 0 | F17: 100 | G17: 61.8 | H17: 100 | I17: 100 | J17: 100 | K17: 39.4 | L17: 0 | M17: 100 | N17: 0.9 | O17: 100 | P17: 3.6 | Q17: 55.3 | R17: 0.3 | S17: 1.3 | T17: 0 | U17: 99.7 | V17: 100 | W17: 90.1 | X17: 92.1 | Y17: 95.1 | Z17: 0 | AA17: 5.9 | AB17: 4.2 | AC17: 0 | AD17: 72 | AE17: 57.4 | AF17: 99.4 | AG17: 97.8 | AH17: 99.7 | AI17: 15.5 | AJ17: 1.7 | AK17: 55.9 | AL17: 0 | AM17: 96.8 | AN17: 85.6 | AO17: 100 | AP17: 0 | AQ17: 0 | AR17: 1.8 | AS17: 0.2 | AT17: 0 | AU17: 100 | AV17: 48.6 | AW17: 95.4 | AX17: 2.7 | AY17: 71.9 | AZ17: 0
A18: 2012-08-17T12:00:00 | B18: 0 | C18: 0 | D18: 8.9 | E18: 0 | F18: 100 | G18: 62 | H18: 100 | I18: 100 | J18: 100 | K18: 40.4 | L18: 0 | M18: 100 | N18: 0.9 | O18: 100 | P18: 3.6 | Q18: 56 | R18: 0.3 | S18: 1.3 | T18: 0 | U18: 99.7 | V18: 100 | W18: 98.5 | X18: 92.1 | Y18: 94.8 | Z18: 0 | AA18: 5.9 | AB18: 5.4 | AC18: 0 | AD18: 75.2 | AE18: 58.3 | AF18: 99.4 | AG18: 97.8 | AH18: 99.7 | AI18: 13 | AJ18: 1.7 | AK18: 57.2 | AL18: 0 | AM18: 96.9 | AN18: 86.3 | AO18: 100 | AP18: 0 | AQ18: 0 | AR18: 1 | AS18: 0.2 | AT18: 0 | AU18: 100 | AV18: 51.4 | AW18: 95.4 | AX18: 2.7 | AY18: 72.5 | AZ18: 0
A19: 2012-08-18T12:00:00 | B19: 0 | C19: 0 | D19: 8.9 | E19: 0 | F19: 100 | G19: 62.3 | H19: 100 | I19: 100 | J19: 100 | K19: 42.6 | L19: 0 | M19: 100 | N19: 0.9 | O19: 100 | P19: 3.6 | Q19: 55.9 | R19: 0.3 | S19: 1.3 | T19: 0 | U19: 99.7 | V19: 100 | W19: 98.5 | X19: 92.9 | Y19: 88.8 | Z19: 0 | AA19: 9.1 | AB19: 5.4 | AC19: 0 | AD19: 75.2 | AE19: 58.1 | AF19: 99.4 | AG19: 98.6 | AH19: 99.7 | AI19: 12 | AJ19: 1.7 | AK19: 57.2 | AL19: 0 | AM19: 96.9 | AN19: 83.5 | AO19: 100 | AP19: 0 | AQ19: 0 | AR19: 1 | AS19: 0.2 | AT19: 0 | AU19: 100 | AV19: 51.4 | AW19: 95.4 | AX19: 2.7 | AY19: 72.7 | AZ19: 0
A20: 2012-08-19T12:00:00 | B20: 0 | C20: 0 | D20: 8.9 | E20: 0 | F20: 100 | G20: 63.7 | H20: 100 | I20: 100 | J20: 100 | K20: 41.1 | L20: 0 | M20: 100 | N20: 0.9 | O20: 100 | P20: 3.6 | Q20: 57.5 | R20: 0.3 | S20: 1.3 | T20: 0 | U20: 99.7 | V20: 100 | W20: 98.5 | X20: 94.5 | Y20: 88.8 | Z20: 0 | AA20: 9.1 | AB20: 5.4 | AC20: 0 | AD20: 78.5 | AE20: 65.7 | AF20: 99.4 | AG20: 98.6 | AH20: 99.7 | AI20: 11.1 | AJ20: 1.7 | AK20: 57.6 | AL20: 0 | AM20: 96.9 | AN20: 83.5 | AO20: 100 | AP20: 0 | AQ20: 0 | AR20: 1 | AS20: 0.2 | AT20: 0 | AU20: 100 | AV20: 49.2 | AW20: 98.8 | AX20: 2.7 | AY20: 69.8 | AZ20: 0
A21: 2012-08-20T12:00:00 | B21: 0 | C21: 0 | D21: 8.9 | E21: 0 | F21: 100 | G21: 65 | H21: 100 | I21: 100 | J21: 100 | K21: 41.2 | L21: 0 | M21: 100 | N21: 0.9 | O21: 100 | P21: 7.5 | Q21: 59 | R21: 0.3 | S21: 1.3 | T21: 0 | U21: 99.7 | V21: 100 | W21: 98.5 | X21: 95.5 | Y21: 88.8 | Z21: 0 | AA21: 9.1 | AB21: 5.4 | AC21: 0 | AD21: 75.3 | AE21: 57.2 | AF21: 99.4 | AG21: 98.6 | AH21: 99.7 | AI21: 11.9 | AJ21: 1.7 | AK21: 58.2 | AL21: 0 | AM21: 96.9 | AN21: 83.6 | AO21: 100 | AP21: 0 | AQ21: 0 | AR21: 1 | AS21: 0.2 | AT21: 0 | AU21: 100 | AV21: 49.2 | AW21: 98.8 | AX21: 2.7 | AY21: 63.7 | AZ21: 0
A22: 2012-08-21T12:00:00 | B22: 0 | C22: 0 | D22: 6.9 | E22: 0 | F22: 100 | G22: 64.8 | H22: 100 | I22: 100 | J22: 100 | K22: 39.8 | L22: 1.9 | M22: 100 | N22: 0.9 | O22: 100 | P22: 7.5 | Q22: 59 | R22: 0.3 | S22: 1.3 | T22: 0 | U22: 99.7 | V22: 100 | W22: 96.8 | X22: 94.7 | Y22: 89.7 | Z22: 0 | AA22: 9.1 | AB22: 5.4 | AC22: 0 | AD22: 75.3 | AE22: 58 | AF22: 99.4 | AG22: 98.6 | AH22: 99.7 | AI22: 11.4 | AJ22: 1.7 | AK22: 59 | AL22: 0 | AM22: 96.9 | AN22: 83.6 | AO22: 100 | AP22: 0 | AQ22: 0 | AR22: 0.3 | AS22: 0.2 | AT22: 0 | AU22: 100 | AV22: 49.6 | AW22: 98.8 | AX22: 2.7 | AY22: 65.7 | AZ22: 0
A23: 2012-08-22T12:00:00 | B23: 0 | C23: 0 | D23: 6.9 | E23: 0 | F23: 100 | G23: 64 | H23: 100 | I23: 100 | J23: 100 | K23: 38.5 | L23: 1.9 | M23: 100 | N23: 0.9 | O23: 100 | P23: 7.5 | Q23: 59 | R23: 0.3 | S23: 1.3 | T23: 0 | U23: 99.7 | V23: 100 | W23: 96.8 | X23: 94.5 | Y23: 89.7 | Z23: 0 | AA23: 9.1 | AB23: 4.2 | AC23: 0 | AD23: 75.3 | AE23: 58.4 | AF23: 99.4 | AG23: 98.6 | AH23: 99.7 | AI23: 11.4 | AJ23: 1.7 | AK23: 61 | AL23: 0 | AM23: 96.9 | AN23: 84 | AO23: 100 | AP23: 0 | AQ23: 0 | AR23: 0.3 | AS23: 0.2 | AT23: 0 | AU23: 100 | AV23: 54.8 | AW23: 98.8 | AX23: 2.7 | AY23: 66.7 | AZ23: 0
A24: 2012-08-23T12:00:00 | B24: 0 | C24: 0 | D24: 6.9 | E24: 0 | F24: 100 | G24: 64 | H24: 100 | I24: 100 | J24: 100 | K24: 37.5 | L24: 1.9 | M24: 100 | N24: 0.9 | O24: 100 | P24: 7.5 | Q24: 59 | R24: 0.3 | S24: 1.3 | T24: 0 | U24: 99.7 | V24: 100 | W24: 98.5 | X24: 90.4 | Y24: 89.7 | Z24: 0 | AA24: 17.2 | AB24: 5.9 | AC24: 0 | AD24: 75.3 | AE24: 60.5 | AF24: 99.4 | AG24: 98.6 | AH24: 99.7 | AI24: 10.7 | AJ24: 1.7 | AK24: 60.4 | AL24: 0 | AM24: 96.9 | AN24: 83.6 | AO24: 100 | AP24: 0 | AQ24: 0 | AR24: 0.3 | AS24: 0.2 | AT24: 0 | AU24: 100 | AV24: 53.6 | AW24: 98.8 | AX24: 2.7 | AY24: 67.1 | AZ24: 0
A25: 2012-08-24T12:00:00 | B25: 0 | C25: 0 | D25: 11.1 | E25: 0 | F25: 100 | G25: 63.7 | H25: 100 | I25: 100 | J25: 100 | K25: 36.8 | L25: 1.9 | M25: 100 | N25: 0.9 | O25: 100 | P25: 7.5 | Q25: 59 | R25: 0.3 | S25: 1.3 | T25: 0 | U25: 99.7 | V25: 100 | W25: 98.5 | X25: 90.3 | Y25: 89.7 | Z25: 0 | AA25: 7.1 | AB25: 5.9 | AC25: 0 | AD25: 75.3 | AE25: 68.6 | AF25: 98.9 | AG25: 98.6 | AH25: 99.7 | AI25: 9 | AJ25: 1.7 | AK25: 60.1 | AL25: 0 | AM25: 96.6 | AN25: 84.9 | AO25: 100 | AP25: 0 | AQ25: 0 | AR25: 0.3 | AS25: 0.2 | AT25: 0 | AU25: 100 | AV25: 53.3 | AW25: 98.8 | AX25: 2.7 | AY25: 69 | AZ25: 0
A26: 2012-08-25T12:00:00 | B26: 0 | C26: 0 | D26: 11.1 | E26: 0 | F26: 100 | G26: 62.1 | H26: 100 | I26: 100 | J26: 100 | K26: 37.6 | L26: 1.9 | M26: 100 | N26: 0.9 | O26: 100 | P26: 7.5 | Q26: 58.5 | R26: 0.3 | S26: 1.3 | T26: 0 | U26: 99.7 | V26: 100 | W26: 98.5 | X26: 91.5 | Y26: 89.7 | Z26: 0 | AA26: 9 | AB26: 5.9 | AC26: 0 | AD26: 72 | AE26: 72.6 | AF26: 98.9 | AG26: 98.6 | AH26: 99.7 | AI26: 9 | AJ26: 1.7 | AK26: 62 | AL26: 0 | AM26: 96.6 | AN26: 85.8 | AO26: 100 | AP26: 0 | AQ26: 0 | AR26: 0.3 | AS26: 0.2 | AT26: 0 | AU26: 100 | AV26: 54.9 | AW26: 98.8 | AX26: 2.7 | AY26: 71.5 | AZ26: 0
A27: 2012-08-26T12:00:00 | B27: 0 | C27: 0 | D27: 5.5 | E27: 0 | F27: 100 | G27: 62.1 | H27: 100 | I27: 100 | J27: 100 | K27: 37.2 | L27: 1.9 | M27: 100 | N27: 0.9 | O27: 100 | P27: 7.5 | Q27: 58.4 | R27: 0.3 | S27: 1.3 | T27: 0 | U27: 99.7 | V27: 100 | W27: 98.5 | X27: 90.6 | Y27: 89.7 | Z27: 0 | AA27: 9 | AB27: 4.2 | AC27: 0 | AD27: 72 | AE27: 70.4 | AF27: 99.2 | AG27: 98.6 | AH27: 99.7 | AI27: 9 | AJ27: 1.7 | AK27: 62.2 | AL27: 0 | AM27: 96.7 | AN27: 87.7 | AO27: 100 | AP27: 0 | AQ27: 0 | AR27: 0.3 | AS27: 0.2 | AT27: 0 | AU27: 100 | AV27: 54.9 | AW27: 98.8 | AX27: 2.7 | AY27: 67.5 | AZ27: 0
A28: 2012-08-27T12:00:00 | B28: 0 | C28: 0 | D28: 5.5 | E28: 0 | F28: 100 | G28: 61.8 | H28: 100 | I28: 100 | J28: 100 | K28: 43.1 | L28: 1.9 | M28: 100 | N28: 0.9 | O28: 100 | P28: 2.6 | Q28: 50.1 | R28: 0.3 | S28: 1.3 | T28: 0 | U28: 99.7 | V28: 100 | W28: 98.5 | X28: 90 | Y28: 90.9 | Z28: 0 | AA28: 9 | AB28: 4.2 | AC28: 0 | AD28: 76.6 | AE28: 75.6 | AF28: 99.2 | AG28: 98.6 | AH28: 99.7 | AI28: 9 | AJ28: 1.7 | AK28: 60.3 | AL28: 0 | AM28: 95.5 | AN28: 88.7 | AO28: 100 | AP28: 0 | AQ28: 0 | AR28: 0.3 | AS28: 0.2 | AT28: 0 | AU28: 100 | AV28: 52.1 | AW28: 98.8 | AX28: 2.7 | AY28: 68.1 | AZ28: 0
A29: 2012-08-28T12:00:00 | B29: 0 | C29: 0 | D29: 5.5 | E29: 0 | F29: 100 | G29: 60.4 | H29: 100 | I29: 100 | J29: 100 | K29: 43.6 | L29: 1.9 | M29: 100 | N29: 0.9 | O29: 100 | P29: 2.6 | Q29: 53.8 | R29: 0.3 | S29: 1.3 | T29: 0 | U29: 99.7 | V29: 100 | W29: 98.5 | X29: 86.8 | Y29: 90.9 | Z29: 0 | AA29: 9 | AB29: 4.2 | AC29: 0 | AD29: 75.3 | AE29: 75.6 | AF29: 99.2 | AG29: 98.6 | AH29: 99.7 | AI29: 15.4 | AJ29: 1.7 | AK29: 61.5 | AL29: 0 | AM29: 95.5 | AN29: 91.5 | AO29: 100 | AP29: 0 | AQ29: 0 | AR29: 0.3 | AS29: 0.2 | AT29: 0 | AU29: 100 | AV29: 52.1 | AW29: 98.8 | AX29: 2.7 | AY29: 69.3 | AZ29: 0
A30: 2012-08-29T12:00:00 | B30: 0 | C30: 1.2 | D30: 7.5 | E30: 0 | F30: 100 | G30: 62.4 | H30: 100 | I30: 100 | J30: 100 | K30: 45.2 | L30: 1.9 | M30: 100 | N30: 0.9 | O30: 100 | P30: 2.1 | Q30: 52.3 | R30: 0.3 | S30: 1.3 | T30: 0 | U30: 99.7 | V30: 100 | W30: 98.5 | X30: 87.8 | Y30: 90.9 | Z30: 0 | AA30: 8.9 | AB30: 2.8 | AC30: 0 | AD30: 75.3 | AE30: 75.6 | AF30: 99.2 | AG30: 98.6 | AH30: 99.7 | AI30: 15.9 | AJ30: 1.7 | AK30: 61.3 | AL30: 0 | AM30: 95.5 | AN30: 93.3 | AO30: 100 | AP30: 0 | AQ30: 0 | AR30: 0.3 | AS30: 0.2 | AT30: 0 | AU30: 100 | AV30: 53.2 | AW30: 98.8 | AX30: 2.7 | AY30: 63 | AZ30: 0
A31: 2012-08-30T12:00:00 | B31: 0 | C31: 1.2 | D31: 7.5 | E31: 0 | F31: 100 | G31: 62.4 | H31: 100 | I31: 100 | J31: 100 | K31: 42.7 | L31: 2.3 | M31: 100 | N31: 0.9 | O31: 100 | P31: 2.1 | Q31: 54.9 | R31: 0.3 | S31: 1.3 | T31: 0 | U31: 99.7 | V31: 100 | W31: 98.5 | X31: 89 | Y31: 91.8 | Z31: 0 | AA31: 6.8 | AB31: 2.8 | AC31: 0 | AD31: 76.7 | AE31: 75.6 | AF31: 98.9 | AG31: 98.6 | AH31: 99.7 | AI31: 16.4 | AJ31: 1.7 | AK31: 61.3 | AL31: 0.2 | AM31: 95.5 | AN31: 92.4 | AO31: 100 | AP31: 0 | AQ31: 0 | AR31: 0.3 | AS31: 0.2 | AT31: 0 | AU31: 100 | AV31: 52.1 | AW31: 98.8 | AX31: 2.7 | AY31: 63.8 | AZ31: 0
A32: 2012-08-31T12:00:00 | B32: 0 | C32: 1.2 | D32: 3.7 | E32: 0 | F32: 100 | G32: 61.7 | H32: 100 | I32: 100 | J32: 100 | K32: 43.9 | L32: 2.3 | M32: 100 | N32: 0.9 | O32: 100 | P32: 2.1 | Q32: 52.8 | R32: 0.3 | S32: 1.3 | T32: 0 | U32: 99.7 | V32: 100 | W32: 98.5 | X32: 89 | Y32: 93.8 | Z32: 0 | AA32: 6.8 | AB32: 2.8 | AC32: 0 | AD32: 75.9 | AE32: 75.6 | AF32: 98.9 | AG32: 99.4 | AH32: 99.7 | AI32: 16.4 | AJ32: 1.7 | AK32: 63.3 | AL32: 0.2 | AM32: 98.5 | AN32: 91.4 | AO32: 100 | AP32: 0 | AQ32: 0 | AR32: 0.3 | AS32: 0.2 | AT32: 0 | AU32: 100 | AV32: 52.1 | AW32: 98.8 | AX32: 2.7 | AY32: 63 | AZ32: 0
A33: 2012-09-01T12:00:00 | B33: 0 | C33: 1.2 | D33: 1.4 | E33: 0 | F33: 100 | G33: 61.8 | H33: 100 | I33: 100 | J33: 100 | K33: 48.4 | L33: 2.3 | M33: 100 | N33: 0.9 | O33: 100 | P33: 1.5 | Q33: 56 | R33: 0.3 | S33: 1.3 | T33: 0 | U33: 99.7 | V33: 100 | W33: 99.5 | X33: 87.8 | Y33: 93.1 | Z33: 0 | AA33: 6.8 | AB33: 2.7 | AC33: 0 | AD33: 75.3 | AE33: 73.3 | AF33: 99.2 | AG33: 97.5 | AH33: 99.7 | AI33: 14.2 | AJ33: 1.7 | AK33: 63.8 | AL33: 0.2 | AM33: 95.6 | AN33: 91.3 | AO33: 100 | AP33: 0 | AQ33: 0 | AR33: 0.3 | AS33: 0.2 | AT33: 0 | AU33: 100 | AV33: 55.1 | AW33: 98.8 | AX33: 2.7 | AY33: 66.1 | AZ33: 0
A34: 2012-09-02T12:00:00 | B34: 0 | C34: 1.2 | D34: 3.2 | E34: 0 | F34: 100 | G34: 64.3 | H34: 100 | I34: 100 | J34: 100 | K34: 43.6 | L34: 2.2 | M34: 100 | N34: 0.9 | O34: 100 | P34: 1.5 | Q34: 51.9 | R34: 0.3 | S34: 1.3 | T34: 0 | U34: 99.7 | V34: 100 | W34: 99.5 | X34: 87.4 | Y34: 93.2 | Z34: 0 | AA34: 6.7 | AB34: 2.7 | AC34: 0 | AD34: 71.9 | AE34: 73.8 | AF34: 99.2 | AG34: 97.5 | AH34: 99.7 | AI34: 13 | AJ34: 1.7 | AK34: 61.2 | AL34: 0.2 | AM34: 95.6 | AN34: 92.9 | AO34: 100 | AP34: 0 | AQ34: 0 | AR34: 0.3 | AS34: 0.2 | AT34: 0 | AU34: 100 | AV34: 55.5 | AW34: 98.8 | AX34: 2.7 | AY34: 68.1 | AZ34: 0
A35: 2012-09-03T12:00:00 | B35: 0 | C35: 1.2 | D35: 1.6 | E35: 0 | F35: 100 | G35: 65.7 | H35: 100 | I35: 100 | J35: 100 | K35: 45.3 | L35: 2.2 | M35: 100 | N35: 0.9 | O35: 100 | P35: 1.2 | Q35: 51.9 | R35: 0.3 | S35: 1 | T35: 0 | U35: 99.7 | V35: 100 | W35: 99.5 | X35: 85.4 | Y35: 93.2 | Z35: 0 | AA35: 6.7 | AB35: 2.7 | AC35: 0 | AD35: 72.4 | AE35: 72.5 | AF35: 99.4 | AG35: 98.6 | AH35: 99.7 | AI35: 14.6 | AJ35: 1.7 | AK35: 61 | AL35: 0.1 | AM35: 95.6 | AN35: 92.9 | AO35: 100 | AP35: 0.4 | AQ35: 0 | AR35: 0.3 | AS35: 0.2 | AT35: 0 | AU35: 100 | AV35: 55.2 | AW35: 98.8 | AX35: 2.7 | AY35: 68.2 | AZ35: 0
A36: 2012-09-04T12:00:00 | B36: 0 | C36: 1.2 | D36: 1.7 | E36: 0 | F36: 100 | G36: 66 | H36: 100 | I36: 100 | J36: 100 | K36: 43 | L36: 2.6 | M36: 100 | N36: 0.4 | O36: 100 | P36: 2.7 | Q36: 51.7 | R36: 0.3 | S36: 0.9 | T36: 0 | U36: 99.7 | V36: 100 | W36: 99.5 | X36: 85.3 | Y36: 93.2 | Z36: 0 | AA36: 6.6 | AB36: 2.7 | AC36: 0 | AD36: 72.4 | AE36: 73.7 | AF36: 99.4 | AG36: 98.6 | AH36: 99.7 | AI36: 15.6 | AJ36: 1.7 | AK36: 60.7 | AL36: 0.1 | AM36: 98.2 | AN36: 93 | AO36: 100 | AP36: 1.2 | AQ36: 0 | AR36: 0.3 | AS36: 0.2 | AT36: 0 | AU36: 100 | AV36: 56.8 | AW36: 99.1 | AX36: 2.7 | AY36: 68.9 | AZ36: 0
A37: 2012-09-05T12:00:00 | B37: 0 | C37: 1.2 | D37: 1.7 | E37: 0 | F37: 100 | G37: 68.5 | H37: 100 | I37: 100 | J37: 100 | K37: 42.1 | L37: 2.6 | M37: 100 | N37: 0.4 | O37: 100 | P37: 2.1 | Q37: 61.3 | R37: 0.3 | S37: 0.9 | T37: 0 | U37: 99.7 | V37: 100 | W37: 99.5 | X37: 88.7 | Y37: 96.7 | Z37: 0 | AA37: 6.6 | AB37: 1.2 | AC37: 0 | AD37: 72.8 | AE37: 72.2 | AF37: 98.9 | AG37: 98.6 | AH37: 99.7 | AI37: 16.3 | AJ37: 1.7 | AK37: 59.7 | AL37: 0.1 | AM37: 98.1 | AN37: 91.5 | AO37: 100 | AP37: 1.2 | AQ37: 0 | AR37: 0.3 | AS37: 0.2 | AT37: 0 | AU37: 100 | AV37: 59.3 | AW37: 99.1 | AX37: 2.7 | AY37: 71.7 | AZ37: 0
A38: 2012-09-06T12:00:00 | B38: 0 | C38: 1.2 | D38: 2.4 | E38: 0 | F38: 100 | G38: 68.5 | H38: 100 | I38: 100 | J38: 100 | K38: 42 | L38: 1.9 | M38: 100 | N38: 0.4 | O38: 100 | P38: 2.7 | Q38: 53.8 | R38: 0.3 | S38: 0.9 | T38: 0 | U38: 98.8 | V38: 100 | W38: 99.8 | X38: 90.8 | Y38: 97.4 | Z38: 0 | AA38: 7 | AB38: 1.2 | AC38: 0 | AD38: 72 | AE38: 72 | AF38: 98.9 | AG38: 98.6 | AH38: 99.7 | AI38: 17.9 | AJ38: 1.6 | AK38: 61 | AL38: 0.1 | AM38: 98.4 | AN38: 94.4 | AO38: 100 | AP38: 1.2 | AQ38: 0 | AR38: 1.3 | AS38: 0.2 | AT38: 0 | AU38: 100 | AV38: 59 | AW38: 99.1 | AX38: 2.7 | AY38: 72 | AZ38: 0
A39: 2012-09-07T12:00:00 | B39: 0 | C39: 1.2 | D39: 1.9 | E39: 0 | F39: 100 | G39: 68.8 | H39: 100 | I39: 100 | J39: 100 | K39: 40.2 | L39: 0.9 | M39: 100 | N39: 0.4 | O39: 100 | P39: 1.5 | Q39: 56 | R39: 0.3 | S39: 0.9 | T39: 0 | U39: 99.3 | V39: 100 | W39: 99.9 | X39: 92.1 | Y39: 96.7 | Z39: 0 | AA39: 3.7 | AB39: 0.7 | AC39: 0.5 | AD39: 71.1 | AE39: 73.4 | AF39: 99.2 | AG39: 99.5 | AH39: 99.7 | AI39: 20.1 | AJ39: 0.5 | AK39: 62.8 | AL39: 0.1 | AM39: 98.4 | AN39: 93.9 | AO39: 100 | AP39: 1.2 | AQ39: 0 | AR39: 1.2 | AS39: 0.1 | AT39: 0.4 | AU39: 100 | AV39: 60.4 | AW39: 99.8 | AX39: 2.7 | AY39: 73.7 | AZ39: 2.6
A40: 2012-09-08T12:00:00 | B40: 0.2 | C40: 0.5 | D40: 1.7 | E40: 0.3 | F40: 100 | G40: 69 | H40: 100 | I40: 100 | J40: 100 | K40: 41.8 | L40: 0.6 | M40: 100 | N40: 0.4 | O40: 100 | P40: 1.5 | Q40: 57.5 | R40: 0.3 | S40: 0.9 | T40: 0 | U40: 99.5 | V40: 100 | W40: 99.9 | X40: 93.5 | Y40: 96.7 | Z40: 0 | AA40: 5.2 | AB40: 0.7 | AC40: 0.5 | AD40: 71.4 | AE40: 74.2 | AF40: 99.4 | AG40: 99.5 | AH40: 99.7 | AI40: 18.2 | AJ40: 0.5 | AK40: 62.8 | AL40: 0.1 | AM40: 98.4 | AN40: 94.4 | AO40: 100 | AP40: 1.2 | AQ40: 0 | AR40: 1.2 | AS40: 0.1 | AT40: 0.4 | AU40: 100 | AV40: 60.4 | AW40: 99.8 | AX40: 0.7 | AY40: 74.5 | AZ40: 2.6
A41: 2012-09-09T12:00:00 | B41: 0.2 | C41: 0.3 | D41: 2 | E41: 0.3 | F41: 100 | G41: 68.9 | H41: 100 | I41: 100 | J41: 100 | K41: 41 | L41: 0.6 | M41: 100 | N41: 0.4 | O41: 100 | P41: 1.5 | Q41: 59.3 | R41: 0.3 | S41: 0.9 | T41: 0 | U41: 99.5 | V41: 100 | W41: 99.9 | X41: 92.6 | Y41: 96.8 | Z41: 0 | AA41: 5.3 | AB41: 1.2 | AC41: 0.5 | AD41: 71.4 | AE41: 74.2 | AF41: 99.8 | AG41: 99.5 | AH41: 99.7 | AI41: 16.7 | AJ41: 0.5 | AK41: 64.6 | AL41: 0.1 | AM41: 98.4 | AN41: 94.4 | AO41: 100 | AP41: 1.2 | AQ41: 0 | AR41: 1.2 | AS41: 0.1 | AT41: 0.4 | AU41: 100 | AV41: 60.4 | AW41: 99.8 | AX41: 0.7 | AY41: 75.9 | AZ41: 2.6
A42: 2012-09-10T12:00:00 | B42: 0.2 | C42: 0.3 | D42: 1.8 | E42: 0.3 | F42: 100 | G42: 67.8 | H42: 100 | I42: 100 | J42: 100 | K42: 41.4 | L42: 0.6 | M42: 100 | N42: 0.4 | O42: 100 | P42: 1.5 | Q42: 59.7 | R42: 0.3 | S42: 0.9 | T42: 0 | U42: 99.5 | V42: 100 | W42: 99.9 | X42: 93 | Y42: 96.8 | Z42: 0 | AA42: 3.7 | AB42: 0.7 | AC42: 0.5 | AD42: 75.3 | AE42: 77.2 | AF42: 99.9 | AG42: 99.7 | AH42: 99.7 | AI42: 16.1 | AJ42: 0.5 | AK42: 62.6 | AL42: 0.1 | AM42: 98.3 | AN42: 94.7 | AO42: 100 | AP42: 1.2 | AQ42: 0 | AR42: 1.2 | AS42: 0.1 | AT42: 0.4 | AU42: 100 | AV42: 59.9 | AW42: 99.8 | AX42: 0.7 | AY42: 74.3 | AZ42: 2.6
A43: 2012-09-11T12:00:00 | B43: 0.2 | C43: 0.3 | D43: 2 | E43: 0.3 | F43: 100 | G43: 71.9 | H43: 100 | I43: 100 | J43: 100 | K43: 44 | L43: 0.6 | M43: 100 | N43: 0.4 | O43: 100 | P43: 1.5 | Q43: 59.1 | R43: 0.3 | S43: 0.9 | T43: 0 | U43: 99.8 | V43: 100 | W43: 99.9 | X43: 93.5 | Y43: 96.9 | Z43: 0 | AA43: 3.7 | AB43: 0.8 | AC43: 0.5 | AD43: 78.5 | AE43: 78.6 | AF43: 99.9 | AG43: 98.6 | AH43: 99.7 | AI43: 16.6 | AJ43: 0.5 | AK43: 64.8 | AL43: 0.1 | AM43: 98.3 | AN43: 94.3 | AO43: 100 | AP43: 1.2 | AQ43: 0 | AR43: 1.2 | AS43: 0.1 | AT43: 0.4 | AU43: 100 | AV43: 60.8 | AW43: 99.8 | AX43: 0.7 | AY43: 75.5 | AZ43: 2.6
A44: 2012-09-12T12:00:00 | B44: 0.2 | C44: 0.3 | D44: 3.4 | E44: 0.3 | F44: 100 | G44: 72 | H44: 100 | I44: 100 | J44: 100 | K44: 44.6 | L44: 0.6 | M44: 100 | N44: 0.4 | O44: 100 | P44: 1.5 | Q44: 60.1 | R44: 0.3 | S44: 0.9 | T44: 0 | U44: 99.8 | V44: 100 | W44: 99.9 | X44: 93.2 | Y44: 96.5 | Z44: 0 | AA44: 4.3 | AB44: 0.9 | AC44: 0.5 | AD44: 75.7 | AE44: 78.7 | AF44: 99.9 | AG44: 98.6 | AH44: 99.7 | AI44: 18.4 | AJ44: 0.5 | AK44: 66.9 | AL44: 0.1 | AM44: 98.4 | AN44: 94.3 | AO44: 100 | AP44: 1.2 | AQ44: 0 | AR44: 1.2 | AS44: 0.1 | AT44: 0.4 | AU44: 100 | AV44: 59.6 | AW44: 99.8 | AX44: 0.7 | AY44: 75.9 | AZ44: 2.6
A45: 2012-09-13T12:00:00 | B45: 0.2 | C45: 0.4 | D45: 2.4 | E45: 0.3 | F45: 100 | G45: 73.4 | H45: 100 | I45: 100 | J45: 100 | K45: 50.1 | L45: 0.9 | M45: 100 | N45: 0.3 | O45: 100 | P45: 1.6 | Q45: 60.7 | R45: 0.5 | S45: 0.9 | T45: 0 | U45: 99.8 | V45: 100 | W45: 99.9 | X45: 96 | Y45: 96.4 | Z45: 0 | AA45: 5.7 | AB45: 2.8 | AC45: 0.5 | AD45: 75.7 | AE45: 80.5 | AF45: 99.9 | AG45: 98.6 | AH45: 99.6 | AI45: 20 | AJ45: 0.5 | AK45: 68.3 | AL45: 0.1 | AM45: 98.4 | AN45: 94.4 | AO45: 100 | AP45: 1.2 | AQ45: 0 | AR45: 1.2 | AS45: 0.1 | AT45: 0.4 | AU45: 100 | AV45: 59.8 | AW45: 99.8 | AX45: 0.7 | AY45: 75 | AZ45: 2.6
A46: 2012-09-14T12:00:00 | B46: 0.2 | C46: 0.4 | D46: 2.2 | E46: 0.3 | F46: 100 | G46: 72.6 | H46: 100 | I46: 100 | J46: 100 | K46: 56.4 | L46: 1 | M46: 100 | N46: 0.3 | O46: 100 | P46: 2.1 | Q46: 64.4 | R46: 0.5 | S46: 0.9 | T46: 0 | U46: 99.8 | V46: 100 | W46: 99.9 | X46: 96.8 | Y46: 96.4 | Z46: 0 | AA46: 6.3 | AB46: 3.4 | AC46: 0.5 | AD46: 78.9 | AE46: 76.8 | AF46: 99.9 | AG46: 98.6 | AH46: 99.6 | AI46: 21.5 | AJ46: 0.5 | AK46: 75 | AL46: 0.1 | AM46: 98.5 | AN46: 96.8 | AO46: 100 | AP46: 2.7 | AQ46: 0 | AR46: 1.8 | AS46: 0.1 | AT46: 0.4 | AU46: 100 | AV46: 60.5 | AW46: 99.8 | AX46: 1 | AY46: 78.5 | AZ46: 2.5
A47: 2012-09-15T12:00:00 | B47: 0.2 | C47: 0.4 | D47: 2.5 | E47: 0.3 | F47: 100 | G47: 74.1 | H47: 100 | I47: 100 | J47: 100 | K47: 53.2 | L47: 1 | M47: 100 | N47: 0.3 | O47: 100 | P47: 2.1 | Q47: 72.8 | R47: 0.5 | S47: 0.9 | T47: 0 | U47: 99.8 | V47: 100 | W47: 99.9 | X47: 96.4 | Y47: 96.4 | Z47: 0 | AA47: 6.4 | AB47: 3.4 | AC47: 0.5 | AD47: 81.3 | AE47: 79.1 | AF47: 99.9 | AG47: 98.6 | AH47: 99.6 | AI47: 21.4 | AJ47: 0.5 | AK47: 76.2 | AL47: 0.1 | AM47: 97.6 | AN47: 95.1 | AO47: 100 | AP47: 2.7 | AQ47: 0 | AR47: 1.8 | AS47: 0.1 | AT47: 0.5 | AU47: 100 | AV47: 61.5 | AW47: 99.7 | AX47: 1.1 | AY47: 80 | AZ47: 2.5
A48: 2012-09-16T12:00:00 | B48: 0.2 | C48: 0.4 | D48: 2.2 | E48: 0.3 | F48: 100 | G48: 73.8 | H48: 100 | I48: 100 | J48: 100 | K48: 49.2 | L48: 1 | M48: 100 | N48: 0.3 | O48: 100 | P48: 2.1 | Q48: 71.5 | R48: 0.5 | S48: 0.9 | T48: 0 | U48: 99.8 | V48: 100 | W48: 99.9 | X48: 95.7 | Y48: 96.4 | Z48: 0 | AA48: 6.2 | AB48: 3.4 | AC48: 0.5 | AD48: 81.2 | AE48: 79.4 | AF48: 99.9 | AG48: 98.6 | AH48: 99.6 | AI48: 20.5 | AJ48: 0.5 | AK48: 74.5 | AL48: 0.1 | AM48: 97.6 | AN48: 95.8 | AO48: 100 | AP48: 1.2 | AQ48: 0 | AR48: 1.2 | AS48: 0.1 | AT48: 0.5 | AU48: 100 | AV48: 60.6 | AW48: 99.7 | AX48: 0.7 | AY48: 80.8 | AZ48: 2.5
A49: 2012-09-17T12:00:00 | B49: 0.2 | C49: 0.4 | D49: 2.2 | E49: 0.3 | F49: 100 | G49: 73.6 | H49: 100 | I49: 100 | J49: 100 | K49: 50.4 | L49: 0.9 | M49: 100 | N49: 0.3 | O49: 100 | P49: 2.1 | Q49: 71.5 | R49: 0.5 | S49: 0.9 | T49: 0 | U49: 99.8 | V49: 100 | W49: 99.9 | X49: 96.4 | Y49: 96.7 | Z49: 0 | AA49: 6.3 | AB49: 3.4 | AC49: 0.5 | AD49: 83.6 | AE49: 78.6 | AF49: 99.9 | AG49: 98.7 | AH49: 99.6 | AI49: 19.9 | AJ49: 0.5 | AK49: 72.2 | AL49: 0.1 | AM49: 97.6 | AN49: 95.8 | AO49: 100 | AP49: 1.2 | AQ49: 0 | AR49: 1.2 | AS49: 0.1 | AT49: 0.5 | AU49: 100 | AV49: 61.1 | AW49: 99.7 | AX49: 0.3 | AY49: 80.2 | AZ49: 2.5
A50: 2012-09-18T12:00:00 | B50: 0.2 | C50: 0.4 | D50: 2 | E50: 0.3 | F50: 100 | G50: 76.1 | H50: 100 | I50: 100 | J50: 100 | K50: 52.3 | L50: 1.1 | M50: 100 | N50: 0.3 | O50: 100 | P50: 2.1 | Q50: 74.2 | R50: 0.5 | S50: 0.9 | T50: 0 | U50: 99.8 | V50: 100 | W50: 99.9 | X50: 95.4 | Y50: 96.7 | Z50: 0 | AA50: 5.1 | AB50: 4.5 | AC50: 0.5 | AD50: 82.5 | AE50: 83.1 | AF50: 99.9 | AG50: 98.7 | AH50: 99.6 | AI50: 22.9 | AJ50: 0.5 | AK50: 74.9 | AL50: 0.1 | AM50: 97.6 | AN50: 95.1 | AO50: 100 | AP50: 1.2 | AQ50: 0 | AR50: 1.2 | AS50: 0.1 | AT50: 0.5 | AU50: 100 | AV50: 60.2 | AW50: 99.7 | AX50: 0.3 | AY50: 79.9 | AZ50: 2.5
A51: 2012-09-19T12:00:00 | B51: 0.2 | C51: 0.4 | D51: 1.9 | E51: 0.3 | F51: 100 | G51: 73.5 | H51: 100 | I51: 100 | J51: 100 | K51: 53.5 | L51: 0.9 | M51: 100 | N51: 0.3 | O51: 100 | P51: 2.3 | Q51: 70.9 | R51: 0.5 | S51: 0.9 | T51: 0 | U51: 99.8 | V51: 100 | W51: 99.9 | X51: 96 | Y51: 96.7 | Z51: 0 | AA51: 4.1 | AB51: 3.7 | AC51: 0.5 | AD51: 82.7 | AE51: 72.5 | AF51: 99.9 | AG51: 98.7 | AH51: 99.6 | AI51: 23.1 | AJ51: 0.5 | AK51: 73.3 | AL51: 0.1 | AM51: 97.7 | AN51: 93.8 | AO51: 100 | AP51: 1.2 | AQ51: 0 | AR51: 1.2 | AS51: 0.1 | AT51: 0.5 | AU51: 100 | AV51: 71.3 | AW51: 99.7 | AX51: 0.3 | AY51: 80.2 | AZ51: 2.5
A52: 2012-09-20T12:00:00 | B52: 0.2 | C52: 0.3 | D52: 1.9 | E52: 0.3 | F52: 100 | G52: 70.4 | H52: 100 | I52: 100 | J52: 100 | K52: 55 | L52: 2.9 | M52: 100 | N52: 0.3 | O52: 100 | P52: 2.3 | Q52: 73.3 | R52: 0.5 | S52: 0.9 | T52: 0 | U52: 99.8 | V52: 100 | W52: 99.9 | X52: 97.1 | Y52: 96.4 | Z52: 0 | AA52: 9.4 | AB52: 5.2 | AC52: 0.5 | AD52: 82.9 | AE52: 72.3 | AF52: 99.9 | AG52: 98.7 | AH52: 99.6 | AI52: 24.1 | AJ52: 0.6 | AK52: 77.6 | AL52: 0.1 | AM52: 97.9 | AN52: 95.5 | AO52: 100 | AP52: 1.2 | AQ52: 0 | AR52: 1.2 | AS52: 0.1 | AT52: 0.5 | AU52: 100 | AV52: 74.5 | AW52: 99.7 | AX52: 0.3 | AY52: 78.3 | AZ52: 2.5
A53: 2012-09-21T12:00:00 | B53: 0.2 | C53: 0.3 | D53: 2 | E53: 0.3 | F53: 100 | G53: 69.2 | H53: 100 | I53: 100 | J53: 100 | K53: 55 | L53: 2.9 | M53: 100 | N53: 0.3 | O53: 100 | P53: 2.3 | Q53: 71.3 | R53: 0.5 | S53: 0.9 | T53: 0 | U53: 99.8 | V53: 100 | W53: 99.8 | X53: 96.8 | Y53: 96.4 | Z53: 0 | AA53: 11.3 | AB53: 5.2 | AC53: 0.5 | AD53: 82.8 | AE53: 75.8 | AF53: 99.9 | AG53: 98.7 | AH53: 99.6 | AI53: 26.3 | AJ53: 0.6 | AK53: 76.5 | AL53: 0.1 | AM53: 97.9 | AN53: 95.1 | AO53: 100 | AP53: 0 | AQ53: 0 | AR53: 0.2 | AS53: 0.1 | AT53: 0.4 | AU53: 100 | AV53: 75.4 | AW53: 99.8 | AX53: 0.3 | AY53: 81.1 | AZ53: 2.5
A54: 2012-09-22T12:00:00 | B54: 0.2 | C54: 0.3 | D54: 5.3 | E54: 0.3 | F54: 100 | G54: 73.9 | H54: 100 | I54: 100 | J54: 100 | K54: 60.9 | L54: 1.3 | M54: 100 | N54: 0.3 | O54: 100 | P54: 3.8 | Q54: 73.8 | R54: 0.5 | S54: 0.9 | T54: 0 | U54: 99.8 | V54: 100 | W54: 99.8 | X54: 96.6 | Y54: 96.7 | Z54: 0 | AA54: 16.4 | AB54: 8.5 | AC54: 0.5 | AD54: 82.8 | AE54: 75.6 | AF54: 99.9 | AG54: 98.7 | AH54: 99.6 | AI54: 27.3 | AJ54: 0.6 | AK54: 76.5 | AL54: 0.1 | AM54: 98.5 | AN54: 95.8 | AO54: 100 | AP54: 1.1 | AQ54: 0.5 | AR54: 0.3 | AS54: 0.1 | AT54: 0.4 | AU54: 100 | AV54: 75 | AW54: 99.8 | AX54: 0.3 | AY54: 81 | AZ54: 2.5
A55: 2012-09-23T12:00:00 | B55: 0.2 | C55: 0.4 | D55: 9.5 | E55: 0.3 | F55: 100 | G55: 72.4 | H55: 100 | I55: 100 | J55: 100 | K55: 59.2 | L55: 2.3 | M55: 100 | N55: 0.3 | O55: 100 | P55: 6.6 | Q55: 74.1 | R55: 0.5 | S55: 0.9 | T55: 0 | U55: 99.8 | V55: 100 | W55: 99.8 | X55: 96.4 | Y55: 97.3 | Z55: 0 | AA55: 10.1 | AB55: 5.6 | AC55: 0.5 | AD55: 88.6 | AE55: 74.9 | AF55: 99.9 | AG55: 92.4 | AH55: 99.7 | AI55: 35.7 | AJ55: 0.6 | AK55: 77.9 | AL55: 0.1 | AM55: 98.5 | AN55: 98.3 | AO55: 100 | AP55: 0.2 | AQ55: 0.5 | AR55: 0.3 | AS55: 0.1 | AT55: 0.4 | AU55: 100 | AV55: 74.3 | AW55: 99.8 | AX55: 0.3 | AY55: 82.1 | AZ55: 2.5
A56: 2012-09-24T12:00:00 | B56: 0.2 | C56: 0.4 | D56: 9.7 | E56: 0.3 | F56: 100 | G56: 70.8 | H56: 100 | I56: 100 | J56: 100 | K56: 56.4 | L56: 2.2 | M56: 100 | N56: 0.3 | O56: 100 | P56: 6.3 | Q56: 76 | R56: 0.5 | S56: 0.9 | T56: 0 | U56: 99.8 | V56: 100 | W56: 99.8 | X56: 96.9 | Y56: 97.2 | Z56: 0 | AA56: 15.9 | AB56: 5.6 | AC56: 0.5 | AD56: 89.2 | AE56: 76.9 | AF56: 99.9 | AG56: 92.4 | AH56: 99.7 | AI56: 26.9 | AJ56: 0.6 | AK56: 77.9 | AL56: 0.1 | AM56: 98.5 | AN56: 98.2 | AO56: 100 | AP56: 0.4 | AQ56: 0.5 | AR56: 0.3 | AS56: 0.6 | AT56: 0.5 | AU56: 100 | AV56: 73.9 | AW56: 99.8 | AX56: 0.3 | AY56: 84.2 | AZ56: 2.5
A57: 2012-09-25T12:00:00 | B57: 0.2 | C57: 0.4 | D57: 7.7 | E57: 0.3 | F57: 100 | G57: 72.3 | H57: 100 | I57: 100 | J57: 100 | K57: 61.7 | L57: 1.5 | M57: 100 | N57: 0.3 | O57: 100 | P57: 6.3 | Q57: 75 | R57: 0.5 | S57: 0.9 | T57: 0 | U57: 99.8 | V57: 100 | W57: 98.5 | X57: 98.1 | Y57: 97.3 | Z57: 0 | AA57: 15.1 | AB57: 5.6 | AC57: 0.5 | AD57: 89.2 | AE57: 76.9 | AF57: 99.9 | AG57: 92.4 | AH57: 99.7 | AI57: 28.5 | AJ57: 0.6 | AK57: 79.9 | AL57: 0.1 | AM57: 98.8 | AN57: 98.3 | AO57: 100 | AP57: 0.4 | AQ57: 0.5 | AR57: 0.3 | AS57: 0.6 | AT57: 0.4 | AU57: 100 | AV57: 74.3 | AW57: 99.8 | AX57: 0.3 | AY57: 89 | AZ57: 2.5
A58: 2012-09-26T12:00:00 | B58: 0.2 | C58: 0.4 | D58: 7.3 | E58: 0.3 | F58: 100 | G58: 73.2 | H58: 100 | I58: 100 | J58: 100 | K58: 65.9 | L58: 1.5 | M58: 100 | N58: 0.3 | O58: 100 | P58: 9.4 | Q58: 76.3 | R58: 0.5 | S58: 0.9 | T58: 0 | U58: 99.8 | V58: 100 | W58: 98.5 | X58: 98.1 | Y58: 97.3 | Z58: 0 | AA58: 15.1 | AB58: 5.7 | AC58: 0.5 | AD58: 89.1 | AE58: 76.4 | AF58: 99.9 | AG58: 97.5 | AH58: 99.7 | AI58: 52.6 | AJ58: 0.6 | AK58: 82.8 | AL58: 0.1 | AM58: 98.7 | AN58: 98.3 | AO58: 100 | AP58: 0.5 | AQ58: 0.5 | AR58: 0.4 | AS58: 0.7 | AT58: 0.4 | AU58: 100 | AV58: 74.5 | AW58: 99.8 | AX58: 0.3 | AY58: 86.1 | AZ58: 2.5
A59: 2012-09-27T12:00:00 | B59: 0.2 | C59: 0.4 | D59: 9.4 | E59: 0.3 | F59: 100 | G59: 76.9 | H59: 100 | I59: 100 | J59: 100 | K59: 68.8 | L59: 1.5 | M59: 100 | N59: 0.3 | O59: 100 | P59: 6.9 | Q59: 85.7 | R59: 0.5 | S59: 0.9 | T59: 0 | U59: 99.3 | V59: 100 | W59: 98.5 | X59: 98.1 | Y59: 97.8 | Z59: 0 | AA59: 13.5 | AB59: 5.8 | AC59: 0.5 | AD59: 86.6 | AE59: 78.2 | AF59: 99.9 | AG59: 97.5 | AH59: 99.7 | AI59: 53.9 | AJ59: 0.6 | AK59: 85 | AL59: 0.1 | AM59: 98.7 | AN59: 98.3 | AO59: 100 | AP59: 0.7 | AQ59: 0.5 | AR59: 0.8 | AS59: 0.7 | AT59: 0.4 | AU59: 100 | AV59: 77.1 | AW59: 99.8 | AX59: 0.3 | AY59: 89.8 | AZ59: 2.5
A60: 2012-09-28T12:00:00 | B60: 0.1 | C60: 0.4 | D60: 8.5 | E60: 0.2 | F60: 100 | G60: 82.3 | H60: 100 | I60: 100 | J60: 100 | K60: 69.9 | L60: 1.6 | M60: 100 | N60: 0.3 | O60: 100 | P60: 7 | Q60: 88.2 | R60: 0.5 | S60: 0.9 | T60: 0 | U60: 99.3 | V60: 100 | W60: 99.8 | X60: 98 | Y60: 97.8 | Z60: 0 | AA60: 13.2 | AB60: 5.8 | AC60: 0.5 | AD60: 84.5 | AE60: 80.9 | AF60: 99.9 | AG60: 97.5 | AH60: 99.7 | AI60: 53.9 | AJ60: 0.6 | AK60: 87 | AL60: 0.1 | AM60: 98.7 | AN60: 99.1 | AO60: 100 | AP60: 3.9 | AQ60: 0.5 | AR60: 0.6 | AS60: 0.7 | AT60: 0.4 | AU60: 100 | AV60: 83.5 | AW60: 99.9 | AX60: 0.3 | AY60: 90.1 | AZ60: 2.5
A61: 2012-09-29T12:00:00 | B61: 0.1 | C61: 0.4 | D61: 9.1 | E61: 0.2 | F61: 100 | G61: 83.1 | H61: 100 | I61: 100 | J61: 100 | K61: 74.2 | L61: 1.4 | M61: 100 | N61: 0.4 | O61: 100 | P61: 5.9 | Q61: 90 | R61: 0.5 | S61: 1 | T61: 0 | U61: 99.4 | V61: 100 | W61: 99.9 | X61: 98.2 | Y61: 98.1 | Z61: 0 | AA61: 11.2 | AB61: 5.3 | AC61: 0.5 | AD61: 87 | AE61: 86 | AF61: 99.9 | AG61: 98.6 | AH61: 100 | AI61: 40.7 | AJ61: 0.6 | AK61: 90.1 | AL61: 0 | AM61: 98.5 | AN61: 98.3 | AO61: 100 | AP61: 1.1 | AQ61: 0.4 | AR61: 0.6 | AS61: 0.7 | AT61: 0.5 | AU61: 100 | AV61: 82 | AW61: 99.9 | AX61: 1 | AY61: 92.1 | AZ61: 2.1
A62: 2012-09-30T12:00:00 | B62: 0.3 | C62: 0.3 | D62: 9.5 | E62: 0.2 | F62: 100 | G62: 86.4 | H62: 100 | I62: 100 | J62: 100 | K62: 74 | L62: 0.9 | M62: 100 | N62: 0.4 | O62: 100 | P62: 5.2 | Q62: 88.9 | R62: 0.5 | S62: 1 | T62: 0 | U62: 99.4 | V62: 100 | W62: 99.9 | X62: 98.2 | Y62: 98.4 | Z62: 0 | AA62: 13.2 | AB62: 4.3 | AC62: 0.5 | AD62: 87 | AE62: 87.9 | AF62: 99.9 | AG62: 95.9 | AH62: 100 | AI62: 41.1 | AJ62: 0.6 | AK62: 84.8 | AL62: 0 | AM62: 98.8 | AN62: 93.5 | AO62: 100 | AP62: 0.4 | AQ62: 0.4 | AR62: 0.6 | AS62: 0.6 | AT62: 0.5 | AU62: 100 | AV62: 82.6 | AW62: 99.9 | AX62: 1 | AY62: 92.3 | AZ62: 2.1
A63: 2012-10-01T12:00:00 | B63: 0.1 | C63: 0.3 | D63: 9.1 | E63: 0.2 | F63: 100 | G63: 83.1 | H63: 100 | I63: 100 | J63: 100 | K63: 72.1 | L63: 0.9 | M63: 100 | N63: 0.4 | O63: 100 | P63: 4.8 | Q63: 89 | R63: 0.5 | S63: 1 | T63: 0 | U63: 99.4 | V63: 100 | W63: 99.9 | X63: 98.1 | Y63: 98.4 | Z63: 0 | AA63: 12.7 | AB63: 4.9 | AC63: 0.5 | AD63: 86.7 | AE63: 86.1 | AF63: 99.9 | AG63: 98.6 | AH63: 100 | AI63: 36.8 | AJ63: 0.6 | AK63: 85 | AL63: 0 | AM63: 98.8 | AN63: 95.4 | AO63: 100 | AP63: 0.4 | AQ63: 0.4 | AR63: 0.6 | AS63: 0.3 | AT63: 0.5 | AU63: 100 | AV63: 81.9 | AW63: 99.9 | AX63: 1 | AY63: 90.9 | AZ63: 2.1
A64: 2012-10-02T12:00:00 | B64: 0.1 | C64: 0.3 | D64: 7.8 | E64: 0.2 | F64: 100 | G64: 81.5 | H64: 100 | I64: 100 | J64: 100 | K64: 72.2 | L64: 0.6 | M64: 100 | N64: 0.4 | O64: 100 | P64: 4.5 | Q64: 86.1 | R64: 0.5 | S64: 1 | T64: 0 | U64: 99.4 | V64: 100 | W64: 99.9 | X64: 98.5 | Y64: 98.5 | Z64: 0 | AA64: 14.8 | AB64: 4.9 | AC64: 0.5 | AD64: 87.1 | AE64: 88.1 | AF64: 99.9 | AG64: 98.9 | AH64: 100 | AI64: 36.1 | AJ64: 0.6 | AK64: 85.7 | AL64: 0 | AM64: 98.5 | AN64: 96.6 | AO64: 100 | AP64: 0.4 | AQ64: 0.4 | AR64: 0.6 | AS64: 0.3 | AT64: 0.5 | AU64: 100 | AV64: 81.1 | AW64: 99.9 | AX64: 0.5 | AY64: 90.3 | AZ64: 2.1
A65: 2012-10-03T12:00:00 | B65: 0.1 | C65: 0.3 | D65: 9.3 | E65: 0.2 | F65: 100 | G65: 86.3 | H65: 100 | I65: 100 | J65: 100 | K65: 68.1 | L65: 1.2 | M65: 100 | N65: 0.4 | O65: 100 | P65: 4.3 | Q65: 85.2 | R65: 0.5 | S65: 1 | T65: 0 | U65: 99.4 | V65: 100 | W65: 99.9 | X65: 98.5 | Y65: 98.5 | Z65: 0 | AA65: 14.8 | AB65: 4.9 | AC65: 0.5 | AD65: 87.1 | AE65: 85.9 | AF65: 99.9 | AG65: 98.9 | AH65: 100 | AI65: 37.6 | AJ65: 0.6 | AK65: 85.9 | AL65: 0 | AM65: 99.3 | AN65: 98 | AO65: 100 | AP65: 0.4 | AQ65: 0.4 | AR65: 0.6 | AS65: 0.3 | AT65: 0.5 | AU65: 100 | AV65: 81.4 | AW65: 99.9 | AX65: 0.3 | AY65: 89.9 | AZ65: 2.1
A66: 2012-10-04T12:00:00 | B66: 0.1 | C66: 0 | D66: 5.9 | E66: 0.2 | F66: 100 | G66: 79.8 | H66: 100 | I66: 100 | J66: 100 | K66: 57.6 | L66: 0.9 | M66: 100 | N66: 0 | O66: 100 | P66: 4.3 | Q66: 76.4 | R66: 0.5 | S66: 0 | T66: 0 | U66: 99.4 | V66: 100 | W66: 100 | X66: 98 | Y66: 98.5 | Z66: 0 | AA66: 11.4 | AB66: 4.8 | AC66: 0.5 | AD66: 86.2 | AE66: 82.8 | AF66: 99.8 | AG66: 98.9 | AH66: 100 | AI66: 35.8 | AJ66: 0.5 | AK66: 78.8 | AL66: 0 | AM66: 99.3 | AN66: 95.8 | AO66: 100 | AP66: 0.4 | AQ66: 0.4 | AR66: 0.5 | AS66: 0.3 | AT66: 0.6 | AU66: 100 | AV66: 72.5 | AW66: 99.9 | AX66: 0.3 | AY66: 84.6 | AZ66: 2.1
A67: 2012-10-05T12:00:00 | B67: 0.1 | C67: 0 | D67: 5.7 | E67: 0.2 | F67: 100 | G67: 70.6 | H67: 100 | I67: 100 | J67: 100 | K67: 51 | L67: 0.9 | M67: 100 | N67: 0 | O67: 100 | P67: 3.9 | Q67: 44 | R67: 0.5 | S67: 0 | T67: 0 | U67: 99.4 | V67: 100 | W67: 100 | X67: 94.4 | Y67: 98.7 | Z67: 0 | AA67: 11.8 | AB67: 3.9 | AC67: 0.5 | AD67: 79.8 | AE67: 66.1 | AF67: 99.9 | AG67: 98.9 | AH67: 100 | AI67: 33 | AJ67: 0.5 | AK67: 68.4 | AL67: 0 | AM67: 99.1 | AN67: 94.1 | AO67: 100 | AP67: 0.4 | AQ67: 0.4 | AR67: 0.5 | AS67: 0.3 | AT67: 0.6 | AU67: 100 | AV67: 57.7 | AW67: 99.9 | AX67: 0.1 | AY67: 56.8 | AZ67: 2.1
A68: 2012-10-06T12:00:00 | B68: 0.1 | C68: 0 | D68: 7.1 | E68: 0 | F68: 100 | G68: 61.5 | H68: 100 | I68: 100 | J68: 100 | K68: 53.3 | L68: 0.9 | M68: 100 | N68: 0 | O68: 100 | P68: 4 | Q68: 56.8 | R68: 0.5 | S68: 0 | T68: 0 | U68: 99.4 | V68: 100 | W68: 99.9 | X68: 94.3 | Y68: 98.5 | Z68: 0 | AA68: 11.5 | AB68: 3.9 | AC68: 0.5 | AD68: 83.2 | AE68: 71.1 | AF68: 99.9 | AG68: 97.7 | AH68: 100 | AI68: 32.5 | AJ68: 0.5 | AK68: 73.6 | AL68: 0 | AM68: 99.1 | AN68: 97.5 | AO68: 100 | AP68: 0.5 | AQ68: 0.4 | AR68: 0.5 | AS68: 0.3 | AT68: 0.6 | AU68: 100 | AV68: 59.5 | AW68: 99.9 | AX68: 0.1 | AY68: 79.3 | AZ68: 2.1
A69: 2012-10-07T12:00:00 | B69: 0.1 | C69: 0 | D69: 4.5 | E69: 0 | F69: 100 | G69: 62.7 | H69: 100 | I69: 100 | J69: 100 | K69: 45.7 | L69: 0.9 | M69: 100 | N69: 0 | O69: 100 | P69: 3.2 | Q69: 60.1 | R69: 0.5 | S69: 0 | T69: 0 | U69: 99.4 | V69: 100 | W69: 98.6 | X69: 95.1 | Y69: 97.1 | Z69: 0 | AA69: 10.1 | AB69: 4.3 | AC69: 0.5 | AD69: 76.7 | AE69: 72.5 | AF69: 99.9 | AG69: 98.4 | AH69: 100 | AI69: 30.5 | AJ69: 0.5 | AK69: 72.2 | AL69: 0 | AM69: 99.3 | AN69: 95.1 | AO69: 100 | AP69: 0.5 | AQ69: 0.4 | AR69: 0.5 | AS69: 0.3 | AT69: 0.6 | AU69: 100 | AV69: 57.9 | AW69: 99.9 | AX69: 0.1 | AY69: 74.5 | AZ69: 2.1
A70: 2012-10-08T12:00:00 | B70: 0.1 | C70: 0 | D70: 5.1 | E70: 0 | F70: 100 | G70: 62.2 | H70: 100 | I70: 100 | J70: 100 | K70: 46.7 | L70: 0.9 | M70: 100 | N70: 0 | O70: 100 | P70: 3.2 | Q70: 64.3 | R70: 0.5 | S70: 0 | T70: 0 | U70: 99.4 | V70: 100 | W70: 99.9 | X70: 94.4 | Y70: 96 | Z70: 0 | AA70: 10.2 | AB70: 4.3 | AC70: 0 | AD70: 75.1 | AE70: 71.6 | AF70: 99.9 | AG70: 93.7 | AH70: 100 | AI70: 28.6 | AJ70: 0.5 | AK70: 71.8 | AL70: 0 | AM70: 99.1 | AN70: 90.6 | AO70: 100 | AP70: 0.5 | AQ70: 0.4 | AR70: 0.5 | AS70: 0.3 | AT70: 0.6 | AU70: 100 | AV70: 60.1 | AW70: 99.5 | AX70: 0.1 | AY70: 76.7 | AZ70: 2.1
A71: 2012-10-09T12:00:00 | B71: 0.1 | C71: 0 | D71: 3.3 | E71: 0 | F71: 100 | G71: 67.5 | H71: 100 | I71: 100 | J71: 100 | K71: 41.7 | L71: 0.8 | M71: 100 | N71: 0 | O71: 100 | P71: 2.9 | Q71: 73.7 | R71: 0.5 | S71: 0 | T71: 0 | U71: 99.4 | V71: 100 | W71: 99.9 | X71: 93.9 | Y71: 96.1 | Z71: 0 | AA71: 10 | AB71: 3.5 | AC71: 0 | AD71: 83.5 | AE71: 79.1 | AF71: 99.9 | AG71: 94.4 | AH71: 100 | AI71: 28.5 | AJ71: 0.5 | AK71: 64 | AL71: 0 | AM71: 99 | AN71: 94.2 | AO71: 100 | AP71: 0.5 | AQ71: 0.4 | AR71: 0.4 | AS71: 0.3 | AT71: 0.6 | AU71: 100 | AV71: 64.7 | AW71: 99.5 | AX71: 0.1 | AY71: 76.7 | AZ71: 2.1
A72: 2012-10-10T12:00:00 | B72: 0.1 | C72: 0 | D72: 2.6 | E72: 0 | F72: 100 | G72: 49 | H72: 100 | I72: 100 | J72: 100 | K72: 37.1 | L72: 0.9 | M72: 100 | N72: 0 | O72: 100 | P72: 2.7 | Q72: 65.2 | R72: 0.5 | S72: 0 | T72: 0 | U72: 99.4 | V72: 100 | W72: 98.6 | X72: 95.1 | Y72: 97.1 | Z72: 0 | AA72: 7.8 | AB72: 4.3 | AC72: 0 | AD72: 79.5 | AE72: 65 | AF72: 99.9 | AG72: 93.7 | AH72: 100 | AI72: 28.8 | AJ72: 0.5 | AK72: 57.1 | AL72: 0 | AM72: 99 | AN72: 91.5 | AO72: 100 | AP72: 0.5 | AQ72: 0.4 | AR72: 0.4 | AS72: 0.3 | AT72: 0 | AU72: 100 | AV72: 50.1 | AW72: 99.5 | AX72: 0.1 | AY72: 77.8 | AZ72: 2.1
A73: 2012-10-11T12:00:00 | B73: 0.1 | C73: 0 | D73: 2.7 | E73: 0 | F73: 100 | G73: 53.3 | H73: 100 | I73: 100 | J73: 100 | K73: 40.4 | L73: 1 | M73: 100 | N73: 0 | O73: 100 | P73: 2.2 | Q73: 60.6 | R73: 0.5 | S73: 0 | T73: 0 | U73: 99.4 | V73: 100 | W73: 99.4 | X73: 92.9 | Y73: 96.7 | Z73: 0 | AA73: 7.8 | AB73: 1.1 | AC73: 0 | AD73: 79.5 | AE73: 68 | AF73: 99.9 | AG73: 96.6 | AH73: 100 | AI73: 29.1 | AJ73: 0.5 | AK73: 68.3 | AL73: 0 | AM73: 99 | AN73: 90 | AO73: 100 | AP73: 0.5 | AQ73: 0.4 | AR73: 0.4 | AS73: 0.3 | AT73: 0 | AU73: 100 | AV73: 58.5 | AW73: 99.5 | AX73: 0.3 | AY73: 74.2 | AZ73: 2.1
A74: 2012-10-12T12:00:00 | B74: 0.1 | C74: 0 | D74: 2.7 | E74: 0 | F74: 100 | G74: 53.3 | H74: 100 | I74: 100 | J74: 100 | K74: 40.4 | L74: 1 | M74: 100 | N74: 0 | O74: 100 | P74: 2.2 | Q74: 60.6 | R74: 0.5 | S74: 0 | T74: 0 | U74: 99.4 | V74: 100 | W74: 99.4 | X74: 92.9 | Y74: 96.7 | Z74: 0 | AA74: 7.8 | AB74: 1.1 | AC74: 0 | AD74: 79.5 | AE74: 68 | AF74: 99.9 | AG74: 96.6 | AH74: 100 | AI74: 29.1 | AJ74: 0.5 | AK74: 68.3 | AL74: 0 | AM74: 99 | AN74: 90 | AO74: 100 | AP74: 0.5 | AQ74: 0.4 | AR74: 0.4 | AS74: 0.3 | AT74: 0 | AU74: 100 | AV74: 58.5 | AW74: 99.5 | AX74: 0.3 | AY74: 74.2 | AZ74: 2.1
A75: 2012-10-13T12:00:00 | B75: 0.1 | C75: 0 | D75: 3.4 | E75: 0 | F75: 100 | G75: 42.8 | H75: 100 | I75: 100 | J75: 100 | K75: 26.8 | L75: 0.4 | M75: 100 | N75: 0 | O75: 100 | P75: 1.7 | Q75: 60.6 | R75: 0.5 | S75: 0 | T75: 0 | U75: 99.5 | V75: 100 | W75: 98.7 | X75: 91.1 | Y75: 96.4 | Z75: 0 | AA75: 4.3 | AB75: 0.7 | AC75: 0 | AD75: 75.5 | AE75: 59.7 | AF75: 99.9 | AG75: 95.5 | AH75: 100 | AI75: 25.7 | AJ75: 0.5 | AK75: 62.5 | AL75: 0 | AM75: 95.8 | AN75: 87.2 | AO75: 100 | AP75: 0.5 | AQ75: 0.4 | AR75: 1.6 | AS75: 0.2 | AT75: 0 | AU75: 100 | AV75: 42 | AW75: 99.5 | AX75: 0.3 | AY75: 72.4 | AZ75: 2.1
A76: 2012-10-14T12:00:00 | B76: 0.1 | C76: 0 | D76: 4 | E76: 0 | F76: 100 | G76: 45.2 | H76: 100 | I76: 100 | J76: 100 | K76: 27.4 | L76: 0.5 | M76: 100 | N76: 0 | O76: 100 | P76: 1.7 | Q76: 59.8 | R76: 0.5 | S76: 0 | T76: 0 | U76: 99.5 | V76: 100 | W76: 99.9 | X76: 91.8 | Y76: 96.4 | Z76: 0 | AA76: 4.1 | AB76: 0.7 | AC76: 0 | AD76: 73.3 | AE76: 66.6 | AF76: 99.9 | AG76: 95.2 | AH76: 100 | AI76: 27.5 | AJ76: 0.5 | AK76: 68.6 | AL76: 0 | AM76: 95.9 | AN76: 87.3 | AO76: 100 | AP76: 0.5 | AQ76: 0.4 | AR76: 1.6 | AS76: 0.1 | AT76: 0 | AU76: 100 | AV76: 44.1 | AW76: 99.6 | AX76: 0.3 | AY76: 75 | AZ76: 2
A77: 2012-10-15T12:00:00 | B77: 0.1 | C77: 0.6 | D77: 2.7 | E77: 0.1 | F77: 100 | G77: 48.6 | H77: 100 | I77: 100 | J77: 100 | K77: 29.5 | L77: 0.1 | M77: 100 | N77: 0 | O77: 100 | P77: 1 | Q77: 64.6 | R77: 0.5 | S77: 0.1 | T77: 0 | U77: 99.7 | V77: 100 | W77: 99.9 | X77: 93.5 | Y77: 97.7 | Z77: 0 | AA77: 2.1 | AB77: 0.7 | AC77: 0 | AD77: 77.5 | AE77: 66.9 | AF77: 99.8 | AG77: 95.4 | AH77: 100 | AI77: 25.8 | AJ77: 0.5 | AK77: 68.6 | AL77: 0 | AM77: 96.8 | AN77: 92.8 | AO77: 100 | AP77: 0.5 | AQ77: 0.4 | AR77: 0.3 | AS77: 0.1 | AT77: 0 | AU77: 100 | AV77: 48.6 | AW77: 99.6 | AX77: 0.3 | AY77: 80.5 | AZ77: 0.6
A78: 2012-10-16T12:00:00 | B78: 0.1 | C78: 0.6 | D78: 3.1 | E78: 0.1 | F78: 100 | G78: 49 | H78: 100 | I78: 100 | J78: 100 | K78: 32.4 | L78: 0.1 | M78: 100 | N78: 0 | O78: 100 | P78: 0.7 | Q78: 62.2 | R78: 0.5 | S78: 0.1 | T78: 0 | U78: 99.7 | V78: 100 | W78: 99.9 | X78: 95.3 | Y78: 98.2 | Z78: 0 | AA78: 4.9 | AB78: 0.5 | AC78: 0 | AD78: 72.8 | AE78: 66.6 | AF78: 99.9 | AG78: 95.2 | AH78: 100 | AI78: 27.3 | AJ78: 0.5 | AK78: 65.6 | AL78: 0 | AM78: 98.9 | AN78: 87.9 | AO78: 100 | AP78: 0.5 | AQ78: 0.4 | AR78: 0.3 | AS78: 0.2 | AT78: 0 | AU78: 100 | AV78: 51.1 | AW78: 99.6 | AX78: 0.3 | AY78: 78.6 | AZ78: 0.5
A79: 2012-10-17T12:00:00 | B79: 0.1 | C79: 0 | D79: 2.8 | E79: 0 | F79: 100 | G79: 52.3 | H79: 100 | I79: 100 | J79: 100 | K79: 24.7 | L79: 0.5 | M79: 100 | N79: 0 | O79: 100 | P79: 0.8 | Q79: 63.3 | R79: 0.5 | S79: 0 | T79: 0 | U79: 99.7 | V79: 100 | W79: 98.7 | X79: 96.1 | Y79: 97.5 | Z79: 0 | AA79: 2.5 | AB79: 0.5 | AC79: 0 | AD79: 76.7 | AE79: 68.9 | AF79: 97.5 | AG79: 97.8 | AH79: 100 | AI79: 27 | AJ79: 0.5 | AK79: 70.2 | AL79: 0 | AM79: 99.2 | AN79: 92.7 | AO79: 100 | AP79: 0.1 | AQ79: 0.4 | AR79: 1.6 | AS79: 0 | AT79: 0 | AU79: 100 | AV79: 48.2 | AW79: 99.6 | AX79: 0.3 | AY79: 78.8 | AZ79: 2
A80: 2012-10-18T12:00:00 | B80: 0.1 | C80: 0 | D80: 2.5 | E80: 0 | F80: 100 | G80: 48.4 | H80: 100 | I80: 100 | J80: 100 | K80: 21.6 | L80: 0.5 | M80: 100 | N80: 0 | O80: 100 | P80: 0.9 | Q80: 69.6 | R80: 0.5 | S80: 0 | T80: 0 | U80: 99.5 | V80: 100 | W80: 98.7 | X80: 94.8 | Y80: 95 | Z80: 0 | AA80: 3.1 | AB80: 0.9 | AC80: 0 | AD80: 78.8 | AE80: 69.9 | AF80: 99.5 | AG80: 97.4 | AH80: 100 | AI80: 24.8 | AJ80: 0.5 | AK80: 65.1 | AL80: 0 | AM80: 99.2 | AN80: 88.4 | AO80: 100 | AP80: 0.1 | AQ80: 0.2 | AR80: 1.6 | AS80: 0 | AT80: 0 | AU80: 100 | AV80: 43.7 | AW80: 99.6 | AX80: 0.1 | AY80: 73.6 | AZ80: 1.9
A81: 2012-10-19T12:00:00 | B81: 0.1 | C81: 0 | D81: 2.1 | E81: 0 | F81: 100 | G81: 49.3 | H81: 100 | I81: 100 | J81: 100 | K81: 22.1 | L81: 0.5 | M81: 100 | N81: 0 | O81: 100 | P81: 0.5 | Q81: 68.3 | R81: 0.5 | S81: 0 | T81: 0 | U81: 99.5 | V81: 100 | W81: 98.8 | X81: 94.4 | Y81: 97.6 | Z81: 0 | AA81: 3 | AB81: 0.9 | AC81: 0 | AD81: 78.5 | AE81: 65.4 | AF81: 96 | AG81: 97.2 | AH81: 100 | AI81: 23.6 | AJ81: 0.5 | AK81: 67.4 | AL81: 0 | AM81: 99.5 | AN81: 86.9 | AO81: 100 | AP81: 0.1 | AQ81: 0.2 | AR81: 1.6 | AS81: 0 | AT81: 0 | AU81: 100 | AV81: 41.8 | AW81: 99.6 | AX81: 0.1 | AY81: 77.7 | AZ81: 1.9
A82: 2012-10-20T12:00:00 | B82: 0.1 | C82: 0 | D82: 2.1 | E82: 0 | F82: 100 | G82: 46.6 | H82: 100 | I82: 100 | J82: 100 | K82: 20.2 | L82: 0.5 | M82: 100 | N82: 0 | O82: 100 | P82: 0.7 | Q82: 68.5 | R82: 0.5 | S82: 0 | T82: 0 | U82: 99.7 | V82: 100 | W82: 98.8 | X82: 95.1 | Y82: 97.6 | Z82: 0 | AA82: 2.5 | AB82: 0.9 | AC82: 0 | AD82: 80.3 | AE82: 62 | AF82: 97.7 | AG82: 97.7 | AH82: 100 | AI82: 24 | AJ82: 0.5 | AK82: 62.4 | AL82: 0 | AM82: 99.1 | AN82: 86.1 | AO82: 100 | AP82: 0.1 | AQ82: 0.4 | AR82: 1.6 | AS82: 0 | AT82: 0 | AU82: 100 | AV82: 41.8 | AW82: 99.6 | AX82: 0.3 | AY82: 76.1 | AZ82: 1.9
A83: 2012-10-21T12:00:00 | B83: 0.1 | C83: 1.6 | D83: 1.7 | E83: 0 | F83: 100 | G83: 45 | H83: 100 | I83: 100 | J83: 100 | K83: 20.3 | L83: 0.5 | M83: 100 | N83: 0 | O83: 100 | P83: 0.6 | Q83: 68.4 | R83: 0.5 | S83: 0 | T83: 0 | U83: 99.7 | V83: 100 | W83: 98.8 | X83: 94.7 | Y83: 95.1 | Z83: 0 | AA83: 1.5 | AB83: 0.9 | AC83: 0 | AD83: 82 | AE83: 53.9 | AF83: 97.5 | AG83: 97.6 | AH83: 100 | AI83: 21.1 | AJ83: 0.5 | AK83: 64.5 | AL83: 0 | AM83: 99.1 | AN83: 88.3 | AO83: 100 | AP83: 0 | AQ83: 0.4 | AR83: 0.4 | AS83: 0 | AT83: 0 | AU83: 100 | AV83: 37.3 | AW83: 99.6 | AX83: 0.5 | AY83: 72.8 | AZ83: 1.9
A84: 2012-10-22T12:00:00 | B84: 0.1 | C84: 1.6 | D84: 1.1 | E84: 0 | F84: 100 | G84: 49.6 | H84: 100 | I84: 100 | J84: 100 | K84: 20.3 | L84: 0.5 | M84: 100 | N84: 0 | O84: 100 | P84: 0.6 | Q84: 67.8 | R84: 0 | S84: 0 | T84: 0 | U84: 99.9 | V84: 100 | W84: 98.8 | X84: 97.4 | Y84: 97.4 | Z84: 0 | AA84: 1.4 | AB84: 0.9 | AC84: 0 | AD84: 92 | AE84: 65 | AF84: 97.7 | AG84: 97 | AH84: 100 | AI84: 10.9 | AJ84: 0.1 | AK84: 65 | AL84: 0.2 | AM84: 99.1 | AN84: 91.9 | AO84: 100 | AP84: 0.1 | AQ84: 0.1 | AR84: 1.7 | AS84: 0 | AT84: 0 | AU84: 100 | AV84: 45.8 | AW84: 96.9 | AX84: 0.5 | AY84: 77.5 | AZ84: 1.8
A85: 2012-10-23T12:00:00 | B85: 0.2 | C85: 1.6 | D85: 0.8 | E85: 0 | F85: 100 | G85: 46.1 | H85: 100 | I85: 100 | J85: 100 | K85: 21.2 | L85: 0.3 | M85: 100 | N85: 0 | O85: 100 | P85: 0.5 | Q85: 67.3 | R85: 0 | S85: 0 | T85: 0.1 | U85: 99.9 | V85: 100 | W85: 99.6 | X85: 90.9 | Y85: 97.4 | Z85: 0 | AA85: 1.4 | AB85: 0.3 | AC85: 0.1 | AD85: 80.2 | AE85: 57.4 | AF85: 98 | AG85: 98.6 | AH85: 100 | AI85: 7.7 | AJ85: 0.1 | AK85: 61.4 | AL85: 0.2 | AM85: 99.1 | AN85: 85.4 | AO85: 100 | AP85: 0 | AQ85: 0.1 | AR85: 0.1 | AS85: 0 | AT85: 0 | AU85: 100 | AV85: 40.8 | AW85: 99.6 | AX85: 0.3 | AY85: 73.7 | AZ85: 0.1
A86: 2012-10-24T12:00:00
A87: 2012-10-25T12:00:00
A88: 2012-10-26T12:00:00
A89: 2012-10-27T12:00:00
A90: 2012-10-28T12:00:00
A91: 2012-10-29T12:00:00
A92: 2012-10-30T12:00:00
A93: 2012-10-31T12:00:00
A94: 2012-11-01T12:00:00
A95: 2012-11-02T12:00:00
A96: 2012-11-03T12:00:00
A97: 2012-11-04T12:00:00
A98: 2012-11-05T12:00:00
A99: 2012-11-06T12:00:00
A101: State | B101: Alabama | C101: Alaska | D101: Arizona | E101: Arkansas | F101: California | G101: Colorado | H101: Connecticut | I101: DC | J101: Delaware | K101: Florida | L101: Georgia | M101: Hawaii | N101: Idaho | O101: Illinois | P101: Indiana | Q101: Iowa | R101: Kansas | S101: Kentucky | T101: Louisiana | U101: Maine | V101: Maryland | W101: Massachusetts | X101: Michigan | Y101: Minnesota | Z101: Mississippi | AA101: Missouri | AB101: Montana | AC101: Nebraska | AD101: Nevada | AE101: New Hampshire | AF101: New Jersey | AG101: New Mexico | AH101: New York | AI101: North Carolina | AJ101: North Dakota | AK101: Ohio | AL101: Oklahoma | AM101: Oregon | AN101: Pennsylvania | AO101: Rhode Island | AP101: South Carolina | AQ101: South Dakota | AR101: Tennessee | AS101: Texas | AT101: Utah | AU101: Vermont | AV101: Virginia | AW101: Washington | AX101: West Virginia | AY101: Wisconsin | AZ101: Wyoming
A102: 2012-08-10T12:00:00 | B102: =(100-B3) -> 100 | C102: 100 | D102: 95.5 | E102: 100 | F102: 0 | G102: 33.7 | H102: 0 | I102: 0 | J102: 0 | K102: 68.4 | L102: 100 | M102: 0 | N102: 98.9 | O102: 0 | P102: 97.9 | Q102: 29.3 | R102: 99.7 | S102: 98.6 | T102: 100 | U102: 0.3 | V102: 0 | W102: 0.1 | X102: 7.8 | Y102: 10.3 | Z102: 100 | AA102: 96.3 | AB102: 91.5 | AC102: 100 | AD102: 24.1 | AE102: 40.5 | AF102: 0.8 | AG102: 1.2 | AH102: =(100-AH3) -> 0.3 | AI102: 91 | AJ102: 91.5 | AK102: 44 | AL102: 100 | AM102: 4.4 | AN102: 11.6 | AO102: 0 | AP102: 98.4 | AQ102: 100 | AR102: 72.4 | AS102: 99.8 | AT102: 100 | AU102: 0 | AV102: 47.2 | AW102: 1.4 | AX102: 97.3 | AY102: 21.8 | AZ102: 100
A103: 2012-08-11T12:00:00 | B103: =(100-B4) -> 100 | C103: 100 | D103: 96.3 | E103: 100 | F103: 0 | G103: 33.7 | H103: 0 | I103: 0 | J103: 0 | K103: 68.3 | L103: 100 | M103: 0 | N103: 98.9 | O103: 0 | P103: 97.9 | Q103: 29.3 | R103: 99.7 | S103: 98.6 | T103: 100 | U103: 0.3 | V103: 0 | W103: 0.1 | X103: 7.8 | Y103: 10.3 | Z103: 100 | AA103: 96.3 | AB103: 91.5 | AC103: 100 | AD103: 24.3 | AE103: 40.5 | AF103: 0.8 | AG103: 1.2 | AH103: =(100-AH4) -> 0.3 | AI103: 88.8 | AJ103: 89.4 | AK103: 41.6 | AL103: 100 | AM103: 4.4 | AN103: 11.5 | AO103: 0 | AP103: 98.4 | AQ103: 100 | AR103: 72.4 | AS103: 99.8 | AT103: 100 | AU103: 0 | AV103: 47.2 | AW103: 1.4 | AX103: 97.3 | AY103: 21.6 | AZ103: 100
A104: 2012-08-12T12:00:00 | B104: =(100-B5) -> 100 | C104: 100 | D104: 95.1 | E104: 100 | F104: 0 | G104: 37.3 | H104: 0 | I104: 0 | J104: 0 | K104: 68.8 | L104: 100 | M104: 0 | N104: 98.9 | O104: 0 | P104: 97.9 | Q104: 29.6 | R104: 99.7 | S104: 98.6 | T104: 100 | U104: 0.3 | V104: 0 | W104: 0.1 | X104: 7.8 | Y104: 10.3 | Z104: 100 | AA104: 96.3 | AB104: 91.5 | AC104: 100 | AD104: 24.3 | AE104: 42.1 | AF104: 0.8 | AG104: 1.2 | AH104: =(100-AH5) -> 0.3 | AI104: 88.8 | AJ104: 89.4 | AK104: 41.6 | AL104: 100 | AM104: 4.4 | AN104: 9.5 | AO104: 0 | AP104: 98.4 | AQ104: 100 | AR104: 72.4 | AS104: 99.8 | AT104: 100 | AU104: 0 | AV104: 47.3 | AW104: 1.4 | AX104: 97.3 | AY104: 21.6 | AZ104: 100
A105: 2012-08-13T12:00:00 | B105: =(100-B6) -> 100 | C105: 100 | D105: 96.3 | E105: 100 | F105: 0 | G105: 39.6 | H105: 0 | I105: 0 | J105: 0 | K105: 68.8 | L105: 100 | M105: 0 | N105: 98.9 | O105: 0 | P105: 97.9 | Q105: 29.6 | R105: 99.7 | S105: 98.6 | T105: 100 | U105: 0.3 | V105: 0 | W105: 0.1 | X105: 7.8 | Y105: 10.1 | Z105: 100 | AA105: 96.3 | AB105: 91.5 | AC105: 100 | AD105: 24.3 | AE105: 42.1 | AF105: 0.8 | AG105: 1.2 | AH105: =(100-AH6) -> 0.3 | AI105: 90.6 | AJ105: 91.1 | AK105: 41.6 | AL105: 100 | AM105: 4.4 | AN105: 9.5 | AO105: 0 | AP105: 98.4 | AQ105: 100 | AR105: 72.4 | AS105: 99.8 | AT105: 100 | AU105: 0 | AV105: 47.3 | AW105: 1.4 | AX105: 97.3 | AY105: 21.6 | AZ105: 100
A106: 2012-08-14T12:00:00 | B106: =(100-B7) -> 100 | C106: 100 | D106: 96.3 | E106: 100 | F106: 0 | G106: 39.6 | H106: 0 | I106: 0 | J106: 0 | K106: 68.8 | L106: 100 | M106: 0 | N106: 98.9 | O106: 0 | P106: 97.9 | Q106: 39.5 | R106: 99.7 | S106: 98.6 | T106: 100 | U106: 0.3 | V106: 0 | W106: 0.1 | X106: 7.8 | Y106: 10.1 | Z106: 100 | AA106: 96.3 | AB106: 91.5 | AC106: 100 | AD106: 24.3 | AE106: 42.1 | AF106: 0.8 | AG106: 1.2 | AH106: =(100-AH7) -> 0.3 | AI106: 91.1 | AJ106: 91.5 | AK106: 43.4 | AL106: 100 | AM106: 4.4 | AN106: 9.5 | AO106: 0 | AP106: 98.4 | AQ106: 100 | AR106: 72.4 | AS106: 99.8 | AT106: 100 | AU106: 0 | AV106: 46.7 | AW106: 1.4 | AX106: 97.3 | AY106: 21.6 | AZ106: 100
A107: 2012-08-15T12:00:00 | B107: =(100-B8) -> 100 | C107: 100 | D107: 96.3 | E107: 100 | F107: 0 | G107: 35.1 | H107: 0 | I107: 0 | J107: 0 | K107: 68.8 | L107: 100 | M107: 0 | N107: 98.9 | O107: 0 | P107: 94.5 | Q107: 39.5 | R107: 99.7 | S107: 98.6 | T107: 100 | U107: 0.3 | V107: 0 | W107: 0.1 | X107: 7.8 | Y107: 10.1 | Z107: 100 | AA107: 96.3 | AB107: 95.3 | AC107: 100 | AD107: 24.3 | AE107: 40.5 | AF107: 0.8 | AG107: 1.2 | AH107: =(100-AH8) -> 0.3 | AI107: 90.8 | AJ107: 91.3 | AK107: 37.2 | AL107: 100 | AM107: 4.4 | AN107: 4.5 | AO107: 0 | AP107: 98.4 | AQ107: 100 | AR107: 72.4 | AS107: 99.8 | AT107: 100 | AU107: 0 | AV107: 47.8 | AW107: 1.4 | AX107: 97.3 | AY107: 21.6 | AZ107: 100
A108: 2012-08-16T12:00:00 | B108: =(100-B9) -> 100 | C108: 100 | D108: 96.3 | E108: 100 | F108: 0 | G108: 35.1 | H108: 0 | I108: 0 | J108: 0 | K108: 68.1 | L108: 100 | M108: 0 | N108: 98.9 | O108: 0 | P108: 94.5 | Q108: 39.5 | R108: 99.7 | S108: 98.6 | T108: 100 | U108: 0.3 | V108: 0 | W108: 0.1 | X108: 7.8 | Y108: 10.3 | Z108: 100 | AA108: 96.3 | AB108: 95.3 | AC108: 100 | AD108: 24.3 | AE108: 37.8 | AF108: 0.8 | AG108: 2 | AH108: =(100-AH9) -> 0.3 | AI108: 86.9 | AJ108: 87.5 | AK108: 37.4 | AL108: 100 | AM108: 4.4 | AN108: 8.4 | AO108: 0 | AP108: 98.4 | AQ108: 100 | AR108: 98.8 | AS108: 99.8 | AT108: 100 | AU108: 0 | AV108: 47.8 | AW108: 1.4 | AX108: 97.3 | AY108: 20.6 | AZ108: 100
A109: 2012-08-17T12:00:00 | B109: =(100-B10) -> 100 | C109: 100 | D109: 96.3 | E109: 100 | F109: 0 | G109: 39.6 | H109: 0 | I109: 0 | J109: 0 | K109: 68.8 | L109: 100 | M109: 0 | N109: 98.9 | O109: 0 | P109: 94.5 | Q109: 39.5 | R109: 99.7 | S109: 98.6 | T109: 100 | U109: 0.3 | V109: 0 | W109: 0.1 | X109: 7.8 | Y109: 9.6 | Z109: 100 | AA109: 96.3 | AB109: 96.5 | AC109: 100 | AD109: 24.1 | AE109: 34.7 | AF109: 0.8 | AG109: 2 | AH109: =(100-AH10) -> 0.3 | AI109: 86.8 | AJ109: 87.4 | AK109: 37.4 | AL109: 100 | AM109: 4.4 | AN109: 10.6 | AO109: 0 | AP109: 98.4 | AQ109: 100 | AR109: 98.8 | AS109: 99.8 | AT109: 100 | AU109: 0 | AV109: 46 | AW109: 1.4 | AX109: 97.3 | AY109: 18.7 | AZ109: 100
A110: 2012-08-18T12:00:00 | B110: =(100-B11) -> 100 | C110: 100 | D110: 96.2 | E110: 100 | F110: 0 | G110: 38.2 | H110: 0 | I110: 0 | J110: 0 | K110: 69.2 | L110: 100 | M110: 0 | N110: 99.1 | O110: 0 | P110: 94.4 | Q110: 39.7 | R110: 99.7 | S110: 98.7 | T110: 100 | U110: 0.4 | V110: 0 | W110: 0.2 | X110: 7.9 | Y110: 4.9 | Z110: 100 | AA110: 96 | AB110: 96.3 | AC110: 100 | AD110: 26.6 | AE110: 36 | AF110: 0.9 | AG110: 2.2 | AH110: =(100-AH11) -> 0.3 | AI110: 86.9 | AJ110: 98.3 | AK110: 39.1 | AL110: 100 | AM110: 4.6 | AN110: 11.4 | AO110: 0 | AP110: 98.4 | AQ110: 100 | AR110: 98.9 | AS110: 99.8 | AT110: 100 | AU110: 0 | AV110: 46.3 | AW110: 1.5 | AX110: 97.3 | AY110: 19 | AZ110: 100
A111: 2012-08-19T12:00:00 | B111: =(100-B12) -> 100 | C111: 100 | D111: 96 | E111: 100 | F111: 0 | G111: 38.2 | H111: 0 | I111: 0 | J111: 0 | K111: 53.2 | L111: 100 | M111: 0 | N111: 99.1 | O111: 0 | P111: 94.4 | Q111: 40.3 | R111: 99.7 | S111: 98.7 | T111: 100 | U111: 0.4 | V111: 0 | W111: 0.2 | X111: 7.9 | Y111: 4.9 | Z111: 100 | AA111: 96 | AB111: 96.3 | AC111: 100 | AD111: 26.6 | AE111: 36 | AF111: 0.9 | AG111: 2.2 | AH111: =(100-AH12) -> 0.3 | AI111: 84.4 | AJ111: 98.3 | AK111: 39.3 | AL111: 100 | AM111: 4.6 | AN111: 13.1 | AO111: 0 | AP111: 98.4 | AQ111: 100 | AR111: 98.9 | AS111: 99.8 | AT111: 100 | AU111: 0 | AV111: 49.8 | AW111: 1.5 | AX111: 97.3 | AY111: 28.5 | AZ111: 100
A112: 2012-08-20T12:00:00 | B112: =(100-B13) -> 100 | C112: 100 | D112: 95.1 | E112: 100 | F112: 0 | G112: 37.9 | H112: 0 | I112: 0 | J112: 0 | K112: 55.1 | L112: 100 | M112: 0 | N112: 99.1 | O112: 0 | P112: 94.4 | Q112: 41 | R112: 99.7 | S112: 98.7 | T112: 100 | U112: 0.3 | V112: 0 | W112: 9.9 | X112: 7.9 | Y112: 4.9 | Z112: 100 | AA112: 96 | AB112: 95.8 | AC112: 100 | AD112: 26.9 | AE112: 36 | AF112: 0.6 | AG112: 2.2 | AH112: =(100-AH13) -> 0.3 | AI112: 84.5 | AJ112: 98.3 | AK112: 41.3 | AL112: 100 | AM112: 4.6 | AN112: 13.1 | AO112: 0 | AP112: 100 | AQ112: 100 | AR112: 98.2 | AS112: 99.8 | AT112: 100 | AU112: 0 | AV112: 46.4 | AW112: 4.6 | AX112: 97.3 | AY112: 27.1 | AZ112: 100
A113: 2012-08-21T12:00:00 | B113: =(100-B14) -> 100 | C113: 100 | D113: 95.1 | E113: 100 | F113: 0 | G113: 37.9 | H113: 0 | I113: 0 | J113: 0 | K113: 55.1 | L113: 100 | M113: 0 | N113: 99.1 | O113: 0 | P113: 94.4 | Q113: 41 | R113: 99.7 | S113: 98.7 | T113: 100 | U113: 0.3 | V113: 0 | W113: 9.9 | X113: 7.9 | Y113: 4.9 | Z113: 100 | AA113: 96 | AB113: 95.8 | AC113: 100 | AD113: 26.9 | AE113: 36.6 | AF113: 0.6 | AG113: 2.2 | AH113: =(100-AH14) -> 0.3 | AI113: 84.5 | AJ113: 98.3 | AK113: 41.3 | AL113: 100 | AM113: 3.2 | AN113: 14.4 | AO113: 0 | AP113: 100 | AQ113: 100 | AR113: 98.2 | AS113: 99.8 | AT113: 100 | AU113: 0 | AV113: 46.4 | AW113: 4.6 | AX113: 97.3 | AY113: 28.4 | AZ113: 100
A114: 2012-08-22T12:00:00 | B114: =(100-B15) -> 100 | C114: 100 | D114: 95 | E114: 100 | F114: 0 | G114: 38.2 | H114: 0 | I114: 0 | J114: 0 | K114: 60.6 | L114: 100 | M114: 0 | N114: 99.1 | O114: 0 | P114: 96.4 | Q114: 44.7 | R114: 99.7 | S114: 98.7 | T114: 100 | U114: 0.3 | V114: 0 | W114: 9.9 | X114: 7.9 | Y114: 4.9 | Z114: 100 | AA114: 94.1 | AB114: 95.8 | AC114: 100 | AD114: 28 | AE114: 42.6 | AF114: 0.6 | AG114: 2.2 | AH114: =(100-AH15) -> 0.3 | AI114: 84.5 | AJ114: 98.3 | AK114: 44.1 | AL114: 100 | AM114: 3.2 | AN114: 14.4 | AO114: 0 | AP114: 100 | AQ114: 100 | AR114: 98.2 | AS114: 99.8 | AT114: 100 | AU114: 0 | AV114: 51.4 | AW114: 4.6 | AX114: 97.3 | AY114: 28.1 | AZ114: 100
A115: 2012-08-23T12:00:00 | B115: =(100-B16) -> 100 | C115: 100 | D115: 95 | E115: 100 | F115: 0 | G115: 38.2 | H115: 0 | I115: 0 | J115: 0 | K115: 60.6 | L115: 100 | M115: 0 | N115: 99.1 | O115: 0 | P115: 96.4 | Q115: 44.7 | R115: 99.7 | S115: 98.7 | T115: 100 | U115: 0.3 | V115: 0 | W115: 9.9 | X115: 7.9 | Y115: 4.9 | Z115: 100 | AA115: 94.1 | AB115: 95.8 | AC115: 100 | AD115: 28 | AE115: 42.6 | AF115: 0.6 | AG115: 2.2 | AH115: =(100-AH16) -> 0.3 | AI115: 84.5 | AJ115: 98.3 | AK115: 44.1 | AL115: 100 | AM115: 3.2 | AN115: 14.4 | AO115: 0 | AP115: 100 | AQ115: 100 | AR115: 98.2 | AS115: 99.8 | AT115: 100 | AU115: 0 | AV115: 51.4 | AW115: 4.6 | AX115: 97.3 | AY115: 28.1 | AZ115: 100
A116: 2012-08-24T12:00:00 | B116: =(100-B17) -> 100 | C116: 100 | D116: 95 | E116: 100 | F116: 0 | G116: 38.2 | H116: 0 | I116: 0 | J116: 0 | K116: 60.6 | L116: 100 | M116: 0 | N116: 99.1 | O116: 0 | P116: 96.4 | Q116: 44.7 | R116: 99.7 | S116: 98.7 | T116: 100 | U116: 0.3 | V116: 0 | W116: 9.9 | X116: 7.9 | Y116: 4.9 | Z116: 100 | AA116: 94.1 | AB116: 95.8 | AC116: 100 | AD116: 28 | AE116: 42.6 | AF116: 0.6 | AG116: 2.2 | AH116: =(100-AH17) -> 0.3 | AI116: 84.5 | AJ116: 98.3 | AK116: 44.1 | AL116: 100 | AM116: 3.2 | AN116: 14.4 | AO116: 0 | AP116: 100 | AQ116: 100 | AR116: 98.2 | AS116: 99.8 | AT116: 100 | AU116: 0 | AV116: 51.4 | AW116: 4.6 | AX116: 97.3 | AY116: 28.1 | AZ116: 100
A117: 2012-08-25T12:00:00 | B117: =(100-B18) -> 100 | C117: 100 | D117: 91.1 | E117: 100 | F117: 0 | G117: 38 | H117: 0 | I117: 0 | J117: 0 | K117: 59.6 | L117: 100 | M117: 0 | N117: 99.1 | O117: 0 | P117: 96.4 | Q117: 44 | R117: 99.7 | S117: 98.7 | T117: 100 | U117: 0.3 | V117: 0 | W117: 1.5 | X117: 7.9 | Y117: 5.2 | Z117: 100 | AA117: 94.1 | AB117: 94.6 | AC117: 100 | AD117: 24.8 | AE117: 41.7 | AF117: 0.6 | AG117: 2.2 | AH117: =(100-AH18) -> 0.3 | AI117: 87 | AJ117: 98.3 | AK117: 42.8 | AL117: 100 | AM117: 3.1 | AN117: 13.7 | AO117: 0 | AP117: 100 | AQ117: 100 | AR117: 99 | AS117: 99.8 | AT117: 100 | AU117: 0 | AV117: 48.6 | AW117: 4.6 | AX117: 97.3 | AY117: 27.5 | AZ117: 100
A118: 2012-08-26T12:00:00 | B118: =(100-B19) -> 100 | C118: 100 | D118: 91.1 | E118: 100 | F118: 0 | G118: 37.7 | H118: 0 | I118: 0 | J118: 0 | K118: 57.4 | L118: 100 | M118: 0 | N118: 99.1 | O118: 0 | P118: 96.4 | Q118: 44.1 | R118: 99.7 | S118: 98.7 | T118: 100 | U118: 0.3 | V118: 0 | W118: 1.5 | X118: 7.1 | Y118: 11.2 | Z118: 100 | AA118: 90.9 | AB118: 94.6 | AC118: 100 | AD118: 24.8 | AE118: 41.9 | AF118: 0.6 | AG118: 1.4 | AH118: =(100-AH19) -> 0.3 | AI118: 88 | AJ118: 98.3 | AK118: 42.8 | AL118: 100 | AM118: 3.1 | AN118: 16.5 | AO118: 0 | AP118: 100 | AQ118: 100 | AR118: 99 | AS118: 99.8 | AT118: 100 | AU118: 0 | AV118: 48.6 | AW118: 4.6 | AX118: 97.3 | AY118: 27.3 | AZ118: 100
A119: 2012-08-27T12:00:00 | B119: =(100-B20) -> 100 | C119: 100 | D119: 91.1 | E119: 100 | F119: 0 | G119: 36.3 | H119: 0 | I119: 0 | J119: 0 | K119: 58.9 | L119: 100 | M119: 0 | N119: 99.1 | O119: 0 | P119: 96.4 | Q119: 42.5 | R119: 99.7 | S119: 98.7 | T119: 100 | U119: 0.3 | V119: 0 | W119: 1.5 | X119: 5.5 | Y119: 11.2 | Z119: 100 | AA119: 90.9 | AB119: 94.6 | AC119: 100 | AD119: 21.5 | AE119: 34.3 | AF119: 0.6 | AG119: 1.4 | AH119: =(100-AH20) -> 0.3 | AI119: 88.9 | AJ119: 98.3 | AK119: 42.4 | AL119: 100 | AM119: 3.1 | AN119: 16.5 | AO119: 0 | AP119: 100 | AQ119: 100 | AR119: 99 | AS119: 99.8 | AT119: 100 | AU119: 0 | AV119: 50.8 | AW119: 1.2 | AX119: 97.3 | AY119: 30.2 | AZ119: 100
A120: 2012-08-28T12:00:00 | B120: =(100-B21) -> 100 | C120: 100 | D120: 91.1 | E120: 100 | F120: 0 | G120: 35 | H120: 0 | I120: 0 | J120: 0 | K120: 58.8 | L120: 100 | M120: 0 | N120: 99.1 | O120: 0 | P120: 92.5 | Q120: 41 | R120: 99.7 | S120: 98.7 | T120: 100 | U120: 0.3 | V120: 0 | W120: 1.5 | X120: 4.5 | Y120: 11.2 | Z120: 100 | AA120: 90.9 | AB120: 94.6 | AC120: 100 | AD120: 24.7 | AE120: 42.8 | AF120: 0.6 | AG120: 1.4 | AH120: =(100-AH21) -> 0.3 | AI120: 88.1 | AJ120: 98.3 | AK120: 41.8 | AL120: 100 | AM120: 3.1 | AN120: 16.4 | AO120: 0 | AP120: 100 | AQ120: 100 | AR120: 99 | AS120: 99.8 | AT120: 100 | AU120: 0 | AV120: 50.8 | AW120: 1.2 | AX120: 97.3 | AY120: 36.3 | AZ120: 100
A121: 2012-08-29T12:00:00 | B121: =(100-B22) -> 100 | C121: 100 | D121: 93.1 | E121: 100 | F121: 0 | G121: 35.2 | H121: 0 | I121: 0 | J121: 0 | K121: 60.2 | L121: 98.1 | M121: 0 | N121: 99.1 | O121: 0 | P121: 92.5 | Q121: 41 | R121: 99.7 | S121: 98.7 | T121: 100 | U121: 0.3 | V121: 0 | W121: 3.2 | X121: 5.3 | Y121: 10.3 | Z121: 100 | AA121: 90.9 | AB121: 94.6 | AC121: 100 | AD121: 24.7 | AE121: 42 | AF121: 0.6 | AG121: 1.4 | AH121: =(100-AH22) -> 0.3 | AI121: 88.6 | AJ121: 98.3 | AK121: 41 | AL121: 100 | AM121: 3.1 | AN121: 16.4 | AO121: 0 | AP121: 100 | AQ121: 100 | AR121: 99.7 | AS121: 99.8 | AT121: 100 | AU121: 0 | AV121: 50.4 | AW121: 1.2 | AX121: 97.3 | AY121: 34.3 | AZ121: 100
A122: 2012-08-30T12:00:00 | B122: =(100-B23) -> 100 | C122: 100 | D122: 93.1 | E122: 100 | F122: 0 | G122: 36 | H122: 0 | I122: 0 | J122: 0 | K122: 61.5 | L122: 98.1 | M122: 0 | N122: 99.1 | O122: 0 | P122: 92.5 | Q122: 41 | R122: 99.7 | S122: 98.7 | T122: 100 | U122: 0.3 | V122: 0 | W122: 3.2 | X122: 5.5 | Y122: 10.3 | Z122: 100 | AA122: 90.9 | AB122: 95.8 | AC122: 100 | AD122: 24.7 | AE122: 41.6 | AF122: 0.6 | AG122: 1.4 | AH122: =(100-AH23) -> 0.3 | AI122: 88.6 | AJ122: 98.3 | AK122: 39 | AL122: 100 | AM122: 3.1 | AN122: 16 | AO122: 0 | AP122: 100 | AQ122: 100 | AR122: 99.7 | AS122: 99.8 | AT122: 100 | AU122: 0 | AV122: 45.2 | AW122: 1.2 | AX122: 97.3 | AY122: 33.3 | AZ122: 100
A123: 2012-08-31T12:00:00 | B123: =(100-B24) -> 100 | C123: 100 | D123: 93.1 | E123: 100 | F123: 0 | G123: 36 | H123: 0 | I123: 0 | J123: 0 | K123: 62.5 | L123: 98.1 | M123: 0 | N123: 99.1 | O123: 0 | P123: 92.5 | Q123: 41 | R123: 99.7 | S123: 98.7 | T123: 100 | U123: 0.3 | V123: 0 | W123: 1.5 | X123: 9.6 | Y123: 10.3 | Z123: 100 | AA123: 82.8 | AB123: 94.1 | AC123: 100 | AD123: 24.7 | AE123: 39.5 | AF123: 0.6 | AG123: 1.4 | AH123: =(100-AH24) -> 0.3 | AI123: 89.3 | AJ123: 98.3 | AK123: 39.6 | AL123: 100 | AM123: 3.1 | AN123: 16.4 | AO123: 0 | AP123: 100 | AQ123: 100 | AR123: 99.7 | AS123: 99.8 | AT123: 100 | AU123: 0 | AV123: 46.4 | AW123: 1.2 | AX123: 97.3 | AY123: 32.9 | AZ123: 100
A124: 2012-09-01T12:00:00 | B124: =(100-B25) -> 100 | C124: 100 | D124: 88.9 | E124: 100 | F124: 0 | G124: 36.3 | H124: 0 | I124: 0 | J124: 0 | K124: 63.2 | L124: 98.1 | M124: 0 | N124: 99.1 | O124: 0 | P124: 92.5 | Q124: 41 | R124: 99.7 | S124: 98.7 | T124: 100 | U124: 0.3 | V124: 0 | W124: 1.5 | X124: 9.7 | Y124: 10.3 | Z124: 100 | AA124: 92.9 | AB124: 94.1 | AC124: 100 | AD124: 24.7 | AE124: 31.4 | AF124: 1.1 | AG124: 1.4 | AH124: =(100-AH25) -> 0.3 | AI124: 91 | AJ124: 98.3 | AK124: 39.9 | AL124: 100 | AM124: 3.4 | AN124: 15.1 | AO124: 0 | AP124: 100 | AQ124: 100 | AR124: 99.7 | AS124: 99.8 | AT124: 100 | AU124: 0 | AV124: 46.7 | AW124: 1.2 | AX124: 97.3 | AY124: 31 | AZ124: 100
A125: 2012-09-02T12:00:00 | B125: =(100-B26) -> 100 | C125: 100 | D125: 88.9 | E125: 100 | F125: 0 | G125: 37.9 | H125: 0 | I125: 0 | J125: 0 | K125: 62.4 | L125: 98.1 | M125: 0 | N125: 99.1 | O125: 0 | P125: 92.5 | Q125: 41.5 | R125: 99.7 | S125: 98.7 | T125: 100 | U125: 0.3 | V125: 0 | W125: 1.5 | X125: 8.5 | Y125: 10.3 | Z125: 100 | AA125: 91 | AB125: 94.1 | AC125: 100 | AD125: 28 | AE125: 27.4 | AF125: 1.1 | AG125: 1.4 | AH125: =(100-AH26) -> 0.3 | AI125: 91 | AJ125: 98.3 | AK125: 38 | AL125: 100 | AM125: 3.4 | AN125: 14.2 | AO125: 0 | AP125: 100 | AQ125: 100 | AR125: 99.7 | AS125: 99.8 | AT125: 100 | AU125: 0 | AV125: 45.1 | AW125: 1.2 | AX125: 97.3 | AY125: 28.5 | AZ125: 100
A126: 2012-09-03T12:00:00 | B126: =(100-B27) -> 100 | C126: 100 | D126: 94.5 | E126: 100 | F126: 0 | G126: 37.9 | H126: 0 | I126: 0 | J126: 0 | K126: 62.8 | L126: 98.1 | M126: 0 | N126: 99.1 | O126: 0 | P126: 92.5 | Q126: 41.6 | R126: 99.7 | S126: 98.7 | T126: 100 | U126: 0.3 | V126: 0 | W126: 1.5 | X126: 9.4 | Y126: 10.3 | Z126: 100 | AA126: 91 | AB126: 95.8 | AC126: 100 | AD126: 28 | AE126: 29.6 | AF126: 0.8 | AG126: 1.4 | AH126: =(100-AH27) -> 0.3 | AI126: 91 | AJ126: 98.3 | AK126: 37.8 | AL126: 100 | AM126: 3.3 | AN126: 12.3 | AO126: 0 | AP126: 100 | AQ126: 100 | AR126: 99.7 | AS126: 99.8 | AT126: 100 | AU126: 0 | AV126: 45.1 | AW126: 1.2 | AX126: 97.3 | AY126: 32.5 | AZ126: 100
A127: 2012-09-04T12:00:00 | B127: =(100-B28) -> 100 | C127: 100 | D127: 94.5 | E127: 100 | F127: 0 | G127: 38.2 | H127: 0 | I127: 0 | J127: 0 | K127: 56.9 | L127: 98.1 | M127: 0 | N127: 99.1 | O127: 0 | P127: 97.4 | Q127: 49.9 | R127: 99.7 | S127: 98.7 | T127: 100 | U127: 0.3 | V127: 0 | W127: 1.5 | X127: 10 | Y127: 9.1 | Z127: 100 | AA127: 91 | AB127: 95.8 | AC127: 100 | AD127: 23.4 | AE127: 24.4 | AF127: 0.8 | AG127: 1.4 | AH127: =(100-AH28) -> 0.3 | AI127: 91 | AJ127: 98.3 | AK127: 39.7 | AL127: 100 | AM127: 4.5 | AN127: 11.3 | AO127: 0 | AP127: 100 | AQ127: 100 | AR127: 99.7 | AS127: 99.8 | AT127: 100 | AU127: 0 | AV127: 47.9 | AW127: 1.2 | AX127: 97.3 | AY127: 31.9 | AZ127: 100
A128: 2012-09-05T12:00:00 | B128: =(100-B29) -> 100 | C128: 100 | D128: 94.5 | E128: 100 | F128: 0 | G128: 39.6 | H128: 0 | I128: 0 | J128: 0 | K128: 56.4 | L128: 98.1 | M128: 0 | N128: 99.1 | O128: 0 | P128: 97.4 | Q128: 46.2 | R128: 99.7 | S128: 98.7 | T128: 100 | U128: 0.3 | V128: 0 | W128: 1.5 | X128: 13.2 | Y128: 9.1 | Z128: 100 | AA128: 91 | AB128: 95.8 | AC128: 100 | AD128: 24.7 | AE128: 24.4 | AF128: 0.8 | AG128: 1.4 | AH128: =(100-AH29) -> 0.3 | AI128: 84.6 | AJ128: 98.3 | AK128: 38.5 | AL128: 100 | AM128: 4.5 | AN128: 8.5 | AO128: 0 | AP128: 100 | AQ128: 100 | AR128: 99.7 | AS128: 99.8 | AT128: 100 | AU128: 0 | AV128: 47.9 | AW128: 1.2 | AX128: 97.3 | AY128: 30.7 | AZ128: 100
A129: 2012-09-06T12:00:00 | B129: =(100-B30) -> 100 | C129: 98.8 | D129: 92.5 | E129: 100 | F129: 0 | G129: 37.6 | H129: 0 | I129: 0 | J129: 0 | K129: 54.8 | L129: 98.1 | M129: 0 | N129: 99.1 | O129: 0 | P129: 97.9 | Q129: 47.7 | R129: 99.7 | S129: 98.7 | T129: 100 | U129: 0.3 | V129: 0 | W129: 1.5 | X129: 12.2 | Y129: 9.1 | Z129: 100 | AA129: 91.1 | AB129: 97.2 | AC129: 100 | AD129: 24.7 | AE129: 24.4 | AF129: 0.8 | AG129: 1.4 | AH129: =(100-AH30) -> 0.3 | AI129: 84.1 | AJ129: 98.3 | AK129: 38.7 | AL129: 100 | AM129: 4.5 | AN129: 6.7 | AO129: 0 | AP129: 100 | AQ129: 100 | AR129: 99.7 | AS129: 99.8 | AT129: 100 | AU129: 0 | AV129: 46.8 | AW129: 1.2 | AX129: 97.3 | AY129: 37 | AZ129: 100
A130: 2012-09-07T12:00:00 | B130: =(100-B31) -> 100 | C130: 98.8 | D130: 92.5 | E130: 100 | F130: 0 | G130: 37.6 | H130: 0 | I130: 0 | J130: 0 | K130: 57.3 | L130: 97.7 | M130: 0 | N130: 99.1 | O130: 0 | P130: 97.9 | Q130: 45.1 | R130: 99.7 | S130: 98.7 | T130: 100 | U130: 0.3 | V130: 0 | W130: 1.5 | X130: 11 | Y130: 8.2 | Z130: 100 | AA130: 93.2 | AB130: 97.2 | AC130: 100 | AD130: 23.3 | AE130: 24.4 | AF130: 1.1 | AG130: 1.4 | AH130: =(100-AH31) -> 0.3 | AI130: 83.6 | AJ130: 98.3 | AK130: 38.7 | AL130: 99.8 | AM130: 4.5 | AN130: 7.6 | AO130: 0 | AP130: 100 | AQ130: 100 | AR130: 99.7 | AS130: 99.8 | AT130: 100 | AU130: 0 | AV130: 47.9 | AW130: 1.2 | AX130: 97.3 | AY130: 36.2 | AZ130: 100
A131: 2012-09-08T12:00:00 | B131: =(100-B32) -> 100 | C131: 98.8 | D131: 96.3 | E131: 100 | F131: 0 | G131: 38.3 | H131: 0 | I131: 0 | J131: 0 | K131: 56.1 | L131: 97.7 | M131: 0 | N131: 99.1 | O131: 0 | P131: 97.9 | Q131: 47.2 | R131: 99.7 | S131: 98.7 | T131: 100 | U131: 0.3 | V131: 0 | W131: 1.5 | X131: 11 | Y131: 6.2 | Z131: 100 | AA131: 93.2 | AB131: 97.2 | AC131: 100 | AD131: 24.1 | AE131: 24.4 | AF131: 1.1 | AG131: 0.6 | AH131: =(100-AH32) -> 0.3 | AI131: 83.6 | AJ131: 98.3 | AK131: 36.7 | AL131: 99.8 | AM131: 1.5 | AN131: 8.6 | AO131: 0 | AP131: 100 | AQ131: 100 | AR131: 99.7 | AS131: 99.8 | AT131: 100 | AU131: 0 | AV131: 47.9 | AW131: 1.2 | AX131: 97.3 | AY131: 37 | AZ131: 100
A132: 2012-09-09T12:00:00 | B132: =(100-B33) -> 100 | C132: 98.8 | D132: 98.6 | E132: 100 | F132: 0 | G132: 38.2 | H132: 0 | I132: 0 | J132: 0 | K132: 51.6 | L132: 97.7 | M132: 0 | N132: 99.1 | O132: 0 | P132: 98.5 | Q132: 44 | R132: 99.7 | S132: 98.7 | T132: 100 | U132: 0.3 | V132: 0 | W132: 0.5 | X132: 12.2 | Y132: 6.9 | Z132: 100 | AA132: 93.2 | AB132: 97.3 | AC132: 100 | AD132: 24.7 | AE132: 26.7 | AF132: 0.8 | AG132: 2.5 | AH132: =(100-AH33) -> 0.3 | AI132: 85.8 | AJ132: 98.3 | AK132: 36.2 | AL132: 99.8 | AM132: 4.4 | AN132: 8.7 | AO132: 0 | AP132: 100 | AQ132: 100 | AR132: 99.7 | AS132: 99.8 | AT132: 100 | AU132: 0 | AV132: 44.9 | AW132: 1.2 | AX132: 97.3 | AY132: 33.9 | AZ132: 100
A133: 2012-09-10T12:00:00 | B133: =(100-B34) -> 100 | C133: 98.8 | D133: 96.8 | E133: 100 | F133: 0 | G133: 35.7 | H133: 0 | I133: 0 | J133: 0 | K133: 56.4 | L133: 97.8 | M133: 0 | N133: 99.1 | O133: 0 | P133: 98.5 | Q133: 48.1 | R133: 99.7 | S133: 98.7 | T133: 100 | U133: 0.3 | V133: 0 | W133: 0.5 | X133: 12.6 | Y133: 6.8 | Z133: 100 | AA133: 93.3 | AB133: 97.3 | AC133: 100 | AD133: 28.1 | AE133: 26.2 | AF133: 0.8 | AG133: 2.5 | AH133: =(100-AH34) -> 0.3 | AI133: 87 | AJ133: 98.3 | AK133: 38.8 | AL133: 99.8 | AM133: 4.4 | AN133: 7.1 | AO133: 0 | AP133: 100 | AQ133: 100 | AR133: 99.7 | AS133: 99.8 | AT133: 100 | AU133: 0 | AV133: 44.5 | AW133: 1.2 | AX133: 97.3 | AY133: 31.9 | AZ133: 100
A134: 2012-09-11T12:00:00 | B134: =(100-B35) -> 100 | C134: 98.8 | D134: 98.4 | E134: 100 | F134: 0 | G134: 34.3 | H134: 0 | I134: 0 | J134: 0 | K134: 54.7 | L134: 97.8 | M134: 0 | N134: 99.1 | O134: 0 | P134: 98.8 | Q134: 48.1 | R134: 99.7 | S134: 99 | T134: 100 | U134: 0.3 | V134: 0 | W134: 0.5 | X134: 14.6 | Y134: 6.8 | Z134: 100 | AA134: 93.3 | AB134: 97.3 | AC134: 100 | AD134: 27.6 | AE134: 27.5 | AF134: 0.6 | AG134: 1.4 | AH134: =(100-AH35) -> 0.3 | AI134: 85.4 | AJ134: 98.3 | AK134: 39 | AL134: 99.9 | AM134: 4.4 | AN134: 7.1 | AO134: 0 | AP134: 99.6 | AQ134: 100 | AR134: 99.7 | AS134: 99.8 | AT134: 100 | AU134: 0 | AV134: 44.8 | AW134: 1.2 | AX134: 97.3 | AY134: 31.8 | AZ134: 100
A135: 2012-09-12T12:00:00 | B135: =(100-B36) -> 100 | C135: 98.8 | D135: 98.3 | E135: 100 | F135: 0 | G135: 34 | H135: 0 | I135: 0 | J135: 0 | K135: 57 | L135: 97.4 | M135: 0 | N135: 99.6 | O135: 0 | P135: 97.3 | Q135: 48.3 | R135: 99.7 | S135: 99.1 | T135: 100 | U135: 0.3 | V135: 0 | W135: 0.5 | X135: 14.7 | Y135: 6.8 | Z135: 100 | AA135: 93.4 | AB135: 97.3 | AC135: 100 | AD135: 27.6 | AE135: 26.3 | AF135: 0.6 | AG135: 1.4 | AH135: =(100-AH36) -> 0.3 | AI135: 84.4 | AJ135: 98.3 | AK135: 39.3 | AL135: 99.9 | AM135: 1.8 | AN135: 7 | AO135: 0 | AP135: 98.8 | AQ135: 100 | AR135: 99.7 | AS135: 99.8 | AT135: 100 | AU135: 0 | AV135: 43.2 | AW135: 0.9 | AX135: 97.3 | AY135: 31.1 | AZ135: 100
A136: 2012-09-13T12:00:00 | B136: =(100-B37) -> 100 | C136: 98.8 | D136: 98.3 | E136: 100 | F136: 0 | G136: 31.5 | H136: 0 | I136: 0 | J136: 0 | K136: 57.9 | L136: 97.4 | M136: 0 | N136: 99.6 | O136: 0 | P136: 97.9 | Q136: 38.7 | R136: 99.7 | S136: 99.1 | T136: 100 | U136: 0.3 | V136: 0 | W136: 0.5 | X136: 11.3 | Y136: 3.3 | Z136: 100 | AA136: 93.4 | AB136: 98.8 | AC136: 100 | AD136: 27.2 | AE136: 27.8 | AF136: 1.1 | AG136: 1.4 | AH136: =(100-AH37) -> 0.3 | AI136: 83.7 | AJ136: 98.3 | AK136: 40.3 | AL136: 99.9 | AM136: 1.9 | AN136: 8.5 | AO136: 0 | AP136: 98.8 | AQ136: 100 | AR136: 99.7 | AS136: 99.8 | AT136: 100 | AU136: 0 | AV136: 40.7 | AW136: 0.9 | AX136: 97.3 | AY136: 28.3 | AZ136: 100
A137: 2012-09-14T12:00:00 | B137: =(100-B38) -> 100 | C137: 98.8 | D137: 97.6 | E137: 100 | F137: 0 | G137: 31.5 | H137: 0 | I137: 0 | J137: 0 | K137: 58 | L137: 98.1 | M137: 0 | N137: 99.6 | O137: 0 | P137: 97.3 | Q137: 46.2 | R137: 99.7 | S137: 99.1 | T137: 100 | U137: 1.2 | V137: 0 | W137: 0.2 | X137: 9.2 | Y137: 2.6 | Z137: 100 | AA137: 93 | AB137: 98.8 | AC137: 100 | AD137: 28 | AE137: 28 | AF137: 1.1 | AG137: 1.4 | AH137: =(100-AH38) -> 0.3 | AI137: 82.1 | AJ137: 98.4 | AK137: 39 | AL137: 99.9 | AM137: 1.6 | AN137: 5.6 | AO137: 0 | AP137: 98.8 | AQ137: 100 | AR137: 98.7 | AS137: 99.8 | AT137: 100 | AU137: 0 | AV137: 41 | AW137: 0.9 | AX137: 97.3 | AY137: 28 | AZ137: 100
A138: 2012-09-15T12:00:00 | B138: =(100-B39) -> 100 | C138: 98.8 | D138: 98.1 | E138: 100 | F138: 0 | G138: 31.2 | H138: 0 | I138: 0 | J138: 0 | K138: 59.8 | L138: 99.1 | M138: 0 | N138: 99.6 | O138: 0 | P138: 98.5 | Q138: 44 | R138: 99.7 | S138: 99.1 | T138: 100 | U138: 0.7 | V138: 0 | W138: 0.1 | X138: 7.9 | Y138: 3.3 | Z138: 100 | AA138: 96.3 | AB138: 99.3 | AC138: 99.5 | AD138: 28.9 | AE138: 26.6 | AF138: 0.8 | AG138: 0.5 | AH138: =(100-AH39) -> 0.3 | AI138: 79.9 | AJ138: 99.5 | AK138: 37.2 | AL138: 99.9 | AM138: 1.6 | AN138: 6.1 | AO138: 0 | AP138: 98.8 | AQ138: 100 | AR138: 98.8 | AS138: 99.9 | AT138: 99.6 | AU138: 0 | AV138: 39.6 | AW138: 0.2 | AX138: 97.3 | AY138: 26.3 | AZ138: 97.4
A139: 2012-09-16T12:00:00 | B139: =(100-B40) -> 99.8 | C139: 99.5 | D139: 98.3 | E139: 99.7 | F139: 0 | G139: 31 | H139: 0 | I139: 0 | J139: 0 | K139: 58.2 | L139: 99.4 | M139: 0 | N139: 99.6 | O139: 0 | P139: 98.5 | Q139: 42.5 | R139: 99.7 | S139: 99.1 | T139: 100 | U139: 0.5 | V139: 0 | W139: 0.1 | X139: 6.5 | Y139: 3.3 | Z139: 100 | AA139: 94.8 | AB139: 99.3 | AC139: 99.5 | AD139: 28.6 | AE139: 25.8 | AF139: 0.6 | AG139: 0.5 | AH139: =(100-AH40) -> 0.3 | AI139: 81.8 | AJ139: 99.5 | AK139: 37.2 | AL139: 99.9 | AM139: 1.6 | AN139: 5.6 | AO139: 0 | AP139: 98.8 | AQ139: 100 | AR139: 98.8 | AS139: 99.9 | AT139: 99.6 | AU139: 0 | AV139: 39.6 | AW139: 0.2 | AX139: 99.3 | AY139: 25.5 | AZ139: 97.4
A140: 2012-09-17T12:00:00 | B140: =(100-B41) -> 99.8 | C140: 99.7 | D140: 98 | E140: 99.7 | F140: 0 | G140: 31.1 | H140: 0 | I140: 0 | J140: 0 | K140: 59 | L140: 99.4 | M140: 0 | N140: 99.6 | O140: 0 | P140: 98.5 | Q140: 40.7 | R140: 99.7 | S140: 99.1 | T140: 100 | U140: 0.5 | V140: 0 | W140: 0.1 | X140: 7.4 | Y140: 3.2 | Z140: 100 | AA140: 94.7 | AB140: 98.8 | AC140: 99.5 | AD140: 28.6 | AE140: 25.8 | AF140: 0.2 | AG140: 0.5 | AH140: =(100-AH41) -> 0.3 | AI140: 83.3 | AJ140: 99.5 | AK140: 35.4 | AL140: 99.9 | AM140: 1.6 | AN140: 5.6 | AO140: 0 | AP140: 98.8 | AQ140: 100 | AR140: 98.8 | AS140: 99.9 | AT140: 99.6 | AU140: 0 | AV140: 39.6 | AW140: 0.2 | AX140: 99.3 | AY140: 24.1 | AZ140: 97.4
A141: 2012-09-18T12:00:00 | B141: =(100-B42) -> 99.8 | C141: 99.7 | D141: 98.2 | E141: 99.7 | F141: 0 | G141: 32.2 | H141: 0 | I141: 0 | J141: 0 | K141: 58.6 | L141: 99.4 | M141: 0 | N141: 99.6 | O141: 0 | P141: 98.5 | Q141: 40.3 | R141: 99.7 | S141: 99.1 | T141: 100 | U141: 0.5 | V141: 0 | W141: 0.1 | X141: 7 | Y141: 3.2 | Z141: 100 | AA141: 96.3 | AB141: 99.3 | AC141: 99.5 | AD141: 24.7 | AE141: 22.8 | AF141: 0.1 | AG141: 0.3 | AH141: =(100-AH42) -> 0.3 | AI141: 83.9 | AJ141: 99.5 | AK141: 37.4 | AL141: 99.9 | AM141: 1.7 | AN141: 5.3 | AO141: 0 | AP141: 98.8 | AQ141: 100 | AR141: 98.8 | AS141: 99.9 | AT141: 99.6 | AU141: 0 | AV141: 40.1 | AW141: 0.2 | AX141: 99.3 | AY141: 25.7 | AZ141: 97.4
A142: 2012-09-19T12:00:00 | B142: =(100-B43) -> 99.8 | C142: 99.7 | D142: 98 | E142: 99.7 | F142: 0 | G142: 28.1 | H142: 0 | I142: 0 | J142: 0 | K142: 56 | L142: 99.4 | M142: 0 | N142: 99.6 | O142: 0 | P142: 98.5 | Q142: 40.9 | R142: 99.7 | S142: 99.1 | T142: 100 | U142: 0.2 | V142: 0 | W142: 0.1 | X142: 6.5 | Y142: 3.1 | Z142: 100 | AA142: 96.3 | AB142: 99.2 | AC142: 99.5 | AD142: 21.5 | AE142: 21.4 | AF142: 0.1 | AG142: 1.4 | AH142: =(100-AH43) -> 0.3 | AI142: 83.4 | AJ142: 99.5 | AK142: 35.2 | AL142: 99.9 | AM142: 1.7 | AN142: 5.7 | AO142: 0 | AP142: 98.8 | AQ142: 100 | AR142: 98.8 | AS142: 99.9 | AT142: 99.6 | AU142: 0 | AV142: 39.2 | AW142: 0.2 | AX142: 99.3 | AY142: 24.5 | AZ142: 97.4
A143: 2012-09-20T12:00:00 | B143: =(100-B44) -> 99.8 | C143: 99.7 | D143: 96.6 | E143: 99.7 | F143: 0 | G143: 28 | H143: 0 | I143: 0 | J143: 0 | K143: 55.4 | L143: 99.4 | M143: 0 | N143: 99.6 | O143: 0 | P143: 98.5 | Q143: 39.9 | R143: 99.7 | S143: 99.1 | T143: 100 | U143: 0.2 | V143: 0 | W143: 0.1 | X143: 6.8 | Y143: 3.5 | Z143: 100 | AA143: 95.7 | AB143: 99.1 | AC143: 99.5 | AD143: 24.3 | AE143: 21.3 | AF143: 0.1 | AG143: 1.4 | AH143: =(100-AH44) -> 0.3 | AI143: 81.6 | AJ143: 99.5 | AK143: 33.1 | AL143: 99.9 | AM143: 1.6 | AN143: 5.7 | AO143: 0 | AP143: 98.8 | AQ143: 100 | AR143: 98.8 | AS143: 99.9 | AT143: 99.6 | AU143: 0 | AV143: 40.4 | AW143: 0.2 | AX143: 99.3 | AY143: 24.1 | AZ143: 97.4
A144: 2012-09-21T12:00:00 | B144: =(100-B45) -> 99.8 | C144: 99.6 | D144: 97.6 | E144: 99.7 | F144: 0 | G144: 26.6 | H144: 0 | I144: 0 | J144: 0 | K144: 49.9 | L144: 99.1 | M144: 0 | N144: 99.7 | O144: 0 | P144: 98.4 | Q144: 39.3 | R144: 99.5 | S144: 99.1 | T144: 100 | U144: 0.2 | V144: 0 | W144: 0.1 | X144: 4 | Y144: 3.6 | Z144: 100 | AA144: 94.3 | AB144: 97.2 | AC144: 99.5 | AD144: 24.3 | AE144: 19.5 | AF144: 0.1 | AG144: 1.4 | AH144: =(100-AH45) -> 0.4 | AI144: 80 | AJ144: 99.5 | AK144: 31.7 | AL144: 99.9 | AM144: 1.6 | AN144: 5.6 | AO144: 0 | AP144: 98.8 | AQ144: 100 | AR144: 98.8 | AS144: 99.9 | AT144: 99.6 | AU144: 0 | AV144: 40.2 | AW144: 0.2 | AX144: 99.3 | AY144: 25 | AZ144: 97.4
A145: 2012-09-22T12:00:00 | B145: =(100-B46) -> 99.8 | C145: 99.6 | D145: 97.8 | E145: 99.7 | F145: 0 | G145: 27.4 | H145: 0 | I145: 0 | J145: 0 | K145: 43.6 | L145: 99 | M145: 0 | N145: 99.7 | O145: 0 | P145: 97.9 | Q145: 35.6 | R145: 99.5 | S145: 99.1 | T145: 100 | U145: 0.2 | V145: 0 | W145: 0.1 | X145: 3.2 | Y145: 3.6 | Z145: 100 | AA145: 93.7 | AB145: 96.6 | AC145: 99.5 | AD145: 21.1 | AE145: 23.2 | AF145: 0.1 | AG145: 1.4 | AH145: =(100-AH46) -> 0.4 | AI145: 78.5 | AJ145: 99.5 | AK145: 25 | AL145: 99.9 | AM145: 1.5 | AN145: 3.2 | AO145: 0 | AP145: 97.3 | AQ145: 100 | AR145: 98.2 | AS145: 99.9 | AT145: 99.6 | AU145: 0 | AV145: 39.5 | AW145: 0.2 | AX145: 99 | AY145: 21.5 | AZ145: 97.5
A146: 2012-09-23T12:00:00 | B146: =(100-B47) -> 99.8 | C146: 99.6 | D146: 97.5 | E146: 99.7 | F146: 0 | G146: 25.9 | H146: 0 | I146: 0 | J146: 0 | K146: 46.8 | L146: 99 | M146: 0 | N146: 99.7 | O146: 0 | P146: 97.9 | Q146: 27.2 | R146: 99.5 | S146: 99.1 | T146: 100 | U146: 0.2 | V146: 0 | W146: 0.1 | X146: 3.6 | Y146: 3.6 | Z146: 100 | AA146: 93.6 | AB146: 96.6 | AC146: 99.5 | AD146: 18.7 | AE146: 20.9 | AF146: 0.1 | AG146: 1.4 | AH146: =(100-AH47) -> 0.4 | AI146: 78.6 | AJ146: 99.5 | AK146: 23.8 | AL146: 99.9 | AM146: 2.4 | AN146: 4.9 | AO146: 0 | AP146: 97.3 | AQ146: 100 | AR146: 98.2 | AS146: 99.9 | AT146: 99.5 | AU146: 0 | AV146: 38.5 | AW146: 0.3 | AX146: 98.9 | AY146: 20 | AZ146: 97.5
A147: 2012-09-24T12:00:00 | B147: =(100-B48) -> 99.8 | C147: 99.6 | D147: 97.8 | E147: 99.7 | F147: 0 | G147: 26.2 | H147: 0 | I147: 0 | J147: 0 | K147: 50.8 | L147: 99 | M147: 0 | N147: 99.7 | O147: 0 | P147: 97.9 | Q147: 28.5 | R147: 99.5 | S147: 99.1 | T147: 100 | U147: 0.2 | V147: 0 | W147: 0.1 | X147: 4.3 | Y147: 3.6 | Z147: 100 | AA147: 93.8 | AB147: 96.6 | AC147: 99.5 | AD147: 18.8 | AE147: 20.6 | AF147: 0.1 | AG147: 1.4 | AH147: =(100-AH48) -> 0.4 | AI147: 79.5 | AJ147: 99.5 | AK147: 25.5 | AL147: 99.9 | AM147: 2.4 | AN147: 4.2 | AO147: 0 | AP147: 98.8 | AQ147: 100 | AR147: 98.8 | AS147: 99.9 | AT147: 99.5 | AU147: 0 | AV147: 39.4 | AW147: 0.3 | AX147: 99.3 | AY147: 19.2 | AZ147: 97.5
A148: 2012-09-25T12:00:00 | B148: =(100-B49) -> 99.8 | C148: 99.6 | D148: 97.8 | E148: 99.7 | F148: 0 | G148: 26.4 | H148: 0 | I148: 0 | J148: 0 | K148: 49.6 | L148: 99.1 | M148: 0 | N148: 99.7 | O148: 0 | P148: 97.9 | Q148: 28.5 | R148: 99.5 | S148: 99.1 | T148: 100 | U148: 0.2 | V148: 0 | W148: 0.1 | X148: 3.6 | Y148: 3.3 | Z148: 100 | AA148: 93.7 | AB148: 96.6 | AC148: 99.5 | AD148: 16.4 | AE148: 21.4 | AF148: 0.1 | AG148: 1.3 | AH148: =(100-AH49) -> 0.4 | AI148: 80.1 | AJ148: 99.5 | AK148: 27.8 | AL148: 99.9 | AM148: 2.4 | AN148: 4.2 | AO148: 0 | AP148: 98.8 | AQ148: 100 | AR148: 98.8 | AS148: 99.9 | AT148: 99.5 | AU148: 0 | AV148: 38.9 | AW148: 0.3 | AX148: 99.7 | AY148: 19.8 | AZ148: 97.5
A149: 2012-09-26T12:00:00 | B149: =(100-B50) -> 99.8 | C149: 99.6 | D149: 98 | E149: 99.7 | F149: 0 | G149: 23.9 | H149: 0 | I149: 0 | J149: 0 | K149: 47.7 | L149: 98.9 | M149: 0 | N149: 99.7 | O149: 0 | P149: 97.9 | Q149: 25.8 | R149: 99.5 | S149: 99.1 | T149: 100 | U149: 0.2 | V149: 0 | W149: 0.1 | X149: 4.6 | Y149: 3.3 | Z149: 100 | AA149: 94.9 | AB149: 95.5 | AC149: 99.5 | AD149: 17.5 | AE149: 16.9 | AF149: 0.1 | AG149: 1.3 | AH149: =(100-AH50) -> 0.4 | AI149: 77.1 | AJ149: 99.5 | AK149: 25.1 | AL149: 99.9 | AM149: 2.4 | AN149: 4.9 | AO149: 0 | AP149: 98.8 | AQ149: 100 | AR149: 98.8 | AS149: 99.9 | AT149: 99.5 | AU149: 0 | AV149: 39.8 | AW149: 0.3 | AX149: 99.7 | AY149: 20.1 | AZ149: 97.5
A150: 2012-09-27T12:00:00 | B150: =(100-B51) -> 99.8 | C150: 99.6 | D150: 98.1 | E150: 99.7 | F150: 0 | G150: 26.5 | H150: 0 | I150: 0 | J150: 0 | K150: 46.5 | L150: 99.1 | M150: 0 | N150: 99.7 | O150: 0 | P150: 97.7 | Q150: 29.1 | R150: 99.5 | S150: 99.1 | T150: 100 | U150: 0.2 | V150: 0 | W150: 0.1 | X150: 4 | Y150: 3.3 | Z150: 100 | AA150: 95.9 | AB150: 96.3 | AC150: 99.5 | AD150: 17.3 | AE150: 27.5 | AF150: 0.1 | AG150: 1.3 | AH150: =(100-AH51) -> 0.4 | AI150: 76.9 | AJ150: 99.5 | AK150: 26.7 | AL150: 99.9 | AM150: 2.3 | AN150: 6.2 | AO150: 0 | AP150: 98.8 | AQ150: 100 | AR150: 98.8 | AS150: 99.9 | AT150: 99.5 | AU150: 0 | AV150: 28.7 | AW150: 0.3 | AX150: 99.7 | AY150: 19.8 | AZ150: 97.5
A151: 2012-09-28T12:00:00 | B151: =(100-B52) -> 99.8 | C151: 99.7 | D151: 98.1 | E151: 99.7 | F151: 0 | G151: 29.6 | H151: 0 | I151: 0 | J151: 0 | K151: 45 | L151: 97.1 | M151: 0 | N151: 99.7 | O151: 0 | P151: 97.7 | Q151: 26.7 | R151: 99.5 | S151: 99.1 | T151: 100 | U151: 0.2 | V151: 0 | W151: 0.1 | X151: 2.9 | Y151: 3.6 | Z151: 100 | AA151: 90.6 | AB151: 94.8 | AC151: 99.5 | AD151: 17.1 | AE151: 27.7 | AF151: 0.1 | AG151: 1.3 | AH151: =(100-AH52) -> 0.4 | AI151: 75.9 | AJ151: 99.4 | AK151: 22.4 | AL151: 99.9 | AM151: 2.1 | AN151: 4.5 | AO151: 0 | AP151: 98.8 | AQ151: 100 | AR151: 98.8 | AS151: 99.9 | AT151: 99.5 | AU151: 0 | AV151: 25.5 | AW151: 0.3 | AX151: 99.7 | AY151: 21.7 | AZ151: 97.5
A152: 2012-09-29T12:00:00 | B152: =(100-B53) -> 99.8 | C152: 99.7 | D152: 98 | E152: 99.7 | F152: 0 | G152: 30.8 | H152: 0 | I152: 0 | J152: 0 | K152: 45 | L152: 97.1 | M152: 0 | N152: 99.7 | O152: 0 | P152: 97.7 | Q152: 28.7 | R152: 99.5 | S152: 99.1 | T152: 100 | U152: 0.2 | V152: 0 | W152: 0.2 | X152: 3.2 | Y152: 3.6 | Z152: 100 | AA152: 88.7 | AB152: 94.8 | AC152: 99.5 | AD152: 17.2 | AE152: 24.2 | AF152: 0.1 | AG152: 1.3 | AH152: =(100-AH53) -> 0.4 | AI152: 73.7 | AJ152: 99.4 | AK152: 23.5 | AL152: 99.9 | AM152: 2.1 | AN152: 4.9 | AO152: 0 | AP152: 100 | AQ152: 100 | AR152: 99.8 | AS152: 99.9 | AT152: 99.6 | AU152: 0 | AV152: 24.6 | AW152: 0.2 | AX152: 99.7 | AY152: 18.9 | AZ152: 97.5
A153: 2012-09-30T12:00:00 | B153: =(100-B54) -> 99.8 | C153: 99.7 | D153: 94.7 | E153: 99.7 | F153: 0 | G153: 26.1 | H153: 0 | I153: 0 | J153: 0 | K153: 39.1 | L153: 98.7 | M153: 0 | N153: 99.7 | O153: 0 | P153: 96.2 | Q153: 26.2 | R153: 99.5 | S153: 99.1 | T153: 100 | U153: 0.2 | V153: 0 | W153: 0.2 | X153: 3.4 | Y153: 3.3 | Z153: 100 | AA153: 83.6 | AB153: 91.5 | AC153: 99.5 | AD153: 17.2 | AE153: 24.4 | AF153: 0.1 | AG153: 1.3 | AH153: =(100-AH54) -> 0.4 | AI153: 72.7 | AJ153: 99.4 | AK153: 23.5 | AL153: 99.9 | AM153: 1.5 | AN153: 4.2 | AO153: 0 | AP153: 98.9 | AQ153: 99.5 | AR153: 99.7 | AS153: 99.9 | AT153: 99.6 | AU153: 0 | AV153: 25 | AW153: 0.2 | AX153: 99.7 | AY153: 19 | AZ153: 97.5
A154: 2012-10-01T12:00:00 | B154: =(100-B55) -> 99.8 | C154: 99.6 | D154: 90.5 | E154: 99.7 | F154: 0 | G154: 27.6 | H154: 0 | I154: 0 | J154: 0 | K154: 40.8 | L154: 97.7 | M154: 0 | N154: 99.7 | O154: 0 | P154: 93.4 | Q154: 25.9 | R154: 99.5 | S154: 99.1 | T154: 100 | U154: 0.2 | V154: 0 | W154: 0.2 | X154: 3.6 | Y154: 2.7 | Z154: 100 | AA154: 89.9 | AB154: 94.4 | AC154: 99.5 | AD154: 11.4 | AE154: 25.1 | AF154: 0.1 | AG154: 7.6 | AH154: =(100-AH55) -> 0.3 | AI154: 64.3 | AJ154: 99.4 | AK154: 22.1 | AL154: 99.9 | AM154: 1.5 | AN154: 1.7 | AO154: 0 | AP154: 99.8 | AQ154: 99.5 | AR154: 99.7 | AS154: 99.9 | AT154: 99.6 | AU154: 0 | AV154: 25.7 | AW154: 0.2 | AX154: 99.7 | AY154: 17.9 | AZ154: 97.5
A155: 2012-10-02T12:00:00 | B155: =(100-B56) -> 99.8 | C155: 99.6 | D155: 90.3 | E155: 99.7 | F155: 0 | G155: 29.2 | H155: 0 | I155: 0 | J155: 0 | K155: 43.6 | L155: 97.8 | M155: 0 | N155: 99.7 | O155: 0 | P155: 93.7 | Q155: 24 | R155: 99.5 | S155: 99.1 | T155: 100 | U155: 0.2 | V155: 0 | W155: 0.2 | X155: 3.1 | Y155: 2.8 | Z155: 100 | AA155: 84.1 | AB155: 94.4 | AC155: 99.5 | AD155: 10.8 | AE155: 23.1 | AF155: 0.1 | AG155: 7.6 | AH155: =(100-AH56) -> 0.3 | AI155: 73.1 | AJ155: 99.4 | AK155: 22.1 | AL155: 99.9 | AM155: 1.5 | AN155: 1.8 | AO155: 0 | AP155: 99.6 | AQ155: 99.5 | AR155: 99.7 | AS155: 99.4 | AT155: 99.5 | AU155: 0 | AV155: 26.1 | AW155: 0.2 | AX155: 99.7 | AY155: 15.8 | AZ155: 97.5
A156: 2012-10-03T12:00:00 | B156: =(100-B57) -> 99.8 | C156: 99.6 | D156: 92.3 | E156: 99.7 | F156: 0 | G156: 27.7 | H156: 0 | I156: 0 | J156: 0 | K156: 38.3 | L156: 98.5 | M156: 0 | N156: 99.7 | O156: 0 | P156: 93.7 | Q156: 25 | R156: 99.5 | S156: 99.1 | T156: 100 | U156: 0.2 | V156: 0 | W156: 1.5 | X156: 1.9 | Y156: 2.7 | Z156: 100 | AA156: 84.9 | AB156: 94.4 | AC156: 99.5 | AD156: 10.8 | AE156: 23.1 | AF156: 0.1 | AG156: 7.6 | AH156: =(100-AH57) -> 0.3 | AI156: 71.5 | AJ156: 99.4 | AK156: 20.1 | AL156: 99.9 | AM156: 1.2 | AN156: 1.7 | AO156: 0 | AP156: 99.6 | AQ156: 99.5 | AR156: 99.7 | AS156: 99.4 | AT156: 99.6 | AU156: 0 | AV156: 25.7 | AW156: 0.2 | AX156: 99.7 | AY156: 11 | AZ156: 97.5
A157: 2012-10-04T12:00:00 | B157: =(100-B58) -> 99.8 | C157: 99.6 | D157: 92.7 | E157: 99.7 | F157: 0 | G157: 26.8 | H157: 0 | I157: 0 | J157: 0 | K157: 34.1 | L157: 98.5 | M157: 0 | N157: 99.7 | O157: 0 | P157: 90.6 | Q157: 23.7 | R157: 99.5 | S157: 99.1 | T157: 100 | U157: 0.2 | V157: 0 | W157: 1.5 | X157: 1.9 | Y157: 2.7 | Z157: 100 | AA157: 84.9 | AB157: 94.3 | AC157: 99.5 | AD157: 10.9 | AE157: 23.6 | AF157: 0.1 | AG157: 2.5 | AH157: =(100-AH58) -> 0.3 | AI157: 47.4 | AJ157: 99.4 | AK157: 17.2 | AL157: 99.9 | AM157: 1.3 | AN157: 1.7 | AO157: 0 | AP157: 99.5 | AQ157: 99.5 | AR157: 99.6 | AS157: 99.3 | AT157: 99.6 | AU157: 0 | AV157: 25.5 | AW157: 0.2 | AX157: 99.7 | AY157: 13.9 | AZ157: 97.5
A158: 2012-10-05T12:00:00 | B158: =(100-B59) -> 99.8 | C158: 99.6 | D158: 90.6 | E158: 99.7 | F158: 0 | G158: 23.1 | H158: 0 | I158: 0 | J158: 0 | K158: 31.2 | L158: 98.5 | M158: 0 | N158: 99.7 | O158: 0 | P158: 93.1 | Q158: 14.3 | R158: 99.5 | S158: 99.1 | T158: 100 | U158: 0.7 | V158: 0 | W158: 1.5 | X158: 1.9 | Y158: 2.2 | Z158: 100 | AA158: 86.5 | AB158: 94.2 | AC158: 99.5 | AD158: 13.4 | AE158: 21.8 | AF158: 0.1 | AG158: 2.5 | AH158: =(100-AH59) -> 0.3 | AI158: 46.1 | AJ158: 99.4 | AK158: 15 | AL158: 99.9 | AM158: 1.3 | AN158: 1.7 | AO158: 0 | AP158: 99.3 | AQ158: 99.5 | AR158: 99.2 | AS158: 99.3 | AT158: 99.6 | AU158: 0 | AV158: 22.9 | AW158: 0.2 | AX158: 99.7 | AY158: 10.2 | AZ158: 97.5
A159: 2012-10-06T12:00:00 | B159: =(100-B60) -> 99.9 | C159: 99.6 | D159: 91.5 | E159: 99.8 | F159: 0 | G159: 17.7 | H159: 0 | I159: 0 | J159: 0 | K159: 30.1 | L159: 98.4 | M159: 0 | N159: 99.7 | O159: 0 | P159: 93 | Q159: 11.8 | R159: 99.5 | S159: 99.1 | T159: 100 | U159: 0.7 | V159: 0 | W159: 0.2 | X159: 2 | Y159: 2.2 | Z159: 100 | AA159: 86.8 | AB159: 94.2 | AC159: 99.5 | AD159: 15.5 | AE159: 19.1 | AF159: 0.1 | AG159: 2.5 | AH159: =(100-AH60) -> 0.3 | AI159: 46.1 | AJ159: 99.4 | AK159: 13 | AL159: 99.9 | AM159: 1.3 | AN159: 0.9 | AO159: 0 | AP159: 96.1 | AQ159: 99.5 | AR159: 99.4 | AS159: 99.3 | AT159: 99.6 | AU159: 0 | AV159: 16.5 | AW159: 0.1 | AX159: 99.7 | AY159: 9.9 | AZ159: 97.5
A160: 2012-10-07T12:00:00 | B160: =(100-B61) -> 99.9 | C160: 99.6 | D160: 90.9 | E160: 99.8 | F160: 0 | G160: 16.9 | H160: 0 | I160: 0 | J160: 0 | K160: 25.8 | L160: 98.6 | M160: 0 | N160: 99.6 | O160: 0 | P160: 94.1 | Q160: 10 | R160: 99.5 | S160: 99 | T160: 100 | U160: 0.6 | V160: 0 | W160: 0.1 | X160: 1.8 | Y160: 1.9 | Z160: 100 | AA160: 88.8 | AB160: 94.7 | AC160: 99.5 | AD160: 13 | AE160: 14 | AF160: 0.1 | AG160: 1.4 | AH160: =(100-AH61) -> 0 | AI160: 59.3 | AJ160: 99.4 | AK160: 9.9 | AL160: 100 | AM160: 1.5 | AN160: 1.7 | AO160: 0 | AP160: 98.9 | AQ160: 99.6 | AR160: 99.4 | AS160: 99.3 | AT160: 99.5 | AU160: 0 | AV160: 18 | AW160: 0.1 | AX160: 99 | AY160: 7.9 | AZ160: 97.9
A161: 2012-10-08T12:00:00 | B161: =(100-#REF!) ->  | C161: =(100-#REF!) ->  | D161: =(100-#REF!) ->  | E161: =(100-#REF!) ->  | F161: =(100-#REF!) ->  | G161: =(100-#REF!) ->  | H161: =(100-#REF!) ->  | I161: =(100-#REF!) ->  | J161: =(100-#REF!) ->  | K161: =(100-#REF!) ->  | L161: =(100-#REF!) ->  | M161: =(100-#REF!) ->  | N161: =(100-#REF!) ->  | O161: =(100-#REF!) ->  | P161: =(100-#REF!) ->  | Q161: =(100-#REF!) ->  | R161: =(100-#REF!) ->  | S161: =(100-#REF!) ->  | T161: =(100-#REF!) ->  | U161: =(100-#REF!) ->  | V161: =(100-#REF!) ->  | W161: =(100-#REF!) ->  | X161: =(100-#REF!) ->  | Y161: =(100-#REF!) ->  | Z161: =(100-#REF!) ->  | AA161: =(100-#REF!) ->  | AB161: =(100-#REF!) ->  | AC161: =(100-#REF!) ->  | AD161: =(100-#REF!) ->  | AE161: =(100-#REF!) ->  | AF161: =(100-#REF!) ->  | AG161: =(100-#REF!) ->  | AH161: =(100-#REF!) ->  | AI161: =(100-#REF!) ->  | AJ161: =(100-#REF!) ->  | AK161: =(100-#REF!) ->  | AL161: =(100-#REF!) ->  | AM161: =(100-#REF!) ->  | AN161: =(100-#REF!) ->  | AO161: =(100-#REF!) ->  | AP161: =(100-#REF!) ->  | AQ161: =(100-#REF!) ->  | AR161: =(100-#REF!) ->  | AS161: =(100-#REF!) ->  | AT161: =(100-#REF!) ->  | AU161: =(100-#REF!) ->  | AV161: =(100-#REF!) ->  | AW161: =(100-#REF!) ->  | AX161: =(100-#REF!) ->  | AY161: =(100-#REF!) ->  | AZ161: =(100-#REF!) -> 
A162: 2012-10-09T12:00:00 | B162: =(100-B62) -> 99.7 | C162: 99.7 | D162: 90.5 | E162: 99.8 | F162: 0 | G162: 13.6 | H162: 0 | I162: 0 | J162: 0 | K162: 26 | L162: 99.1 | M162: 0 | N162: 99.6 | O162: 0 | P162: 94.8 | Q162: 11.1 | R162: 99.5 | S162: 99 | T162: 100 | U162: 0.6 | V162: 0 | W162: 0.1 | X162: 1.8 | Y162: 1.6 | Z162: 100 | AA162: 86.8 | AB162: 95.7 | AC162: 99.5 | AD162: 13 | AE162: 12.1 | AF162: 0.1 | AG162: 4.1 | AH162: =(100-AH62) -> 0 | AI162: 58.9 | AJ162: 99.4 | AK162: 15.2 | AL162: 100 | AM162: 1.2 | AN162: 6.5 | AO162: 0 | AP162: 99.6 | AQ162: 99.6 | AR162: 99.4 | AS162: 99.4 | AT162: 99.5 | AU162: 0 | AV162: 17.4 | AW162: 0.1 | AX162: 99 | AY162: 7.7 | AZ162: 97.9
A163: 2012-10-10T12:00:00 | B163: =(100-B63) -> 99.9 | C163: 99.7 | D163: 90.9 | E163: 99.8 | F163: 0 | G163: 16.9 | H163: 0 | I163: 0 | J163: 0 | K163: 27.9 | L163: 99.1 | M163: 0 | N163: 99.6 | O163: 0 | P163: 95.2 | Q163: 11 | R163: 99.5 | S163: 99 | T163: 100 | U163: 0.6 | V163: 0 | W163: 0.1 | X163: 1.9 | Y163: 1.6 | Z163: 100 | AA163: 87.3 | AB163: 95.1 | AC163: 99.5 | AD163: 13.3 | AE163: 13.9 | AF163: 0.1 | AG163: 1.4 | AH163: =(100-AH63) -> 0 | AI163: 63.2 | AJ163: 99.4 | AK163: 15 | AL163: 100 | AM163: 1.2 | AN163: 4.6 | AO163: 0 | AP163: 99.6 | AQ163: 99.6 | AR163: 99.4 | AS163: 99.7 | AT163: 99.5 | AU163: 0 | AV163: 18.1 | AW163: 0.1 | AX163: 99 | AY163: 9.1 | AZ163: 97.9
A164: 2012-10-11T12:00:00 | B164: =(100-B64) -> 99.9 | C164: 99.7 | D164: 92.2 | E164: 99.8 | F164: 0 | G164: 18.5 | H164: 0 | I164: 0 | J164: 0 | K164: 27.8 | L164: 99.4 | M164: 0 | N164: 99.6 | O164: 0 | P164: 95.5 | Q164: 13.9 | R164: 99.5 | S164: 99 | T164: 100 | U164: 0.6 | V164: 0 | W164: 0.1 | X164: 1.5 | Y164: 1.5 | Z164: 100 | AA164: 85.2 | AB164: 95.1 | AC164: 99.5 | AD164: 12.9 | AE164: 11.9 | AF164: 0.1 | AG164: 1.1 | AH164: =(100-AH64) -> 0 | AI164: 63.9 | AJ164: 99.4 | AK164: 14.3 | AL164: 100 | AM164: 1.5 | AN164: 3.4 | AO164: 0 | AP164: 99.6 | AQ164: 99.6 | AR164: 99.4 | AS164: 99.7 | AT164: 99.5 | AU164: 0 | AV164: 18.9 | AW164: 0.1 | AX164: 99.5 | AY164: 9.7 | AZ164: 97.9
A165: 2012-10-12T12:00:00 | B165: =(100-B65) -> 99.9 | C165: 99.7 | D165: 90.7 | E165: 99.8 | F165: 0 | G165: 13.7 | H165: 0 | I165: 0 | J165: 0 | K165: 31.9 | L165: 98.8 | M165: 0 | N165: 99.6 | O165: 0 | P165: 95.7 | Q165: 14.8 | R165: 99.5 | S165: 99 | T165: 100 | U165: 0.6 | V165: 0 | W165: 0.1 | X165: 1.5 | Y165: 1.5 | Z165: 100 | AA165: 85.2 | AB165: 95.1 | AC165: 99.5 | AD165: 12.9 | AE165: 14.1 | AF165: 0.1 | AG165: 1.1 | AH165: =(100-AH65) -> 0 | AI165: 62.4 | AJ165: 99.4 | AK165: 14.1 | AL165: 100 | AM165: 0.7 | AN165: 2 | AO165: 0 | AP165: 99.6 | AQ165: 99.6 | AR165: 99.4 | AS165: 99.7 | AT165: 99.5 | AU165: 0 | AV165: 18.6 | AW165: 0.1 | AX165: 99.7 | AY165: 10.1 | AZ165: 97.9
A166: 2012-10-13T12:00:00 | B166: =(100-B66) -> 99.9 | C166: 100 | D166: 94.1 | E166: 99.8 | F166: 0 | G166: 20.2 | H166: 0 | I166: 0 | J166: 0 | K166: 42.4 | L166: 99.1 | M166: 0 | N166: 100 | O166: 0 | P166: 95.7 | Q166: 23.6 | R166: 99.5 | S166: 100 | T166: 100 | U166: 0.6 | V166: 0 | W166: 0 | X166: 2 | Y166: 1.5 | Z166: 100 | AA166: 88.6 | AB166: 95.2 | AC166: 99.5 | AD166: 13.8 | AE166: 17.2 | AF166: 0.2 | AG166: 1.1 | AH166: =(100-AH66) -> 0 | AI166: 64.2 | AJ166: 99.5 | AK166: 21.2 | AL166: 100 | AM166: 0.7 | AN166: 4.2 | AO166: 0 | AP166: 99.6 | AQ166: 99.6 | AR166: 99.5 | AS166: 99.7 | AT166: 99.4 | AU166: 0 | AV166: 27.5 | AW166: 0.1 | AX166: 99.7 | AY166: 15.4 | AZ166: 97.9
A167: 2012-10-14T12:00:00 | B167: =(100-B67) -> 99.9 | C167: 100 | D167: 94.3 | E167: 99.8 | F167: 0 | G167: 29.4 | H167: 0 | I167: 0 | J167: 0 | K167: 49 | L167: 99.1 | M167: 0 | N167: 100 | O167: 0 | P167: 96.1 | Q167: 56 | R167: 99.5 | S167: 100 | T167: 100 | U167: 0.6 | V167: 0 | W167: 0 | X167: 5.6 | Y167: 1.3 | Z167: 100 | AA167: 88.2 | AB167: 96.1 | AC167: 99.5 | AD167: 20.2 | AE167: 33.9 | AF167: 0.1 | AG167: 1.1 | AH167: =(100-AH67) -> 0 | AI167: 67 | AJ167: 99.5 | AK167: 31.6 | AL167: 100 | AM167: 0.9 | AN167: 5.9 | AO167: 0 | AP167: 99.6 | AQ167: 99.6 | AR167: 99.5 | AS167: 99.7 | AT167: 99.4 | AU167: 0 | AV167: 42.3 | AW167: 0.1 | AX167: 99.9 | AY167: 43.2 | AZ167: 97.9
A168: 2012-10-15T12:00:00 | B168: =(100-B68) -> 99.9 | C168: 100 | D168: 92.9 | E168: 100 | F168: 0 | G168: 38.5 | H168: 0 | I168: 0 | J168: 0 | K168: 46.7 | L168: 99.1 | M168: 0 | N168: 100 | O168: 0 | P168: 96 | Q168: 43.2 | R168: 99.5 | S168: 100 | T168: 100 | U168: 0.6 | V168: 0 | W168: 0.1 | X168: 5.7 | Y168: 1.5 | Z168: 100 | AA168: 88.5 | AB168: 96.1 | AC168: 99.5 | AD168: 16.8 | AE168: 28.9 | AF168: 0.1 | AG168: 2.3 | AH168: =(100-AH68) -> 0 | AI168: 67.5 | AJ168: 99.5 | AK168: 26.4 | AL168: 100 | AM168: 0.9 | AN168: 2.5 | AO168: 0 | AP168: 99.5 | AQ168: 99.6 | AR168: 99.5 | AS168: 99.7 | AT168: 99.4 | AU168: 0 | AV168: 40.5 | AW168: 0.1 | AX168: 99.9 | AY168: 20.7 | AZ168: 97.9
A169: 2012-10-16T12:00:00 | B169: =(100-B69) -> 99.9 | C169: 100 | D169: 95.5 | E169: 100 | F169: 0 | G169: 37.3 | H169: 0 | I169: 0 | J169: 0 | K169: 54.3 | L169: 99.1 | M169: 0 | N169: 100 | O169: 0 | P169: 96.8 | Q169: 39.9 | R169: 99.5 | S169: 100 | T169: 100 | U169: 0.6 | V169: 0 | W169: 1.4 | X169: 4.9 | Y169: 2.9 | Z169: 100 | AA169: 89.9 | AB169: 95.7 | AC169: 99.5 | AD169: 23.3 | AE169: 27.5 | AF169: 0.1 | AG169: 1.6 | AH169: =(100-AH69) -> 0 | AI169: 69.5 | AJ169: 99.5 | AK169: 27.8 | AL169: 100 | AM169: 0.7 | AN169: 4.9 | AO169: 0 | AP169: 99.5 | AQ169: 99.6 | AR169: 99.5 | AS169: 99.7 | AT169: 99.4 | AU169: 0 | AV169: 42.1 | AW169: 0.1 | AX169: 99.9 | AY169: 25.5 | AZ169: 97.9
A170: 2012-10-17T12:00:00 | B170: =(100-B70) -> 99.9 | C170: 100 | D170: 94.9 | E170: 100 | F170: 0 | G170: 37.8 | H170: 0 | I170: 0 | J170: 0 | K170: 53.3 | L170: 99.1 | M170: 0 | N170: 100 | O170: 0 | P170: 96.8 | Q170: 35.7 | R170: 99.5 | S170: 100 | T170: 100 | U170: 0.6 | V170: 0 | W170: 0.1 | X170: 5.6 | Y170: 4 | Z170: 100 | AA170: 89.8 | AB170: 95.7 | AC170: 100 | AD170: 24.9 | AE170: 28.4 | AF170: 0.1 | AG170: 6.3 | AH170: =(100-AH70) -> 0 | AI170: 71.4 | AJ170: 99.5 | AK170: 28.2 | AL170: 100 | AM170: 0.9 | AN170: 9.4 | AO170: 0 | AP170: 99.5 | AQ170: 99.6 | AR170: 99.5 | AS170: 99.7 | AT170: 99.4 | AU170: 0 | AV170: 39.9 | AW170: 0.5 | AX170: 99.9 | AY170: 23.3 | AZ170: 97.9
A171: 2012-10-18T12:00:00 | B171: =(100-B71) -> 99.9 | C171: 100 | D171: 96.7 | E171: 100 | F171: 0 | G171: 32.5 | H171: 0 | I171: 0 | J171: 0 | K171: 58.3 | L171: 99.2 | M171: 0 | N171: 100 | O171: 0 | P171: 97.1 | Q171: 26.3 | R171: 99.5 | S171: 100 | T171: 100 | U171: 0.6 | V171: 0 | W171: 0.1 | X171: 6.1 | Y171: 3.9 | Z171: 100 | AA171: 90 | AB171: 96.5 | AC171: 100 | AD171: 16.5 | AE171: 20.9 | AF171: 0.1 | AG171: 5.6 | AH171: =(100-AH71) -> 0 | AI171: 71.5 | AJ171: 99.5 | AK171: 36 | AL171: 100 | AM171: 1 | AN171: 5.8 | AO171: 0 | AP171: 99.5 | AQ171: 99.6 | AR171: 99.6 | AS171: 99.7 | AT171: 99.4 | AU171: 0 | AV171: 35.3 | AW171: 0.5 | AX171: 99.9 | AY171: 23.3 | AZ171: 97.9
A172: 2012-10-19T12:00:00 | B172: =(100-B72) -> 99.9 | C172: 100 | D172: 97.4 | E172: 100 | F172: 0 | G172: 51 | H172: 0 | I172: 0 | J172: 0 | K172: 62.9 | L172: 99.1 | M172: 0 | N172: 100 | O172: 0 | P172: 97.3 | Q172: 34.8 | R172: 99.5 | S172: 100 | T172: 100 | U172: 0.6 | V172: 0 | W172: 1.4 | X172: 4.9 | Y172: 2.9 | Z172: 100 | AA172: 92.2 | AB172: 95.7 | AC172: 100 | AD172: 20.5 | AE172: 35 | AF172: 0.1 | AG172: 6.3 | AH172: =(100-AH72) -> 0 | AI172: 71.2 | AJ172: 99.5 | AK172: 42.9 | AL172: 100 | AM172: 1 | AN172: 8.5 | AO172: 0 | AP172: 99.5 | AQ172: 99.6 | AR172: 99.6 | AS172: 99.7 | AT172: 100 | AU172: 0 | AV172: 49.9 | AW172: 0.5 | AX172: 99.9 | AY172: 22.2 | AZ172: 97.9
A173: 2012-10-20T12:00:00 | B173: =(100-B73) -> 99.9 | C173: 100 | D173: 97.3 | E173: 100 | F173: 0 | G173: 46.7 | H173: 0 | I173: 0 | J173: 0 | K173: 59.6 | L173: 99 | M173: 0 | N173: 100 | O173: 0 | P173: 97.8 | Q173: 39.4 | R173: 99.5 | S173: 100 | T173: 100 | U173: 0.6 | V173: 0 | W173: 0.6 | X173: 7.1 | Y173: 3.3 | Z173: 100 | AA173: 92.2 | AB173: 98.9 | AC173: 100 | AD173: 20.5 | AE173: 32 | AF173: 0.1 | AG173: 3.4 | AH173: =(100-AH73) -> 0 | AI173: 70.9 | AJ173: 99.5 | AK173: 31.7 | AL173: 100 | AM173: 1 | AN173: 10 | AO173: 0 | AP173: 99.5 | AQ173: 99.6 | AR173: 99.6 | AS173: 99.7 | AT173: 100 | AU173: 0 | AV173: 41.5 | AW173: 0.5 | AX173: 99.7 | AY173: 25.8 | AZ173: 97.9
A174: 2012-10-21T12:00:00 | B174: =(100-B74) -> 99.9 | C174: =(100-C74) -> 100 | D174: 97.3 | E174: 100 | F174: 0 | G174: 46.7 | H174: 0 | I174: 0 | J174: 0 | K174: 59.6 | L174: 99 | M174: 0 | N174: 100 | O174: 0 | P174: 97.8 | Q174: 39.4 | R174: 99.5 | S174: =(100-S74) -> 100 | T174: 100 | U174: 0.6 | V174: 0 | W174: 0.6 | X174: 7.1 | Y174: 3.3 | Z174: 100 | AA174: 92.2 | AB174: 98.9 | AC174: 100 | AD174: 20.5 | AE174: 32 | AF174: 0.1 | AG174: 3.4 | AH174: 0 | AI174: 70.9 | AJ174: 99.5 | AK174: 31.7 | AL174: 100 | AM174: 1 | AN174: 10 | AO174: 0 | AP174: 99.5 | AQ174: 99.6 | AR174: 99.6 | AS174: 99.7 | AT174: 100 | AU174: 0 | AV174: 41.5 | AW174: 0.5 | AX174: 99.7 | AY174: 25.8 | AZ174: 97.9
A175: 2012-10-22T12:00:00 | B175: 99.9 | C175: 100 | D175: 96.6 | E175: 100 | F175: 0 | G175: 57.2 | H175: 0 | I175: 0 | J175: 0 | K175: 73.2 | L175: 99.6 | M175: 0 | N175: 100 | O175: 0 | P175: 98.3 | Q175: 39.4 | R175: 99.5 | S175: =(100-S75) -> 100 | T175: 100 | U175: 0.5 | V175: 0 | W175: 1.3 | X175: 8.9 | Y175: 3.6 | Z175: 100 | AA175: 95.7 | AB175: 99.3 | AC175: 100 | AD175: 24.5 | AE175: 40.3 | AF175: 0.1 | AG175: 4.5 | AH175: 0 | AI175: 74.3 | AJ175: 99.5 | AK175: 37.5 | AL175: 100 | AM175: 4.2 | AN175: 12.8 | AO175: 0 | AP175: 99.5 | AQ175: 99.6 | AR175: 98.4 | AS175: 99.8 | AT175: 100 | AU175: 0 | AV175: 58 | AW175: 0.5 | AX175: 99.7 | AY175: 27.6 | AZ175: 97.9
A176: 2012-10-23T12:00:00 | B176: 99.9 | C176: 100 | D176: 96 | E176: 100 | F176: 0 | G176: 54.8 | H176: 0 | I176: 0 | J176: 0 | K176: 72.6 | L176: 99.5 | M176: 0 | N176: 100 | O176: 0 | P176: 98.3 | Q176: 40.2 | R176: 99.5 | S176: =(100-S76) -> 100 | T176: 100 | U176: 0.5 | V176: 0 | W176: 0.1 | X176: 8.2 | Y176: 3.6 | Z176: 100 | AA176: 95.9 | AB176: 99.3 | AC176: 100 | AD176: 26.7 | AE176: 33.4 | AF176: 0.1 | AG176: 4.8 | AH176: 0 | AI176: 72.5 | AJ176: 99.5 | AK176: 31.4 | AL176: 100 | AM176: 4.1 | AN176: 12.7 | AO176: 0 | AP176: 99.5 | AQ176: 99.6 | AR176: 98.4 | AS176: 99.9 | AT176: 100 | AU176: 0 | AV176: 55.9 | AW176: 0.4 | AX176: 99.7 | AY176: 25 | AZ176: 98
A177: 2012-10-24T12:00:00 | B177: 99.9 | C177: 99.4 | D177: 97.3 | E177: 99.9 | F177: 0 | G177: 51.4 | H177: 0 | I177: 0 | J177: 0 | K177: 70.5 | L177: 99.9 | M177: 0 | N177: 100 | O177: 0 | P177: 99 | Q177: 35.4 | R177: 99.5 | S177: =(100-S77) -> 99.9 | T177: 100 | U177: 0.3 | V177: 0 | W177: 0.1 | X177: 6.5 | Y177: 2.3 | Z177: 100 | AA177: 97.9 | AB177: 99.3 | AC177: 100 | AD177: 22.5 | AE177: 33.1 | AF177: 0.2 | AG177: 4.6 | AH177: 0 | AI177: 74.2 | AJ177: 99.5 | AK177: 31.4 | AL177: 100 | AM177: 3.2 | AN177: 7.2 | AO177: 0 | AP177: 99.5 | AQ177: 99.6 | AR177: 99.7 | AS177: 99.9 | AT177: 100 | AU177: 0 | AV177: 51.4 | AW177: 0.4 | AX177: 99.7 | AY177: 19.5 | AZ177: 99.4
A178: 2012-10-25T12:00:00 | B178: 99.9 | C178: 99.4 | D178: 96.9 | E178: 99.9 | F178: 0 | G178: 51 | H178: 0 | I178: 0 | J178: 0 | K178: 67.6 | L178: 99.9 | M178: 0 | N178: 100 | O178: 0 | P178: 99.3 | Q178: 37.8 | R178: 99.5 | S178: =(100-S78) -> 99.9 | T178: 100 | U178: 0.3 | V178: 0 | W178: 0.1 | X178: 4.7 | Y178: 1.8 | Z178: 100 | AA178: 95.1 | AB178: 99.5 | AC178: 100 | AD178: 27.2 | AE178: 33.4 | AF178: 0.1 | AG178: 4.8 | AH178: 0 | AI178: 72.7 | AJ178: 99.5 | AK178: 34.4 | AL178: 100 | AM178: 1.1 | AN178: 12.1 | AO178: 0 | AP178: 99.5 | AQ178: 99.6 | AR178: 99.7 | AS178: 99.8 | AT178: 100 | AU178: 0 | AV178: 48.9 | AW178: 0.4 | AX178: 99.7 | AY178: 21.4 | AZ178: 99.5
A179: 2012-10-26T12:00:00 | B179: 99.9 | C179: 100 | D179: 97.2 | E179: 100 | F179: 0 | G179: 47.7 | H179: 0 | I179: 0 | J179: 0 | K179: 75.3 | L179: 99.5 | M179: 0 | N179: 100 | O179: 0 | P179: 99.2 | Q179: 36.7 | R179: 99.5 | S179: =(100-S79) -> 100 | T179: 100 | U179: 0.3 | V179: 0 | W179: 1.3 | X179: 3.9 | Y179: 2.5 | Z179: 100 | AA179: 97.5 | AB179: 99.5 | AC179: 100 | AD179: 23.3 | AE179: 31.1 | AF179: 2.5 | AG179: 2.2 | AH179: 0 | AI179: 73 | AJ179: 99.5 | AK179: 29.8 | AL179: 100 | AM179: 0.8 | AN179: 7.3 | AO179: 0 | AP179: 99.9 | AQ179: 99.6 | AR179: 98.4 | AS179: 100 | AT179: 100 | AU179: 0 | AV179: 51.8 | AW179: 0.4 | AX179: 99.7 | AY179: 21.2 | AZ179: 98
A180: 2012-10-27T12:00:00 | B180: 99.9 | C180: 100 | D180: 97.5 | E180: 100 | F180: 0 | G180: 51.6 | H180: 0 | I180: 0 | J180: 0 | K180: 78.4 | L180: 99.5 | M180: 0 | N180: 100 | O180: 0 | P180: 99.1 | Q180: 30.4 | R180: 99.5 | S180: =(100-S80) -> 100 | T180: 100 | U180: 0.5 | V180: 0 | W180: 1.3 | X180: 5.2 | Y180: 5 | Z180: 100 | AA180: 96.9 | AB180: 99.1 | AC180: 100 | AD180: 21.2 | AE180: 30.1 | AF180: 0.5 | AG180: 2.6 | AH180: 0 | AI180: 75.2 | AJ180: 99.5 | AK180: 34.9 | AL180: 100 | AM180: 0.8 | AN180: 11.6 | AO180: 0 | AP180: 99.9 | AQ180: 99.8 | AR180: 98.4 | AS180: 100 | AT180: 100 | AU180: 0 | AV180: 56.3 | AW180: 0.4 | AX180: 99.9 | AY180: 26.4 | AZ180: 98.1
A181: 2012-10-28T12:00:00 | B181: 99.9 | C181: 100 | D181: 97.9 | E181: 100 | F181: 0 | G181: 50.7 | H181: 0 | I181: =(100-I81) -> 0 | J181: 0 | K181: 77.9 | L181: 99.5 | M181: 0 | N181: 100 | O181: 0 | P181: 99.5 | Q181: 31.7 | R181: 99.5 | S181: 100 | T181: 100 | U181: 0.5 | V181: 0 | W181: 1.2 | X181: 5.6 | Y181: 2.4 | Z181: 100 | AA181: 97 | AB181: 99.1 | AC181: 100 | AD181: 21.5 | AE181: 34.6 | AF181: 4 | AG181: 2.8 | AH181: 0 | AI181: 76.4 | AJ181: 99.5 | AK181: 32.6 | AL181: 100 | AM181: 0.5 | AN181: 13.1 | AO181: 0 | AP181: 99.9 | AQ181: 99.8 | AR181: 98.4 | AS181: 100 | AT181: 100 | AU181: 0 | AV181: 58.2 | AW181: 0.4 | AX181: 99.9 | AY181: 22.3 | AZ181: 98.1
A182: 2012-10-29T12:00:00 | B182: 99.9 | C182: 100 | D182: =(100-D82) -> 97.9 | E182: 100 | F182: 0 | G182: 53.4 | H182: 0 | I182: 0 | J182: 0 | K182: 79.8 | L182: 99.5 | M182: 0 | N182: 100 | O182: 0 | P182: 99.3 | Q182: 31.5 | R182: 99.5 | S182: 100 | T182: 100 | U182: 0.3 | V182: 0 | W182: 1.2 | X182: 4.9 | Y182: 2.4 | Z182: 100 | AA182: 97.5 | AB182: 99.1 | AC182: 100 | AD182: 19.7 | AE182: 38 | AF182: 2.3 | AG182: 2.3 | AH182: 0 | AI182: 76 | AJ182: 99.5 | AK182: 37.6 | AL182: 100 | AM182: 0.9 | AN182: 13.9 | AO182: 0 | AP182: 99.9 | AQ182: 99.6 | AR182: 98.4 | AS182: 100 | AT182: 100 | AU182: 0 | AV182: 58.2 | AW182: 0.4 | AX182: 99.7 | AY182: 23.9 | AZ182: 98.1
A183: 2012-10-30T12:00:00 | B183: 99.9 | C183: 98.4 | D183: =(100-D83) -> 98.3 | E183: 100 | F183: 0 | G183: 55 | H183: 0 | I183: 0 | J183: 0 | K183: 79.7 | L183: 99.5 | M183: 0 | N183: 100 | O183: 0 | P183: 99.4 | Q183: 31.6 | R183: 99.5 | S183: 100 | T183: 100 | U183: 0.3 | V183: 0 | W183: 1.2 | X183: 5.3 | Y183: 4.9 | Z183: 100 | AA183: 98.5 | AB183: 99.1 | AC183: 100 | AD183: 18 | AE183: 46.1 | AF183: 2.5 | AG183: 2.4 | AH183: 0 | AI183: 78.9 | AJ183: 99.5 | AK183: 35.5 | AL183: 100 | AM183: 0.9 | AN183: 11.7 | AO183: 0 | AP183: 100 | AQ183: 99.6 | AR183: 99.6 | AS183: 100 | AT183: 100 | AU183: 0 | AV183: 62.7 | AW183: 0.4 | AX183: 99.5 | AY183: 27.2 | AZ183: 98.1
A184: 2012-10-31T12:00:00 | B184: 99.9 | C184: 98.4 | D184: =(100-D84) -> 98.9 | E184: 100 | F184: 0 | G184: 50.4 | H184: 0 | I184: 0 | J184: 0 | K184: 79.7 | L184: 99.5 | M184: 0 | N184: 100 | O184: 0 | P184: 99.4 | Q184: 32.2 | R184: 100 | S184: 100 | T184: 100 | U184: 0.1 | V184: 0 | W184: 1.2 | X184: 2.6 | Y184: 2.6 | Z184: 100 | AA184: 98.6 | AB184: 99.1 | AC184: 100 | AD184: 8 | AE184: 35 | AF184: 2.3 | AG184: 3 | AH184: 0 | AI184: 89.1 | AJ184: 99.9 | AK184: 35 | AL184: 99.8 | AM184: 0.9 | AN184: 8.1 | AO184: 0 | AP184: 99.9 | AQ184: 99.9 | AR184: 98.3 | AS184: 100 | AT184: 100 | AU184: 0 | AV184: 54.2 | AW184: 3.1 | AX184: 99.5 | AY184: 22.5 | AZ184: 98.2
A185: 2012-11-01T12:00:00 | B185: 99.8 | C185: 98.4 | D185: =(100-D85) -> 99.2 | E185: 100 | F185: 0 | G185: 53.9 | H185: 0 | I185: 0 | J185: 0 | K185: 78.8 | L185: 99.7 | M185: 0 | N185: 100 | O185: 0 | P185: 99.5 | Q185: 32.7 | R185: 100 | S185: 100 | T185: 99.9 | U185: 0.1 | V185: 0 | W185: 0.4 | X185: 9.1 | Y185: 2.6 | Z185: 100 | AA185: 98.6 | AB185: 99.7 | AC185: 99.9 | AD185: 19.8 | AE185: 42.6 | AF185: 2 | AG185: 1.4 | AH185: 0 | AI185: 92.3 | AJ185: 99.9 | AK185: 38.6 | AL185: 99.8 | AM185: 0.9 | AN185: 14.6 | AO185: 0 | AP185: 100 | AQ185: 99.9 | AR185: 99.9 | AS185: 100 | AT185: 100 | AU185: 0 | AV185: 59.2 | AW185: 0.4 | AX185: 99.7 | AY185: 26.3 | AZ185: 99.9
A186: 2012-11-02T12:00:00 | B186: 100 | C186: 100 | D186: =(100-D86) -> 100 | E186: 100 | F186: 100 | G186: 100 | H186: 100 | I186: 100 | J186: 100 | K186: 100 | L186: 100 | M186: 100 | N186: 100 | O186: 100 | P186: 100 | Q186: 100 | R186: 100 | S186: 100 | T186: 100 | U186: 100 | V186: 100 | W186: 100 | X186: 100 | Y186: 100 | Z186: 100 | AA186: 100 | AB186: 100 | AC186: 100 | AD186: 100 | AE186: 100 | AF186: 100 | AG186: 100 | AH186: 100 | AI186: 100 | AJ186: 100 | AK186: 100 | AL186: 100 | AM186: 100 | AN186: 100 | AO186: 100 | AP186: 100 | AQ186: 100 | AR186: 100 | AS186: 100 | AT186: 100 | AU186: 100 | AV186: 100 | AW186: 100 | AX186: 100 | AY186: 100 | AZ186: 100
A187: 2012-11-03T12:00:00 | B187: 100 | C187: 100 | D187: =(100-D87) -> 100 | E187: 100 | F187: 100 | G187: 100 | H187: 100 | I187: 100 | J187: 100 | K187: 100 | L187: 100 | M187: 100 | N187: 100 | O187: 100 | P187: 100 | Q187: 100 | R187: 100 | S187: 100 | T187: 100 | U187: 100 | V187: 100 | W187: 100 | X187: 100 | Y187: 100 | Z187: 100 | AA187: 100 | AB187: 100 | AC187: 100 | AD187: 100 | AE187: 100 | AF187: 100 | AG187: 100 | AH187: 100 | AI187: 100 | AJ187: 100 | AK187: 100 | AL187: 100 | AM187: 100 | AN187: 100 | AO187: 100 | AP187: 100 | AQ187: 100 | AR187: 100 | AS187: 100 | AT187: 100 | AU187: 100 | AV187: 100 | AW187: 100 | AX187: 100 | AY187: 100 | AZ187: 100
A188: 2012-11-04T12:00:00 | B188: 100 | C188: 100 | D188: =(100-D88) -> 100 | E188: 100 | F188: 100 | G188: 100 | H188: 100 | I188: 100 | J188: 100 | K188: 100 | L188: 100 | M188: 100 | N188: 100 | O188: 100 | P188: 100 | Q188: 100 | R188: 100 | S188: 100 | T188: 100 | U188: 100 | V188: 100 | W188: 100 | X188: 100 | Y188: 100 | Z188: 100 | AA188: 100 | AB188: 100 | AC188: 100 | AD188: 100 | AE188: 100 | AF188: 100 | AG188: 100 | AH188: 100 | AI188: 100 | AJ188: 100 | AK188: 100 | AL188: 100 | AM188: 100 | AN188: 100 | AO188: 100 | AP188: 100 | AQ188: 100 | AR188: 100 | AS188: 100 | AT188: 100 | AU188: 100 | AV188: 100 | AW188: 100 | AX188: 100 | AY188: 100 | AZ188: 100
A189: 2012-11-05T12:00:00 | B189: 100 | C189: 100 | D189: =(100-D89) -> 100 | E189: 100 | F189: 100 | G189: 100 | H189: 100 | I189: 100 | J189: 100 | K189: 100 | L189: 100 | M189: 100 | N189: 100 | O189: 100 | P189: 100 | Q189: 100 | R189: 100 | S189: 100 | T189: 100 | U189: 100 | V189: 100 | W189: 100 | X189: 100 | Y189: 100 | Z189: 100 | AA189: 100 | AB189: 100 | AC189: 100 | AD189: 100 | AE189: 100 | AF189: 100 | AG189: 100 | AH189: 100 | AI189: 100 | AJ189: 100 | AK189: 100 | AL189: 100 | AM189: 100 | AN189: 100 | AO189: 100 | AP189: 100 | AQ189: 100 | AR189: 100 | AS189: 100 | AT189: 100 | AU189: 100 | AV189: 100 | AW189: 100 | AX189: 100 | AY189: 100 | AZ189: 100
A190: 2012-11-06T12:00:00 | B190: 100 | C190: 100 | D190: =(100-D90) -> 100 | E190: 100 | F190: 100 | G190: 100 | H190: 100 | I190: 100 | J190: 100 | K190: 100 | L190: 100 | M190: 100 | N190: 100 | O190: 100 | P190: 100 | Q190: 100 | R190: 100 | S190: 100 | T190: 100 | U190: 100 | V190: 100 | W190: 100 | X190: 100 | Y190: 100 | Z190: 100 | AA190: 100 | AB190: 100 | AC190: 100 | AD190: 100 | AE190: 100 | AF190: 100 | AG190: 100 | AH190: 100 | AI190: 100 | AJ190: 100 | AK190: 100 | AL190: 100 | AM190: 100 | AN190: 100 | AO190: 100 | AP190: 100 | AQ190: 100 | AR190: 100 | AS190: 100 | AT190: 100 | AU190: 100 | AV190: 100 | AW190: 100 | AX190: 100 | AY190: 100 | AZ190: 100

Sheet Senate
A1: Timestamp | B1: Arizona | C1: California | D1: Connecticut | E1: Delaware | F1: Florida | G1: Hawaii | H1: Indiana | I1: Maine | J1: Maryland | K1: Massachusetts | L1: Michigan | M1: Minnesota | N1: Mississippi | O1: Missouri | P1: Montana | Q1: Nebraska | R1: Nevada | S1: New Jersey | T1: New Mexico | U1: New York | V1: North Dakota | W1: Ohio | X1: Pennsylvania | Y1: Rhode Island | Z1: Tennessee | AA1: Texas | AB1: Utah | AC1: Vermont | AD1: Virginia | AE1: Washington | AF1: West Virginia | AG1: Wisconsin | AH1: Wyoming
A2: 2012-08-01T12:00:00 | B2: 9.6 | C2: 100 | D2: 96.8 | E2: 100 | F2: 60.2 | G2: 91.5 | H2: 13 | I2: 3.1 | J2: 100 | K2: 60.9 | L2: 92.8 | M2: 100 | N2: 0 | O2: 10.3 | P2: 32.8 | Q2: 14 | R2: 29.2 | S2: 100 | T2: 85.7 | U2: 100 | V2: 6 | W2: 77 | X2: 100 | Y2: 100 | Z2: 0 | AA2: 0 | AB2: 0 | AC2: 100 | AD2: 48.1 | AE2: 100 | AF2: 94.9 | AG2: 40.1 | AH2: 0
A3: 2012-08-02T12:00:00 | B3: 9.6 | C3: 100 | D3: 96.8 | E3: 100 | F3: 60.2 | G3: 91.5 | H3: 13 | I3: 3.1 | J3: 100 | K3: 62.2 | L3: 92.8 | M3: 100 | N3: 0 | O3: 10.3 | P3: 32.8 | Q3: 14 | R3: 29.2 | S3: 100 | T3: 85.7 | U3: 100 | V3: 6 | W3: 77 | X3: 100 | Y3: 100 | Z3: 0 | AA3: 0 | AB3: 0 | AC3: 100 | AD3: 48.1 | AE3: 100 | AF3: 94.9 | AG3: 43.9 | AH3: 0
A4: 2012-08-03T12:00:00 | B4: 11.1 | C4: 100 | D4: 96.8 | E4: 100 | F4: 60.2 | G4: 91.5 | H4: 10.5 | I4: 3.1 | J4: 100 | K4: 62 | L4: 92.8 | M4: 100 | N4: 0 | O4: 9.8 | P4: 32.8 | Q4: 11.9 | R4: 29.2 | S4: 100 | T4: 85.7 | U4: 100 | V4: 6 | W4: 73.6 | X4: 100 | Y4: 100 | Z4: 0 | AA4: 0 | AB4: 0 | AC4: 100 | AD4: 48.1 | AE4: 100 | AF4: 94.9 | AG4: 43.9 | AH4: 0
A5: 2012-08-04T12:00:00 | B5: 11.1 | C5: 100 | D5: 96.8 | E5: 100 | F5: 59.9 | G5: 91.5 | H5: 11.5 | I5: 3.1 | J5: 100 | K5: 62.6 | L5: 92.8 | M5: 100 | N5: 0 | O5: 9.6 | P5: 32.8 | Q5: 11.9 | R5: 29.2 | S5: 100 | T5: 85.7 | U5: 100 | V5: 6 | W5: 73.6 | X5: 100 | Y5: 100 | Z5: 0 | AA5: 0 | AB5: 0 | AC5: 100 | AD5: 48.1 | AE5: 100 | AF5: 94.9 | AG5: 43.9 | AH5: 0
A6: 2012-08-05T12:00:00 | B6: 11.1 | C6: 100 | D6: 96.8 | E6: 100 | F6: 59.9 | G6: 91.5 | H6: 11.5 | I6: 3.1 | J6: 100 | K6: 62.6 | L6: 95 | M6: 100 | N6: 0 | O6: 9.6 | P6: 32.8 | Q6: 11.9 | R6: 29.2 | S6: 100 | T6: 85.7 | U6: 100 | V6: 6 | W6: 73.6 | X6: 100 | Y6: 100 | Z6: 0 | AA6: 0 | AB6: 0 | AC6: 100 | AD6: 48.1 | AE6: 100 | AF6: 94.9 | AG6: 43.9 | AH6: 0
A7: 2012-08-06T12:00:00 | B7: 11.1 | C7: 100 | D7: 96.8 | E7: 100 | F7: 59.9 | G7: 91.5 | H7: 10.5 | I7: 3.1 | J7: 100 | K7: 62.6 | L7: 95 | M7: 100 | N7: 0 | O7: 9.6 | P7: 21.5 | Q7: 14 | R7: 29.2 | S7: 100 | T7: 85.7 | U7: 100 | V7: 6 | W7: 73.6 | X7: 100 | Y7: 100 | Z7: 0 | AA7: 0 | AB7: 0 | AC7: 100 | AD7: 48.1 | AE7: 100 | AF7: 94.9 | AG7: 43.9 | AH7: 0
A8: 2012-08-07T12:00:00 | B8: 11.1 | C8: 100 | D8: 96.8 | E8: 100 | F8: 59.6 | G8: 91 | H8: 10.6 | I8: 3.1 | J8: 100 | K8: 62.6 | L8: 95 | M8: 100 | N8: 0 | O8: 9.6 | P8: 21.5 | Q8: 14 | R8: 29.2 | S8: 100 | T8: 85.7 | U8: 100 | V8: 6 | W8: 73.6 | X8: 100 | Y8: 100 | Z8: 0 | AA8: 0 | AB8: 0 | AC8: 100 | AD8: 48.1 | AE8: 100 | AF8: 94.9 | AG8: 43.9 | AH8: 0
A9: 2012-08-08T12:00:00 | B9: 11.1 | C9: 100 | D9: 96.8 | E9: 100 | F9: 59.6 | G9: 91 | H9: 10.6 | I9: 3.3 | J9: 100 | K9: 63.1 | L9: 95 | M9: 100 | N9: 0 | O9: 19.6 | P9: 21.5 | Q9: 14 | R9: 29.2 | S9: 100 | T9: 85.7 | U9: 100 | V9: 6 | W9: 73.7 | X9: 100 | Y9: 100 | Z9: 0 | AA9: 0 | AB9: 0 | AC9: 100 | AD9: 48.1 | AE9: 100 | AF9: 94.9 | AG9: 45.9 | AH9: 0
A10: 2012-08-09T12:00:00 | B10: 11.1 | C10: 100 | D10: 96.8 | E10: 100 | F10: 57.2 | G10: 91 | H10: 10.5 | I10: 3.3 | J10: 100 | K10: 63.1 | L10: 95 | M10: 100 | N10: 0 | O10: 19.6 | P10: 21.5 | Q10: 14 | R10: 29.2 | S10: 100 | T10: 85.7 | U10: 100 | V10: 6 | W10: 73.7 | X10: 100 | Y10: 100 | Z10: 0 | AA10: 0 | AB10: 0 | AC10: 100 | AD10: 48.1 | AE10: 100 | AF10: 94.9 | AG10: 43.1 | AH10: 0
A11: 2012-08-10T12:00:00 | B11: 11.3 | C11: 100 | D11: 96.8 | E11: 100 | F11: 61 | G11: 91 | H11: 10.4 | I11: 12 | J11: 100 | K11: 63.3 | L11: 95 | M11: 100 | N11: 0 | O11: 22.9 | P11: 22.5 | Q11: 14.4 | R11: 28.8 | S11: 100 | T11: 85.2 | U11: 100 | V11: 6.3 | W11: 73.7 | X11: 100 | Y11: 100 | Z11: 0 | AA11: 0 | AB11: 0 | AC11: 100 | AD11: 48.3 | AE11: 100 | AF11: 94.6 | AG11: 44.1 | AH11: 0
A12: 2012-08-11T12:00:00 | B12: 11.3 | C12: 100 | D12: 96.8 | E12: 100 | F12: 64.4 | G12: 91 | H12: 10.4 | I12: 12 | J12: 100 | K12: 63.3 | L12: 95 | M12: 100 | N12: 0 | O12: 23 | P12: 22.5 | Q12: 14.4 | R12: 28.8 | S12: 100 | T12: 85.2 | U12: 100 | V12: 6.3 | W12: 73.7 | X12: 100 | Y12: 100 | Z12: 0 | AA12: 0 | AB12: 0 | AC12: 100 | AD12: 38.8 | AE12: 100 | AF12: 94.6 | AG12: 44.8 | AH12: 0
A13: 2012-08-12T12:00:00 | B13: 11.3 | C13: 100 | D13: 98 | E13: 100 | F13: 65.1 | G13: 91 | H13: 15.3 | I13: 12 | J13: 100 | K13: 63.5 | L13: 92.9 | M13: 100 | N13: 0 | O13: 20 | P13: 27.5 | Q13: 14.4 | R13: 28.8 | S13: 100 | T13: 85.2 | U13: 100 | V13: 6.3 | W13: 73.5 | X13: 100 | Y13: 100 | Z13: 0 | AA13: 0 | AB13: 0 | AC13: 100 | AD13: 46.1 | AE13: 100 | AF13: 93.7 | AG13: 43.3 | AH13: 0
A14: 2012-08-13T12:00:00 | B14: 11.8 | C14: 100 | D14: 98 | E14: 100 | F14: 65.1 | G14: 91 | H14: 20.9 | I14: 12 | J14: 100 | K14: 64.2 | L14: 92.9 | M14: 100 | N14: 0 | O14: 28.5 | P14: 27.5 | Q14: 14.4 | R14: 28.8 | S14: 100 | T14: 85.2 | U14: 100 | V14: 6.3 | W14: 73.5 | X14: 100 | Y14: 100 | Z14: 0 | AA14: 0 | AB14: 0 | AC14: 100 | AD14: 49.1 | AE14: 100 | AF14: 93.7 | AG14: 43.3 | AH14: 0
A15: 2012-08-14T12:00:00 | B15: 11.8 | C15: 100 | D15: 98 | E15: 100 | F15: 64.8 | G15: 91 | H15: 20.9 | I15: 12 | J15: 100 | K15: 62.9 | L15: 92.9 | M15: 100 | N15: 0 | O15: 28.5 | P15: 28.1 | Q15: 14 | R15: 28.8 | S15: 100 | T15: 85.2 | U15: 100 | V15: 6.3 | W15: 73.5 | X15: 100 | Y15: 100 | Z15: 0 | AA15: 0 | AB15: 0 | AC15: 100 | AD15: 49.1 | AE15: 100 | AF15: 93.9 | AG15: 43.3 | AH15: 0
A16: 2012-08-15T12:00:00 | B16: 11.8 | C16: 100 | D16: 98 | E16: 100 | F16: 64.8 | G16: 91 | H16: 20.9 | I16: 12 | J16: 100 | K16: 62.9 | L16: 92.9 | M16: 100 | N16: 0 | O16: 28.5 | P16: 28.1 | Q16: 14 | R16: 28.8 | S16: 100 | T16: 85.2 | U16: 100 | V16: 6.3 | W16: 73.5 | X16: 100 | Y16: 100 | Z16: 0 | AA16: 0 | AB16: 0 | AC16: 100 | AD16: 49.1 | AE16: 100 | AF16: 93.9 | AG16: 43.3 | AH16: 0
A17: 2012-08-16T12:00:00 | B17: 11.8 | C17: 100 | D17: 98 | E17: 100 | F17: 64.8 | G17: 91 | H17: 20.9 | I17: 12 | J17: 100 | K17: 62.9 | L17: 92.9 | M17: 100 | N17: 0 | O17: 28.5 | P17: 28.1 | Q17: 14 | R17: 28.8 | S17: 100 | T17: 85.2 | U17: 100 | V17: 6.3 | W17: 73.5 | X17: 100 | Y17: 100 | Z17: 0 | AA17: 0 | AB17: 0 | AC17: 100 | AD17: 49.1 | AE17: 100 | AF17: 93.9 | AG17: 43.3 | AH17: 0
A18: 2012-08-17T12:00:00 | B18: 11.8 | C18: 100 | D18: 98 | E18: 100 | F18: 65.8 | G18: 91 | H18: 20.9 | I18: 11.6 | J18: 100 | K18: 62.8 | L18: 92 | M18: 100 | N18: 0 | O18: 28.5 | P18: 32.6 | Q18: 10.3 | R18: 25.6 | S18: 100 | T18: 85.2 | U18: 100 | V18: 11.8 | W18: 61.2 | X18: 100 | Y18: 100 | Z18: 0 | AA18: 0 | AB18: 0 | AC18: 100 | AD18: 49.8 | AE18: 100 | AF18: 93.9 | AG18: 37.5 | AH18: 0
A19: 2012-08-18T12:00:00 | B19: 11.8 | C19: 100 | D19: 98 | E19: 100 | F19: 67 | G19: 91 | H19: 27.1 | I19: 11.6 | J19: 100 | K19: 59.2 | L19: 92 | M19: 100 | N19: 0 | O19: 28.5 | P19: 32.6 | Q19: 10.3 | R19: 25.6 | S19: 100 | T19: 85.2 | U19: 100 | V19: 11.8 | W19: 73.4 | X19: 100 | Y19: 100 | Z19: 0 | AA19: 0 | AB19: 0 | AC19: 100 | AD19: 49.8 | AE19: 100 | AF19: 93.9 | AG19: 26.9 | AH19: 0
A20: 2012-08-19T12:00:00 | B20: 11.8 | C20: 100 | D20: 98 | E20: 100 | F20: 67 | G20: 91 | H20: 27.1 | I20: 11.6 | J20: 100 | K20: 62.8 | L20: 92 | M20: 100 | N20: 0 | O20: 28.5 | P20: 31.9 | Q20: 10.3 | R20: 25.6 | S20: 100 | T20: 85.2 | U20: 100 | V20: 11.3 | W20: 73.4 | X20: 100 | Y20: 100 | Z20: 0 | AA20: 0 | AB20: 0 | AC20: 100 | AD20: 49.8 | AE20: 100 | AF20: 93.9 | AG20: 26.9 | AH20: 0
A21: 2012-08-20T12:00:00 | B21: 11.8 | C21: 100 | D21: 98 | E21: 100 | F21: 67 | G21: 91 | H21: 23.9 | I21: 11.6 | J21: 100 | K21: 61.5 | L21: 92 | M21: 100 | N21: 0 | O21: 55.3 | P21: 31.9 | Q21: 10.3 | R21: 25.6 | S21: 100 | T21: 85.2 | U21: 100 | V21: 14.3 | W21: 73.4 | X21: 100 | Y21: 100 | Z21: 0 | AA21: 0 | AB21: 0 | AC21: 100 | AD21: 46.9 | AE21: 100 | AF21: 93.9 | AG21: 26.9 | AH21: 0
A22: 2012-08-21T12:00:00 | B22: 11.8 | C22: 100 | D22: 98 | E22: 100 | F22: 67 | G22: 91 | H22: 24.2 | I22: 11.6 | J22: 100 | K22: 55.6 | L22: 92 | M22: 100 | N22: 0 | O22: 59.2 | P22: 35.7 | Q22: 10 | R22: 25.6 | S22: 100 | T22: 85.2 | U22: 100 | V22: 14.5 | W22: 68.8 | X22: 100 | Y22: 100 | Z22: 0 | AA22: 0 | AB22: 0 | AC22: 100 | AD22: 46.9 | AE22: 100 | AF22: 93.9 | AG22: 27.6 | AH22: 0
A23: 2012-08-22T12:00:00 | B23: 11.8 | C23: 100 | D23: 98 | E23: 100 | F23: 67 | G23: 91 | H23: 24.2 | I23: 11.6 | J23: 100 | K23: 46.6 | L23: 92 | M23: 100 | N23: 0 | O23: 68.8 | P23: 30.5 | Q23: 10 | R23: 25.6 | S23: 100 | T23: 85.2 | U23: 100 | V23: 14.5 | W23: 68.8 | X23: 100 | Y23: 100 | Z23: 0 | AA23: 0 | AB23: 0 | AC23: 100 | AD23: 46.9 | AE23: 100 | AF23: 93.9 | AG23: 28.3 | AH23: 0
A24: 2012-08-23T12:00:00 | B24: 46.2 | C24: 100 | D24: 87.7 | E24: 100 | F24: 68.4 | G24: 91 | H24: 27.6 | I24: 11.6 | J24: 100 | K24: 46.6 | L24: 92 | M24: 100 | N24: 0 | O24: 64.4 | P24: 30.5 | Q24: 10.2 | R24: 24.3 | S24: 100 | T24: 85.2 | U24: 100 | V24: 19.9 | W24: 68.1 | X24: 100 | Y24: 100 | Z24: 0 | AA24: 0 | AB24: 0 | AC24: 100 | AD24: 46.9 | AE24: 100 | AF24: 93.9 | AG24: 24.5 | AH24: 0
A25: 2012-08-24T12:00:00 | B25: 20.7 | C25: 100 | D25: 82.6 | E25: 100 | F25: 65.8 | G25: 92.6 | H25: 25.8 | I25: 11.6 | J25: 100 | K25: 46.8 | L25: 93.1 | M25: 100 | N25: 0 | O25: 67 | P25: 30.5 | Q25: 10.1 | R25: 24.3 | S25: 100 | T25: 85.2 | U25: 100 | V25: 21.8 | W25: 70.1 | X25: 100 | Y25: 100 | Z25: 0 | AA25: 0 | AB25: 0 | AC25: 100 | AD25: 46.9 | AE25: 100 | AF25: 97 | AG25: 19.4 | AH25: 0
A26: 2012-08-25T12:00:00 | B26: 20.7 | C26: 100 | D26: 87.5 | E26: 100 | F26: 65.8 | G26: 92.6 | H26: 25.8 | I26: 11.6 | J26: 100 | K26: 46.8 | L26: 93.1 | M26: 100 | N26: 0 | O26: 69.2 | P26: 30.5 | Q26: 10.1 | R26: 24.3 | S26: 100 | T26: 85.2 | U26: 100 | V26: 21.9 | W26: 72.1 | X26: 100 | Y26: 100 | Z26: 0 | AA26: 0 | AB26: 0 | AC26: 100 | AD26: 46.9 | AE26: 100 | AF26: 97 | AG26: 22.5 | AH26: 0
A27: 2012-08-26T12:00:00 | B27: 20.7 | C27: 100 | D27: 87.5 | E27: 100 | F27: 65.8 | G27: 92.6 | H27: 25.4 | I27: 11.6 | J27: 100 | K27: 46.6 | L27: 93.1 | M27: 100 | N27: 0 | O27: 69.1 | P27: 30.5 | Q27: 10.1 | R27: 24.3 | S27: 100 | T27: 85.2 | U27: 100 | V27: 21.9 | W27: 72.1 | X27: 100 | Y27: 100 | Z27: 0 | AA27: 0 | AB27: 0 | AC27: 100 | AD27: 46.9 | AE27: 100 | AF27: 97 | AG27: 22.4 | AH27: 0
A28: 2012-08-27T12:00:00 | B28: 20.7 | C28: 100 | D28: 87.5 | E28: 100 | F28: 65.6 | G28: 92.2 | H28: 25.4 | I28: 11.6 | J28: 100 | K28: 43.7 | L28: 87.6 | M28: 100 | N28: 0 | O28: 69.8 | P28: 30.7 | Q28: 10.1 | R28: 24.3 | S28: 100 | T28: 85.2 | U28: 100 | V28: 21.3 | W28: 68.1 | X28: 100 | Y28: 100 | Z28: 0 | AA28: 0 | AB28: 0 | AC28: 100 | AD28: 46.9 | AE28: 100 | AF28: 97 | AG28: 19.2 | AH28: 0
A29: 2012-08-28T12:00:00 | B29: 19.5 | C29: 100 | D29: 76.8 | E29: 100 | F29: 65.6 | G29: 92.2 | H29: 25.4 | I29: 11.6 | J29: 100 | K29: 35.7 | L29: 92 | M29: 100 | N29: 0 | O29: 73.2 | P29: 30.9 | Q29: 10.1 | R29: 24.3 | S29: 100 | T29: 85.2 | U29: 100 | V29: 17.2 | W29: 68.1 | X29: 100 | Y29: 100 | Z29: 0 | AA29: 0 | AB29: 0 | AC29: 100 | AD29: 46.7 | AE29: 100 | AF29: 97 | AG29: 23.6 | AH29: 0
A30: 2012-08-29T12:00:00 | B30: 19.5 | C30: 100 | D30: 76.8 | E30: 100 | F30: 65.6 | G30: 92.2 | H30: 25.4 | I30: 11.6 | J30: 100 | K30: 39.9 | L30: 92 | M30: 100 | N30: 0 | O30: 74.9 | P30: 34.8 | Q30: 10.1 | R30: 24.3 | S30: 100 | T30: 85.2 | U30: 100 | V30: 17.2 | W30: 68.1 | X30: 100 | Y30: 100 | Z30: 0 | AA30: 0 | AB30: 0 | AC30: 100 | AD30: 46.7 | AE30: 100 | AF30: 97 | AG30: 23.6 | AH30: 0
A31: 2012-08-30T12:00:00 | B31: 19.5 | C31: 100 | D31: 87.1 | E31: 100 | F31: 68.4 | G31: 92.2 | H31: 24.9 | I31: 11.6 | J31: 100 | K31: 39.6 | L31: 93.8 | M31: 100 | N31: 0 | O31: 71.6 | P31: 34.4 | Q31: 10.1 | R31: 28.8 | S31: 100 | T31: 85.2 | U31: 100 | V31: 21.3 | W31: 72.1 | X31: 100 | Y31: 100 | Z31: 0 | AA31: 0 | AB31: 0 | AC31: 100 | AD31: 52.5 | AE31: 100 | AF31: 97.8 | AG31: 11.7 | AH31: 0
A32: 2012-08-31T12:00:00 | B32: 18.1 | C32: 100 | D32: 85.2 | E32: 100 | F32: 68.3 | G32: 96.3 | H32: 24.9 | I32: 11.6 | J32: 100 | K32: 39.3 | L32: 93.8 | M32: 100 | N32: 0 | O32: 70.3 | P32: 34.4 | Q32: 10.1 | R32: 28.8 | S32: 100 | T32: 85.2 | U32: 100 | V32: 21.3 | W32: 68.1 | X32: 100 | Y32: 100 | Z32: 0 | AA32: 0 | AB32: 0 | AC32: 100 | AD32: 52.5 | AE32: 100 | AF32: 97.8 | AG32: 11.7 | AH32: 0
A33: 2012-09-01T12:00:00 | B33: 18.1 | C33: 100 | D33: 85.7 | E33: 100 | F33: 68.9 | G33: 95.1 | H33: 24.4 | I33: 5.3 | J33: 100 | K33: 40.5 | L33: 92 | M33: 100 | N33: 0 | O33: 68 | P33: 34.4 | Q33: 3.4 | R33: 28.7 | S33: 100 | T33: 85.2 | U33: 100 | V33: 21.3 | W33: 67.9 | X33: 100 | Y33: 100 | Z33: 0 | AA33: 1.1 | AB33: 0.6 | AC33: 100 | AD33: 52.5 | AE33: 100 | AF33: 98.4 | AG33: 11.7 | AH33: 0
A34: 2012-09-02T12:00:00 | B34: 17.7 | C34: 100 | D34: 84.7 | E34: 100 | F34: 68.8 | G34: 95.1 | H34: 24.4 | I34: 5.3 | J34: 100 | K34: 40.2 | L34: 91.9 | M34: 100 | N34: 0 | O34: 69.2 | P34: 34.3 | Q34: 3.4 | R34: 28.7 | S34: 100 | T34: 85.2 | U34: 100 | V34: 20.5 | W34: 67.9 | X34: 100 | Y34: 100 | Z34: 0 | AA34: 1.1 | AB34: 0.6 | AC34: 100 | AD34: 56.2 | AE34: 100 | AF34: 98.4 | AG34: 11.7 | AH34: 0
A35: 2012-09-03T12:00:00 | B35: 16.6 | C35: 100 | D35: 85.5 | E35: 100 | F35: 68.8 | G35: 90.1 | H35: 24.4 | I35: 4.3 | J35: 100 | K35: 36.7 | L35: 91.9 | M35: 100 | N35: 0 | O35: 64.4 | P35: 33.6 | Q35: 2.9 | R35: 28.7 | S35: 100 | T35: 85.2 | U35: 100 | V35: 19 | W35: 79.6 | X35: 100 | Y35: 100 | Z35: 0 | AA35: 3.8 | AB35: 0.6 | AC35: 100 | AD35: 56.6 | AE35: 100 | AF35: 99.8 | AG35: 11.7 | AH35: 0
A36: 2012-09-04T12:00:00 | B36: 16.6 | C36: 100 | D36: 85.5 | E36: 100 | F36: 69.2 | G36: 90.1 | H36: 27.1 | I36: 4.3 | J36: 100 | K36: 35.1 | L36: 91.9 | M36: 100 | N36: 0 | O36: 65.8 | P36: 32.6 | Q36: 2.6 | R36: 25.8 | S36: 100 | T36: 85.2 | U36: 100 | V36: 19.6 | W36: 72.6 | X36: 100 | Y36: 100 | Z36: 0 | AA36: 3.8 | AB36: 0.6 | AC36: 100 | AD36: 56.6 | AE36: 100 | AF36: 99.8 | AG36: 15.9 | AH36: 0
A37: 2012-09-05T12:00:00 | B37: 16.6 | C37: 100 | D37: 85.5 | E37: 100 | F37: 70.4 | G37: 90.1 | H37: 27.1 | I37: 4 | J37: 100 | K37: 39.1 | L37: 91.9 | M37: 100 | N37: 0 | O37: 66.1 | P37: 32.6 | Q37: 2.6 | R37: 25.8 | S37: 100 | T37: 85.2 | U37: 100 | V37: 19.7 | W37: 63.7 | X37: 100 | Y37: 100 | Z37: 0 | AA37: 3.8 | AB37: 0.6 | AC37: 100 | AD37: 65.1 | AE37: 100 | AF37: 99.8 | AG37: 11.7 | AH37: 0
A38: 2012-09-06T12:00:00 | B38: 16.6 | C38: 100 | D38: 85.2 | E38: 100 | F38: 70.4 | G38: 90.1 | H38: 31.6 | I38: 4 | J38: 100 | K38: 40 | L38: 91.9 | M38: 100 | N38: 0 | O38: 66.9 | P38: 32.6 | Q38: 2.7 | R38: 25.9 | S38: 100 | T38: 85.2 | U38: 100 | V38: 19.7 | W38: 63 | X38: 100 | Y38: 100 | Z38: 0 | AA38: 3.8 | AB38: 0.6 | AC38: 100 | AD38: 65.1 | AE38: 100 | AF38: 99.8 | AG38: 11.7 | AH38: 0
A39: 2012-09-07T12:00:00 | B39: 12.1 | C39: 100 | D39: 76.8 | E39: 100 | F39: 70.4 | G39: 97.1 | H39: 27.1 | I39: 3.4 | J39: 100 | K39: 40.3 | L39: 91.9 | M39: 100 | N39: 1.1 | O39: 69.9 | P39: 32.8 | Q39: 1.9 | R39: 25.9 | S39: 100 | T39: 85.2 | U39: 100 | V39: 19.7 | W39: 67.3 | X39: 100 | Y39: 100 | Z39: 0 | AA39: 0.9 | AB39: 0.3 | AC39: 100 | AD39: 60.3 | AE39: 100 | AF39: 99.9 | AG39: 11.7 | AH39: 0
A40: 2012-09-08T12:00:00 | B40: 12 | C40: 100 | D40: 76.8 | E40: 100 | F40: 70.4 | G40: 97.7 | H40: 27.1 | I40: 3.3 | J40: 100 | K40: 40.5 | L40: 93.8 | M40: 100 | N40: 1.1 | O40: 70.4 | P40: 29.8 | Q40: 1.6 | R40: 25.9 | S40: 100 | T40: 85.2 | U40: 100 | V40: 19.7 | W40: 67.5 | X40: 100 | Y40: 100 | Z40: 0 | AA40: 0.2 | AB40: 0.3 | AC40: 100 | AD40: 59.8 | AE40: 100 | AF40: 99.9 | AG40: 11.7 | AH40: 0.6
A41: 2012-09-09T12:00:00 | B41: 12 | C41: 100 | D41: 76.5 | E41: 100 | F41: 71.7 | G41: 97.7 | H41: 27.2 | I41: 3.3 | J41: 100 | K41: 40.6 | L41: 92 | M41: 100 | N41: 1.1 | O41: 68.1 | P41: 29.8 | Q41: 1.6 | R41: 26.1 | S41: 100 | T41: 85.2 | U41: 100 | V41: 25.5 | W41: 67.6 | X41: 100 | Y41: 100 | Z41: 0 | AA41: 0.2 | AB41: 0.3 | AC41: 100 | AD41: 59.4 | AE41: 100 | AF41: 99.9 | AG41: 11.7 | AH41: 0.6
A42: 2012-09-10T12:00:00 | B42: 12 | C42: 100 | D42: 76.5 | E42: 100 | F42: 71.7 | G42: 96.3 | H42: 27.2 | I42: 3.3 | J42: 100 | K42: 41.3 | L42: 92 | M42: 100 | N42: 1.1 | O42: 69.5 | P42: 29.8 | Q42: 1.5 | R42: 26.1 | S42: 100 | T42: 85.2 | U42: 100 | V42: 23.1 | W42: 67.6 | X42: 100 | Y42: 100 | Z42: 0 | AA42: 0.2 | AB42: 0.3 | AC42: 100 | AD42: 59.4 | AE42: 100 | AF42: 99.9 | AG42: 11.7 | AH42: 0.6
A43: 2012-09-11T12:00:00 | B43: 12 | C43: 100 | D43: 78.6 | E43: 100 | F43: 71.7 | G43: 96.3 | H43: 26.8 | I43: 3.4 | J43: 100 | K43: 40.5 | L43: 92 | M43: 100 | N43: 1.1 | O43: 69.6 | P43: 24.9 | Q43: 1.1 | R43: 27.2 | S43: 100 | T43: 85.2 | U43: 100 | V43: 24.6 | W43: 67.6 | X43: 100 | Y43: 100 | Z43: 0 | AA43: 0.1 | AB43: 0.3 | AC43: 100 | AD43: 60.8 | AE43: 100 | AF43: 99.8 | AG43: 11.7 | AH43: 0.6
A44: 2012-09-12T12:00:00 | B44: 16.7 | C44: 100 | D44: 78.6 | E44: 100 | F44: 76.8 | G44: 96.3 | H44: 28.3 | I44: 9.1 | J44: 100 | K44: 41.9 | L44: 93.8 | M44: 100 | N44: 1.1 | O44: 71 | P44: 24.9 | Q44: 1.1 | R44: 27.2 | S44: 100 | T44: 85.2 | U44: 100 | V44: 24.6 | W44: 70.2 | X44: 100 | Y44: 100 | Z44: 0 | AA44: 0.1 | AB44: 0.3 | AC44: 100 | AD44: 57 | AE44: 100 | AF44: 99.8 | AG44: 11.7 | AH44: 0.6
A45: 2012-09-13T12:00:00 | B45: 20.9 | C45: 100 | D45: 88 | E45: 100 | F45: 77.1 | G45: 96.3 | H45: 23.9 | I45: 3.6 | J45: 100 | K45: 41.9 | L45: 93.8 | M45: 100 | N45: 1.1 | O45: 72.9 | P45: 30.5 | Q45: 0.9 | R45: 27.2 | S45: 100 | T45: 85.2 | U45: 100 | V45: 23 | W45: 75.8 | X45: 100 | Y45: 100 | Z45: 0 | AA45: 0.1 | AB45: 0.3 | AC45: 100 | AD45: 53.2 | AE45: 100 | AF45: 99.8 | AG45: 11.7 | AH45: 0
A46: 2012-09-14T12:00:00 | B46: 10.7 | C46: 100 | D46: 85.9 | E46: 100 | F46: 82.3 | G46: 96.3 | H46: 23.9 | I46: 4.3 | J46: 100 | K46: 45 | L46: 93.9 | M46: 100 | N46: 1.1 | O46: 73.2 | P46: 32.6 | Q46: 0.9 | R46: 27.2 | S46: 100 | T46: 85.2 | U46: 100 | V46: 23 | W46: 76.6 | X46: 100 | Y46: 100 | Z46: 0 | AA46: 0.1 | AB46: 0.3 | AC46: 100 | AD46: 49.5 | AE46: 100 | AF46: 99.8 | AG46: 11.7 | AH46: 0
A47: 2012-09-15T12:00:00 | B47: 10.7 | C47: 100 | D47: 85.9 | E47: 100 | F47: 83 | G47: 96.3 | H47: 23.9 | I47: 4.3 | J47: 100 | K47: 46.5 | L47: 93.9 | M47: 100 | N47: 1.1 | O47: 73.6 | P47: 36.1 | Q47: 0.9 | R47: 28.6 | S47: 100 | T47: 85.2 | U47: 100 | V47: 23 | W47: 76.6 | X47: 100 | Y47: 100 | Z47: 0 | AA47: 0.1 | AB47: 0.3 | AC47: 100 | AD47: 49.5 | AE47: 100 | AF47: 99.8 | AG47: 11.7 | AH47: 0
A48: 2012-09-16T12:00:00 | B48: 10.7 | C48: 100 | D48: 85.1 | E48: 100 | F48: 83 | G48: 96.3 | H48: 23.9 | I48: 4.3 | J48: 100 | K48: 46.8 | L48: 93.9 | M48: 100 | N48: 1.1 | O48: 74.1 | P48: 36.1 | Q48: 0.9 | R48: 28.6 | S48: 100 | T48: 85.2 | U48: 100 | V48: 23 | W48: 76.7 | X48: 100 | Y48: 100 | Z48: 0 | AA48: 0.1 | AB48: 0.3 | AC48: 100 | AD48: 49.5 | AE48: 100 | AF48: 99.8 | AG48: 11.7 | AH48: 0
A49: 2012-09-17T12:00:00 | B49: 10.7 | C49: 100 | D49: 85.1 | E49: 100 | F49: 89.6 | G49: 96.3 | H49: 23.9 | I49: 4.3 | J49: 100 | K49: 58.9 | L49: 93.9 | M49: 100 | N49: 1.1 | O49: 73.7 | P49: 37.6 | Q49: 0.9 | R49: 32.1 | S49: 100 | T49: 85.2 | U49: 100 | V49: 23 | W49: 76.7 | X49: 100 | Y49: 100 | Z49: 0 | AA49: 0.1 | AB49: 0.3 | AC49: 100 | AD49: 48.3 | AE49: 100 | AF49: 99.8 | AG49: 23.4 | AH49: 0
A50: 2012-09-18T12:00:00 | B50: 10.7 | C50: 100 | D50: 85.9 | E50: 100 | F50: 89.6 | G50: 98.2 | H50: 30.4 | I50: 4.3 | J50: 100 | K50: 63.5 | L50: 93.9 | M50: 100 | N50: 1.1 | O50: 72 | P50: 37.3 | Q50: 1.6 | R50: 32.1 | S50: 100 | T50: 85.2 | U50: 100 | V50: 23 | W50: 75.3 | X50: 100 | Y50: 100 | Z50: 0 | AA50: 0.1 | AB50: 0.3 | AC50: 100 | AD50: 49.5 | AE50: 100 | AF50: 99.8 | AG50: 36.5 | AH50: 0
A51: 2012-09-19T12:00:00 | B51: 10.7 | C51: 100 | D51: 87.6 | E51: 100 | F51: 89.6 | G51: 98.2 | H51: 28.4 | I51: 2.8 | J51: 100 | K51: 64.9 | L51: 94 | M51: 100 | N51: 1 | O51: 75.3 | P51: 37.1 | Q51: 5.1 | R51: 32.1 | S51: 100 | T51: 85.2 | U51: 100 | V51: 22.4 | W51: 82.1 | X51: 100 | Y51: 100 | Z51: 0 | AA51: 1.3 | AB51: 0.3 | AC51: 100 | AD51: 56.8 | AE51: 100 | AF51: 99.9 | AG51: 40.7 | AH51: 0
A52: 2012-09-20T12:00:00 | B52: 10.7 | C52: 100 | D52: 87.7 | E52: 100 | F52: 97.8 | G52: 98.2 | H52: 31.1 | I52: 10.4 | J52: 100 | K52: 60 | L52: 94 | M52: 100 | N52: 1 | O52: 75.8 | P52: 37.4 | Q52: 5.1 | R52: 39.7 | S52: 100 | T52: 85.2 | U52: 100 | V52: 22.4 | W52: 77.8 | X52: 100 | Y52: 100 | Z52: 0 | AA52: 2.1 | AB52: 0.3 | AC52: 100 | AD52: 73.8 | AE52: 100 | AF52: 99.9 | AG52: 53.7 | AH52: 0
A53: 2012-09-21T12:00:00 | B53: 24.5 | C53: 100 | D53: 88.1 | E53: 100 | F53: 92.3 | G53: 98.2 | H53: 31.1 | I53: 9.4 | J53: 100 | K53: 61.6 | L53: 98 | M53: 100 | N53: 1 | O53: 76.3 | P53: 38.6 | Q53: 4 | R53: 39.3 | S53: 100 | T53: 85.2 | U53: 100 | V53: 24.5 | W53: 80.2 | X53: 100 | Y53: 100 | Z53: 0 | AA53: 2.1 | AB53: 0.3 | AC53: 100 | AD53: 63.7 | AE53: 100 | AF53: 99.9 | AG53: 53.7 | AH53: 0
A54: 2012-09-22T12:00:00 | B54: 24.5 | C54: 100 | D54: 88.1 | E54: 100 | F54: 92.3 | G54: 99.1 | H54: 37 | I54: 2.5 | J54: 100 | K54: 61.6 | L54: 97.1 | M54: 100 | N54: 1 | O54: 77.1 | P54: 38.9 | Q54: 34 | R54: 38 | S54: 100 | T54: 85.2 | U54: 100 | V54: 23 | W54: 76.6 | X54: 100 | Y54: 100 | Z54: 0 | AA54: 0.1 | AB54: 0.3 | AC54: 100 | AD54: 63.7 | AE54: 100 | AF54: 99.9 | AG54: 60.3 | AH54: 0
A55: 2012-09-23T12:00:00 | B55: 24.5 | C55: 100 | D55: 88.3 | E55: 100 | F55: 92.3 | G55: 99.1 | H55: 37 | I55: 2.5 | J55: 100 | K55: 61.6 | L55: 96.9 | M55: 100 | N55: 1 | O55: 77.8 | P55: 38.9 | Q55: 34 | R55: 38.1 | S55: 100 | T55: 85.2 | U55: 100 | V55: 32.8 | W55: 75.5 | X55: 100 | Y55: 100 | Z55: 0 | AA55: 0.1 | AB55: 0.3 | AC55: 100 | AD55: 67 | AE55: 100 | AF55: 99.9 | AG55: 61 | AH55: 0
A56: 2012-09-24T12:00:00 | B56: 24.5 | C56: 100 | D56: 88.3 | E56: 100 | F56: 92.3 | G56: 99.1 | H56: 37 | I56: 4.7 | J56: 100 | K56: 62.3 | L56: 96.9 | M56: 100 | N56: 1 | O56: 75 | P56: 38.9 | Q56: 34 | R56: 38.1 | S56: 100 | T56: 85.2 | U56: 100 | V56: 22.7 | W56: 75.5 | X56: 100 | Y56: 100 | Z56: 0 | AA56: 0.1 | AB56: 0.3 | AC56: 100 | AD56: 78.5 | AE56: 100 | AF56: 99.9 | AG56: 85.4 | AH56: 0
A57: 2012-09-25T12:00:00 | B57: 24.5 | C57: 100 | D57: 88.5 | E57: 100 | F57: 95.5 | G57: 99.6 | H57: 37 | I57: 4.7 | J57: 100 | K57: 65.6 | L57: 97.6 | M57: 100 | N57: 1 | O57: 75.4 | P57: 39.6 | Q57: 2.5 | R57: 38.1 | S57: 100 | T57: 85.2 | U57: 100 | V57: 23.6 | W57: 85.3 | X57: 100 | Y57: 100 | Z57: 0 | AA57: 0.1 | AB57: 0.3 | AC57: 100 | AD57: 80.1 | AE57: 100 | AF57: 100 | AG57: 82.7 | AH57: 0
A58: 2012-09-26T12:00:00 | B58: 24.5 | C58: 100 | D58: 88.3 | E58: 100 | F58: 95.6 | G58: 99.6 | H58: 37 | I58: 4.7 | J58: 100 | K58: 64.3 | L58: 97.6 | M58: 100 | N58: 1 | O58: 73.2 | P58: 40.3 | Q58: 2.6 | R58: 39.3 | S58: 100 | T58: 85.2 | U58: 100 | V58: 23.6 | W58: 80.4 | X58: 100 | Y58: 100 | Z58: 0 | AA58: 0.1 | AB58: 0.3 | AC58: 100 | AD58: 77.1 | AE58: 100 | AF58: 99.9 | AG58: 76.7 | AH58: 0
A59: 2012-09-27T12:00:00 | B59: 22.6 | C59: 100 | D59: 88.3 | E59: 100 | F59: 95.9 | G59: 99.7 | H59: 39.3 | I59: 4.7 | J59: 100 | K59: 64.1 | L59: 97.5 | M59: 100 | N59: 1.1 | O59: 71.8 | P59: 38.9 | Q59: 3.2 | R59: 47 | S59: 100 | T59: 85.2 | U59: 100 | V59: 23.6 | W59: 86.9 | X59: 100 | Y59: 100 | Z59: 0 | AA59: 0.1 | AB59: 0.3 | AC59: 100 | AD59: 72.3 | AE59: 100 | AF59: 99.9 | AG59: 73.4 | AH59: 0
A60: 2012-09-28T12:00:00 | B60: 19.7 | C60: 100 | D60: 88.7 | E60: 100 | F60: 95.9 | G60: 99.7 | H60: 38 | I60: 4.7 | J60: 100 | K60: 66.3 | L60: 97.5 | M60: 100 | N60: 1.1 | O60: 70.6 | P60: 39.6 | Q60: 3.2 | R60: 38.1 | S60: 100 | T60: 85.2 | U60: 100 | V60: 22.4 | W60: 88 | X60: 100 | Y60: 100 | Z60: 0 | AA60: 0.1 | AB60: 0 | AC60: 100 | AD60: 72.7 | AE60: 100 | AF60: 99.8 | AG60: 75.1 | AH60: 0
A61: 2012-09-29T12:00:00 | B61: 21.4 | C61: 100 | D61: 90.9 | E61: 100 | F61: 96.3 | G61: 99.7 | H61: 42.1 | I61: 0.5 | J61: 100 | K61: 71 | L61: 97.6 | M61: 100 | N61: 1.1 | O61: 74.2 | P61: 38.8 | Q61: 2.8 | R61: 35.2 | S61: 100 | T61: 85.7 | U61: 100 | V61: 29.7 | W61: 88.4 | X61: 100 | Y61: 100 | Z61: 0 | AA61: 0.1 | AB61: 0 | AC61: 100 | AD61: 75.9 | AE61: 100 | AF61: 99.8 | AG61: 77.2 | AH61: 0
A62: 2012-09-30T12:00:00 | B62: 21.9 | C62: 100 | D62: 90.8 | E62: 100 | F62: 96.3 | G62: 99.7 | H62: 42.1 | I62: 0.1 | J62: 100 | K62: 70.9 | L62: 97.6 | M62: 100 | N62: 1.1 | O62: 73.7 | P62: 38.8 | Q62: 1 | R62: 36.4 | S62: 100 | T62: 85.7 | U62: 100 | V62: 25.4 | W62: 88.5 | X62: 100 | Y62: 100 | Z62: 0 | AA62: 0.1 | AB62: 0 | AC62: 100 | AD62: 87.8 | AE62: 100 | AF62: 99.8 | AG62: 73.9 | AH62: 0
A63: 2012-10-01T12:00:00 | B63: 24.5 | C63: 100 | D63: 90.8 | E63: 100 | F63: 96.3 | G63: 99.7 | H63: 41.7 | I63: 0.1 | J63: 100 | K63: 68.8 | L63: 97.6 | M63: 100 | N63: 1.1 | O63: 74.6 | P63: 44.1 | Q63: 1.1 | R63: 37.5 | S63: 100 | T63: 85.7 | U63: 100 | V63: 34.5 | W63: 88.2 | X63: 100 | Y63: 100 | Z63: 0 | AA63: 0.1 | AB63: 0 | AC63: 100 | AD63: 87.8 | AE63: 100 | AF63: 99.8 | AG63: 81.8 | AH63: 0
A64: 2012-10-02T12:00:00 | B64: 24.6 | C64: 100 | D64: 90.9 | E64: 100 | F64: 96.6 | G64: 99.7 | H64: 46.2 | I64: 0.1 | J64: 100 | K64: 73 | L64: 97.6 | M64: 100 | N64: 1.1 | O64: 75.3 | P64: 44.1 | Q64: 2.1 | R64: 37.8 | S64: 100 | T64: 85.7 | U64: 100 | V64: 24.8 | W64: 89.7 | X64: 100 | Y64: 100 | Z64: 0 | AA64: 0.1 | AB64: 0 | AC64: 100 | AD64: 87.8 | AE64: 100 | AF64: 99.8 | AG64: 72.1 | AH64: 0
A65: 2012-10-03T12:00:00 | B65: 24.6 | C65: 100 | D65: 90.6 | E65: 100 | F65: 96.6 | G65: 99.7 | H65: 47.5 | I65: 0.1 | J65: 100 | K65: 76.6 | L65: 97.6 | M65: 100 | N65: 1.1 | O65: 76.6 | P65: 44.1 | Q65: 2.1 | R65: 36.1 | S65: 100 | T65: 85.7 | U65: 100 | V65: 27.5 | W65: 89.8 | X65: 100 | Y65: 100 | Z65: 0 | AA65: 0.1 | AB65: 0 | AC65: 100 | AD65: 84 | AE65: 100 | AF65: 99.8 | AG65: 71.9 | AH65: 0
A66: 2012-10-04T12:00:00 | B66: 37.2 | C66: 100 | D66: 89.8 | E66: 100 | F66: 96 | G66: 99.7 | H66: 44 | I66: 0.1 | J66: 100 | K66: 69.6 | L66: 98.4 | M66: 100 | N66: 1.1 | O66: 74 | P66: 32.2 | Q66: 0.4 | R66: 31.6 | S66: 100 | T66: 85.7 | U66: 100 | V66: 26 | W66: 86.7 | X66: 100 | Y66: 100 | Z66: 0 | AA66: 0.1 | AB66: 0 | AC66: 100 | AD66: 79.2 | AE66: 100 | AF66: 99.8 | AG66: 72.1 | AH66: 0
A67: 2012-10-05T12:00:00 | B67: 34.6 | C67: 100 | D67: 83.6 | E67: 100 | F67: 96.3 | G67: 99.7 | H67: 44.4 | I67: 0.1 | J67: 100 | K67: 70.6 | L67: 99.2 | M67: 100 | N67: 1.1 | O67: 76.1 | P67: 35.9 | Q67: 1.7 | R67: 32.7 | S67: 100 | T67: 85.7 | U67: 100 | V67: 26 | W67: 82 | X67: 100 | Y67: 100 | Z67: 0 | AA67: 0.1 | AB67: 0 | AC67: 100 | AD67: 79.3 | AE67: 100 | AF67: 99.3 | AG67: 70.1 | AH67: 0
A68: 2012-10-06T12:00:00 | B68: 35.2 | C68: 100 | D68: 81.9 | E68: 100 | F68: 96.7 | G68: 99.7 | H68: 42.9 | I68: 0.1 | J68: 100 | K68: 71.6 | L68: 99.2 | M68: 100 | N68: 1.1 | O68: 72.5 | P68: 35.9 | Q68: 1.7 | R68: 31.9 | S68: 100 | T68: 85.7 | U68: 100 | V68: 26 | W68: 79.9 | X68: 100 | Y68: 100 | Z68: 0 | AA68: 0.1 | AB68: 0 | AC68: 100 | AD68: 83.2 | AE68: 100 | AF68: 99.4 | AG68: 68.8 | AH68: 0
A69: 2012-10-07T12:00:00 | B69: 35 | C69: 100 | D69: 69.1 | E69: 100 | F69: 96.1 | G69: 99.7 | H69: 42.9 | I69: 0.1 | J69: 100 | K69: 73.9 | L69: 99.2 | M69: 100 | N69: 1.1 | O69: 72.9 | P69: 35.9 | Q69: 1.7 | R69: 31.9 | S69: 100 | T69: 85.7 | U69: 100 | V69: 26.5 | W69: 78.8 | X69: 100 | Y69: 100 | Z69: 0 | AA69: 0.1 | AB69: 0 | AC69: 100 | AD69: 83.2 | AE69: 100 | AF69: 99.4 | AG69: 66.5 | AH69: 0
A70: 2012-10-08T12:00:00 | B70: 29.9 | C70: 100 | D70: 82.2 | E70: 100 | F70: 95 | G70: 99.7 | H70: 42.4 | I70: 0.1 | J70: 100 | K70: 72.4 | L70: 99.2 | M70: 100 | N70: 1.1 | O70: 70.4 | P70: 35.9 | Q70: 1.7 | R70: 31.9 | S70: 100 | T70: 85.7 | U70: 100 | V70: 26.5 | W70: 76.3 | X70: 100 | Y70: 100 | Z70: 0 | AA70: 0.1 | AB70: 0 | AC70: 100 | AD70: 80.4 | AE70: 100 | AF70: 99.1 | AG70: 66.6 | AH70: 0
A71: 2012-10-09T12:00:00 | B71: 29.5 | C71: 100 | D71: 80.5 | E71: 100 | F71: 95.3 | G71: 99.7 | H71: 42.9 | I71: 0.1 | J71: 100 | K71: 68.9 | L71: 99.2 | M71: 100 | N71: 1.1 | O71: 70.8 | P71: 35.9 | Q71: 1.7 | R71: 32 | S71: 100 | T71: 85.7 | U71: 100 | V71: 25.3 | W71: 78.3 | X71: 100 | Y71: 100 | Z71: 0 | AA71: 0.1 | AB71: 0 | AC71: 100 | AD71: 80.4 | AE71: 100 | AF71: 99 | AG71: 71.7 | AH71: 0
A72: 2012-10-10T12:00:00 | B72: 29.5 | C72: 100 | D72: 80.5 | E72: 100 | F72: 94.4 | G72: 99.7 | H72: 42.9 | I72: 0.1 | J72: 100 | K72: 66.6 | L72: 99.2 | M72: 100 | N72: 1.1 | O72: 66.6 | P72: 31.2 | Q72: 1.7 | R72: 30.6 | S72: 100 | T72: 85.7 | U72: 100 | V72: 26.6 | W72: 76.2 | X72: 100 | Y72: 100 | Z72: 0 | AA72: 0.1 | AB72: 0 | AC72: 100 | AD72: 79.8 | AE72: 100 | AF72: 98.8 | AG72: 68.1 | AH72: 0
A73: 2012-10-11T12:00:00 | B73: 29.6 | C73: 100 | D73: 79 | E73: 100 | F73: 95.3 | G73: 99.7 | H73: 35 | I73: 0.1 | J73: 100 | K73: 68.3 | L73: 97.6 | M73: 100 | N73: 1.1 | O73: 70.5 | P73: 27.8 | Q73: 1.7 | R73: 30.6 | S73: 100 | T73: 85.7 | U73: 100 | V73: 29.7 | W73: 75.6 | X73: 100 | Y73: 100 | Z73: 0 | AA73: 0.1 | AB73: 0 | AC73: 100 | AD73: 79.8 | AE73: 100 | AF73: 98.7 | AG73: 67.4 | AH73: 0
A74: 2012-10-12T12:00:00 | B74: 29.6 | C74: 100 | D74: 79 | E74: 100 | F74: 95.3 | G74: 99.7 | H74: 35 | I74: 0.1 | J74: 100 | K74: 68.3 | L74: 97.6 | M74: 100 | N74: 1.1 | O74: 70.5 | P74: 27.8 | Q74: 1.7 | R74: 30.6 | S74: 100 | T74: 85.7 | U74: 100 | V74: 29.7 | W74: 75.6 | X74: 100 | Y74: 100 | Z74: 0 | AA74: 0.1 | AB74: 0 | AC74: 100 | AD74: 79.8 | AE74: 100 | AF74: 98.7 | AG74: 67.4 | AH74: 0
A75: 2012-10-13T12:00:00 | B75: 32.8 | C75: 100 | D75: 78.6 | E75: 100 | F75: 96.1 | G75: 99.9 | H75: 2 | I75: 5.5 | J75: 100 | K75: 70.2 | L75: 99.5 | M75: 100 | N75: 1.1 | O75: 74 | P75: 33.8 | Q75: 1.6 | R75: 19.6 | S75: 100 | T75: 85.8 | U75: 100 | V75: 22.9 | W75: 85.8 | X75: 100 | Y75: 100 | Z75: 0 | AA75: 0.1 | AB75: 0 | AC75: 100 | AD75: 76.7 | AE75: 100 | AF75: 99.1 | AG75: 67.6 | AH75: 0
A76: 2012-10-14T12:00:00 | B76: 32.4 | C76: 100 | D76: 78.6 | E76: 100 | F76: 96.8 | G76: 99.9 | H76: 23.6 | I76: 5.5 | J76: 100 | K76: 73.7 | L76: 99.6 | M76: 100 | N76: 1.1 | O76: 76.7 | P76: 33.1 | Q76: 1.6 | R76: 27.7 | S76: 100 | T76: 85.8 | U76: 100 | V76: 22.9 | W76: 86.7 | X76: 100 | Y76: 100 | Z76: 0 | AA76: 0.1 | AB76: 0 | AC76: 100 | AD76: 76.1 | AE76: 100 | AF76: 99.7 | AG76: 71.2 | AH76: 0
A77: 2012-10-15T12:00:00 | B77: 33.6 | C77: 100 | D77: 78.5 | E77: 100 | F77: 94.2 | G77: 99.9 | H77: 25.3 | I77: 5.5 | J77: 100 | K77: 74.2 | L77: 99.6 | M77: 100 | N77: 1.1 | O77: 76.9 | P77: 32.6 | Q77: 1.6 | R77: 30.8 | S77: 100 | T77: 85.8 | U77: 100 | V77: 22.9 | W77: 85.5 | X77: 100 | Y77: 100 | Z77: 0 | AA77: 0.1 | AB77: 0 | AC77: 100 | AD77: 76.2 | AE77: 100 | AF77: 99.7 | AG77: 73.7 | AH77: 0
A78: 2012-10-16T12:00:00 | B78: 32.3 | C78: 100 | D78: 82.6 | E78: 100 | F78: 93.4 | G78: 99.9 | H78: 19.6 | I78: 5.5 | J78: 100 | K78: 78.4 | L78: 99.7 | M78: 100 | N78: 0 | O78: 79.2 | P78: 35.1 | Q78: 1.6 | R78: 30.8 | S78: 100 | T78: 85.9 | U78: 100 | V78: 20.9 | W78: 85.6 | X78: 100 | Y78: 100 | Z78: 0 | AA78: 0.1 | AB78: 0 | AC78: 100 | AD78: 74.5 | AE78: 100 | AF78: 99.7 | AG78: 76 | AH78: 0
A79: 2012-10-17T12:00:00 | B79: 29.8 | C79: 100 | D79: 88.4 | E79: 100 | F79: 95.5 | G79: 99.9 | H79: 25.7 | I79: 5.5 | J79: 100 | K79: 83.1 | L79: 99.4 | M79: 100 | N79: 0 | O79: 79.1 | P79: 34.3 | Q79: 1.5 | R79: 20.7 | S79: 100 | T79: 85.9 | U79: 100 | V79: 19.8 | W79: 86.2 | X79: 100 | Y79: 100 | Z79: 0 | AA79: 0.1 | AB79: 0 | AC79: 100 | AD79: 77.3 | AE79: 100 | AF79: 99.7 | AG79: 78 | AH79: 0
A80: 2012-10-18T12:00:00 | B80: 29.6 | C80: 100 | D80: 86.7 | E80: 100 | F80: 89.3 | G80: 99.9 | H80: 27.7 | I80: 5.5 | J80: 100 | K80: 81.9 | L80: 99.7 | M80: 100 | N80: 0 | O80: 79.1 | P80: 36.1 | Q80: 1.5 | R80: 16.3 | S80: 100 | T80: 85.9 | U80: 100 | V80: 20 | W80: 89.9 | X80: 100 | Y80: 100 | Z80: 0 | AA80: 0.1 | AB80: 0 | AC80: 100 | AD80: 76.3 | AE80: 100 | AF80: 99.7 | AG80: 77.7 | AH80: 0
A81: 2012-10-19T12:00:00 | B81: 24.8 | C81: 100 | D81: 84.4 | E81: 100 | F81: 94.3 | G81: 99.9 | H81: 26.5 | I81: 5.5 | J81: 100 | K81: 81.9 | L81: 99.7 | M81: 100 | N81: 0 | O81: 78.7 | P81: 33.7 | Q81: 1.5 | R81: 14 | S81: 100 | T81: 86 | U81: 100 | V81: 24.6 | W81: 91.2 | X81: 100 | Y81: 100 | Z81: 0 | AA81: 0.1 | AB81: 0 | AC81: 100 | AD81: 76.1 | AE81: 100 | AF81: 99.7 | AG81: 77.7 | AH81: 0
A82: 2012-10-20T12:00:00 | B82: 24.8 | C82: 100 | D82: 87.5 | E82: 100 | F82: 95.6 | G82: 99.9 | H82: 26.4 | I82: 5.5 | J82: 100 | K82: 86.8 | L82: 99.7 | M82: 100 | N82: 0 | O82: 83.5 | P82: 34.1 | Q82: 1.5 | R82: 10.8 | S82: 100 | T82: 86 | U82: 100 | V82: 6.3 | W82: 91 | X82: 100 | Y82: 100 | Z82: 0 | AA82: 0.1 | AB82: 0 | AC82: 100 | AD82: 76.3 | AE82: 100 | AF82: 97.2 | AG82: 74.7 | AH82: 0
A83: 2012-10-21T12:00:00 | B83: 20.5 | C83: 100 | D83: 87.4 | E83: 100 | F83: 95.6 | G83: 99.9 | H83: 19.8 | I83: 5.5 | J83: 100 | K83: 86.5 | L83: 99.9 | M83: 100 | N83: 0 | O83: 85.5 | P83: 31.8 | Q83: 1.5 | R83: 10.5 | S83: 100 | T83: 86.1 | U83: 100 | V83: 4.6 | W83: 84.7 | X83: 100 | Y83: 100 | Z83: 0 | AA83: 0.1 | AB83: 0 | AC83: 100 | AD83: 76.3 | AE83: 100 | AF83: 97.2 | AG83: 74.7 | AH83: 0
A84: 2012-10-22T12:00:00 | B84: 20.6 | C84: 100 | D84: 87.4 | E84: 100 | F84: 95.6 | G84: 99.9 | H84: 12.7 | I84: 5.5 | J84: 100 | K84: 88.1 | L84: 99.9 | M84: 100 | N84: 0 | O84: 86.3 | P84: 31.7 | Q84: 1.5 | R84: 11 | S84: 100 | T84: 86.1 | U84: 100 | V84: 7.6 | W84: 91.9 | X84: 100 | Y84: 100 | Z84: 0 | AA84: 0.1 | AB84: 0 | AC84: 100 | AD84: 76.9 | AE84: 100 | AF84: 97.2 | AG84: 66 | AH84: 0
A85: 2012-10-23T12:00:00 | B85: 21.4 | C85: 100 | D85: 91.8 | E85: 100 | F85: 95.7 | G85: 99.9 | H85: 47.3 | I85: 5.5 | J85: 100 | K85: 84.6 | L85: 99.9 | M85: 100 | N85: 0 | O85: 93.9 | P85: 30.9 | Q85: 1.6 | R85: 17.9 | S85: 100 | T85: 86.1 | U85: 100 | V85: 11.4 | W85: 88.8 | X85: 100 | Y85: 100 | Z85: 0 | AA85: 0.1 | AB85: 0 | AC85: 100 | AD85: 71.8 | AE85: 100 | AF85: 97.2 | AG85: 65.3 | AH85: 0
A86: 2012-10-24T12:00:00
A87: 2012-10-25T12:00:00
A88: 2012-10-26T12:00:00
A89: 2012-10-27T12:00:00
A90: 2012-10-28T12:00:00
A91: 2012-10-29T12:00:00
A92: 2012-10-30T12:00:00
A93: 2012-10-31T12:00:00
A94: 2012-11-01T12:00:00
A95: 2012-11-02T12:00:00
A96: 2012-11-03T12:00:00
A97: 2012-11-04T12:00:00
A98: 2012-11-05T12:00:00
A99: 2012-11-06T12:00:00

Sheet Polls
A1: Date | B1: Barack Obama | C1: Mitt Romney
A2: 2012-08-01T12:00:00 | B2: 47 | C2: 45
A3: 2012-08-02T12:00:00 | B3: 47 | C3: 45
A4: 2012-08-03T12:00:00 | B4: 47.3 | C4: 44.6
A5: 2012-08-04T12:00:00 | B5: 47.4 | C5: 44.4
A6: 2012-08-05T12:00:00 | B6: 47.6 | C6: 44.6
A7: 2012-08-06T12:00:00 | B7: 47.7 | C7: 44.3
A8: 2012-08-07T12:00:00 | B8: 47.6 | C8: 44.3
A9: 2012-08-08T12:00:00 | B9: 47.6 | C9: 43.9
A10: 2012-08-09T12:00:00 | B10: 47.5 | C10: 44.1
A11: 2012-08-10T12:00:00 | B11: 48.4 | C11: 44
A12: 2012-08-11T12:00:00 | B12: 48 | C12: 43.4
A13: 2012-08-12T12:00:00 | B13: 48 | C13: 43.4
A14: 2012-08-13T12:00:00 | B14: 47.7 | C14: 43.6
A15: 2012-08-14T12:00:00 | B15: 47.7 | C15: 43.7
A16: 2012-08-15T12:00:00 | B16: 47.7 | C16: 43.7
A17: 2012-08-16T12:00:00 | B17: 47.7 | C17: 43.7
A18: 2012-08-17T12:00:00 | B18: 47.3 | C18: 43.8
A19: 2012-08-18T12:00:00 | B19: 47.7 | C19: 43.8
A20: 2012-08-19T12:00:00 | B20: 48 | C20: 44.6
A21: 2012-08-20T12:00:00 | B21: 47.8 | C21: 44.4
A22: 2012-08-21T12:00:00 | B22: 47.2 | C22: 44.7
A23: 2012-08-22T12:00:00 | B23: 47 | C23: 45.3
A24: 2012-08-23T12:00:00 | B24: 47.2 | C24: 45.3
A25: 2012-08-24T12:00:00 | B25: 46.3 | C25: 45.4
A26: 2012-08-25T12:00:00 | B26: 46.6 | C26: 45.6
A27: 2012-08-26T12:00:00 | B27: 46.9 | C27: 45.5
A28: 2012-08-27T12:00:00 | B28: 46.8 | C28: 45.6
A29: 2012-08-28T12:00:00 | B29: 46.7 | C29: 45.7
A30: 2012-08-29T12:00:00 | B30: 46.8 | C30: 45.8
A31: 2012-08-30T12:00:00 | B31: 46.8 | C31: 45.7
A32: 2012-08-31T12:00:00 | B32: 46.4 | C32: 45.9
A33: 2012-09-01T12:00:00 | B33: 46.4 | C33: 46.1
A34: 2012-09-02T12:00:00 | B34: 46.4 | C34: 46.3
A35: 2012-09-03T12:00:00 | B35: 46.4 | C35: 46.3
A36: 2012-09-04T12:00:00 | B36: 46.4 | C36: 46.4
A37: 2012-09-05T12:00:00 | B37: 46.8 | C37: 46.7
A38: 2012-09-06T12:00:00 | B38: 46.8 | C38: 46.8
A39: 2012-09-07T12:00:00 | B39: 46.7 | C39: 46.7
A40: 2012-09-08T12:00:00 | B40: 47.2 | C40: 46
A41: 2012-09-09T12:00:00 | B41: 47.8 | C41: 46.2
A42: 2012-09-10T12:00:00 | B42: 48 | C42: 46
A43: 2012-09-11T12:00:00 | B43: 48.8 | C43: 45.7
A44: 2012-09-12T12:00:00 | B44: 48.6 | C44: 45.4
A45: 2012-09-13T12:00:00 | B45: 48.4 | C45: 45.1
A46: 2012-09-14T12:00:00 | B46: 48.7 | C46: 45.5
A47: 2012-09-15T12:00:00 | B47: 48.7 | C47: 45.5
A48: 2012-09-16T12:00:00 | B48: 48.7 | C48: 45.5
A49: 2012-09-17T12:00:00 | B49: 48.5 | C49: 45.5
A50: 2012-09-18T12:00:00 | B50: 48.5 | C50: 45.5
A51: 2012-09-19T12:00:00 | B51: 48.1 | C51: 45.4
A52: 2012-09-20T12:00:00 | B52: 48.3 | C52: 45
A53: 2012-09-21T12:00:00 | B53: 48.6 | C53: 44.7
A54: 2012-09-22T12:00:00 | B54: 48.1 | C54: 44.8
A55: 2012-09-23T12:00:00 | B55: 48.1 | C55: 44.8
A56: 2012-09-24T12:00:00 | B56: 48.6 | C56: 44.9
A57: 2012-09-25T12:00:00 | B57: 48.6 | C57: 44.9
A58: 2012-09-26T12:00:00 | B58: 48.6 | C58: 45
A59: 2012-09-27T12:00:00 | B59: 48.9 | C59: 44.9
A60: 2012-09-28T12:00:00 | B60: 48.7 | C60: 44.6
A61: 2012-09-29T12:00:00 | B61: 48.7 | C61: 44.6
A62: 2012-09-30T12:00:00 | B62: 48.9 | C62: 44.6
A63: 2012-10-01T12:00:00 | B63: 49 | C63: 45.2
A64: 2012-10-02T12:00:00 | B64: 48.9 | C64: 45.9
A65: 2012-10-03T12:00:00 | B65: 49.3 | C65: 45.9
A66: 2012-10-04T12:00:00 | B66: 49.1 | C66: 46
A67: 2012-10-05T12:00:00 | B67: 49.1 | C67: 46
A68: 2012-10-06T12:00:00 | B68: 48.6 | C68: 46.8
A69: 2012-10-07T12:00:00 | B69: 48.4 | C69: 47
A70: 2012-10-08T12:00:00 | B70: 48.3 | C70: 47.2
A71: 2012-10-09T12:00:00 | B71: 47.9 | C71: 47.4
A72: 2012-10-10T12:00:00 | B72: 47.2 | C72: 48
A73: 2012-10-11T12:00:00 | B73: 46.3 | C73: 47.4
A74: 2012-10-12T12:00:00 | B74: 46.3 | C74: 47.3
A75: 2012-10-13T12:00:00 | B75: 46 | C75: 47.3
A76: 2012-10-14T12:00:00 | B76: 46 | C76: 47.3
A77: 2012-10-15T12:00:00 | B77: 47.3 | C77: 47.4
A78: 2012-10-16T12:00:00 | B78: 47 | C78: 47.4
A79: 2012-10-17T12:00:00 | B79: 47 | C79: 47.4
A80: 2012-10-18T12:00:00 | B80: 46.7 | C80: 47.7
A81: 2012-10-19T12:00:00 | B81: 47.1 | C81: 47
A82: 2012-10-20T12:00:00 | B82: 47.1 | C82: 47
A83: 2012-10-21T12:00:00 | B83: 47.1 | C83: 46.9
A84: 2012-10-22T12:00:00 | B84: 47.2 | C84: 47.6
A85: 2012-10-23T12:00:00 | B85: 47.1 | C85: 48
A86: 2012-10-24T12:00:00
A87: 2012-10-25T12:00:00
A88: 2012-10-26T12:00:00
A89: 2012-10-27T12:00:00
A90: 2012-10-28T12:00:00
A91: 2012-10-29T12:00:00
A92: 2012-10-30T12:00:00
A93: 2012-10-31T12:00:00
A94: 2012-11-01T12:00:00
A95: 2012-11-02T12:00:00
A96: 2012-11-03T12:00:00
A97: 2012-11-04T12:00:00
A98: 2012-11-05T12:00:00
A99: 2012-11-06T12:00:00
